Body Name,Date Paid,Transaction Number,Amount,Supplier Name,Supplier Type,Expense Area,Cost Centre Description,Expense Type
Cambridgeshire County Council,03-May-16,20540531-13265592,-37350,Cambridge City Council,Other Public Bodies,LGSS Managed,Castle Court,Business rates
Cambridgeshire County Council,03-May-16,20540532-13265593,-37350,Cambridge City Council,Other Public Bodies,LGSS Managed,Castle Court,Business rates
Cambridgeshire County Council,03-May-16,20540533-13265594,-37125,Cambridge City Council,Other Public Bodies,LGSS Managed,Castle Court,Business rates
Cambridgeshire County Council,03-May-16,20540534-13265595,-37125,Cambridge City Council,Other Public Bodies,LGSS Managed,Castle Court,Business rates
Cambridgeshire County Council,03-May-16,20575584-13266271,-9381.52,British Telecommunications Plc,Company,Traffic Management & Road Safety,Signals Works,External Telephone - rental
Cambridgeshire County Council,03-May-16,20580107-13266272,-9356.84,British Telecommunications Plc,Company,Traffic Management & Road Safety,Signals Works,External Telephone - rental
Cambridgeshire County Council,18-May-16,20147688-13349929,-8857.2,Surecare Residential Ltd,Care Establishment,S&C,Placements - Social Care,Agency Placements - Out County
Cambridgeshire County Council,06-May-16,20580083-13289138,-7500,Chartwell House,Care Establishment,S&C,Placements - Education,Independent School Placements
Cambridgeshire County Council,23-May-16,20604341-13366875,-6040,Cambridge Meridian Academies Trust T/A Swavesey Village College,Education,LGSS Managed,Cottenham & Swavesey Locality,Rents and Leases
Cambridgeshire County Council,23-May-16,20669825-13366983,-3155.7,Alliance Foster Care Ltd,Care Establishment,S&C,Placements - Social Care,Agency Placements - Out County
Cambridgeshire County Council,13-May-16,20657993-13329045,-1890,Cambian Fairview Hospital,Care Establishment,2 - Operations - Learning Disability,LDP E Cambs Special Needs,Day and Domicillary Care Independent Sector
Cambridgeshire County Council,13-May-16,20657995-13329046,-1890,Cambian Fairview Hospital,Care Establishment,2 - Operations - Learning Disability,LDP E Cambs Special Needs,Day and Domicillary Care Independent Sector
Cambridgeshire County Council,20-May-16,20681697-13359991,-1769.81,Westward Farm,Care Establishment,2 - Operations - Learning Disability,LDP Huntingdonshire Locality - Care,Residential Independent Sector
Cambridgeshire County Council,20-May-16,20681703-13359997,-1769.81,Westward Farm,Care Establishment,2 - Operations - Learning Disability,LDP Huntingdonshire Locality - Care,Residential Independent Sector
Cambridgeshire County Council,27-May-16,20768491-13387918,-1725,Danshell Healthcare Limited,Trade Supplier,3 - Operations - Countywide Services,LDP Young Adults - Care,Respite Independent Sector
Cambridgeshire County Council,27-May-16,20680268-13396588,-1721.66,Affinity Trust,Care Establishment,2 - Operations - Learning Disability,LDP Fenland Locality - Care,Supported Living
Cambridgeshire County Council,31-May-16,20805648-13413033,-1620,De Montfort University,Education,E&P,YS - Staff Training,Staff Training & Development
Cambridgeshire County Council,12-May-16,20609345-13317074,-1426.69,Rheola Healthcare,Care Establishment,4 - Commissioning - Mental Health & Supporting People,OP Blocks - Care Placements,Respite Independent Sector
Cambridgeshire County Council,13-May-16,20657982-13329039,-1350,Cambian Fairview Hospital,Care Establishment,2 - Operations - Learning Disability,LDP E Cambs Special Needs,Day and Domicillary Care Independent Sector
Cambridgeshire County Council,20-May-16,20678280-13360848,-1235.77,Redacted Personal Data,Individual,3 - Operations - Countywide Services,Countywide PD Service - Care,Direct Payments - Social Services
Cambridgeshire County Council,20-May-16,20678294-13360853,-1235.77,Redacted Personal Data,Individual,3 - Operations - Countywide Services,Countywide PD Service - Care,Direct Payments - Social Services
Cambridgeshire County Council,20-May-16,20678295-13360854,-1235.77,Redacted Personal Data,Individual,3 - Operations - Countywide Services,Countywide PD Service - Care,Direct Payments - Social Services
Cambridgeshire County Council,19-May-16,20675371-13351946,-1200,Peterborough Regional College,Education,S&C,H to S Transport - Secondary,Home to School - Contract
Cambridgeshire County Council,05-May-16,20480133-13278955,-1138.3,Creative Support Solutions Ltd,Trade Supplier,S&C,Placements - Social Care,Agency Placements - Out County
Cambridgeshire County Council,20-May-16,20678277-13360846,-1059.23,Redacted Personal Data,Individual,3 - Operations - Countywide Services,Countywide PD Service - Care,Direct Payments - Social Services
Cambridgeshire County Council,27-May-16,20680549-13394279,-1010.03,Cambridge Manor Care Home (Tlc),Care Establishment,2 - Commissioning - Older people Pool,Older People - City & South,Residential Independent Sector
Cambridgeshire County Council,27-May-16,20680550-13394280,-1010.03,Cambridge Manor Care Home (Tlc),Care Establishment,2 - Commissioning - Older people Pool,Older People - City & South,Residential Independent Sector
Cambridgeshire County Council,27-May-16,20680551-13394281,-1010.03,Cambridge Manor Care Home (Tlc),Care Establishment,2 - Commissioning - Older people Pool,Older People - City & South,Residential Independent Sector
Cambridgeshire County Council,27-May-16,20680552-13394282,-1010.03,Cambridge Manor Care Home (Tlc),Care Establishment,2 - Commissioning - Older people Pool,Older People - City & South,Residential Independent Sector
Cambridgeshire County Council,27-May-16,20680553-13394283,-1010.03,Cambridge Manor Care Home (Tlc),Care Establishment,2 - Commissioning - Older people Pool,Older People - City & South,Residential Independent Sector
Cambridgeshire County Council,27-May-16,20680554-13394284,-1010.03,Cambridge Manor Care Home (Tlc),Care Establishment,2 - Commissioning - Older people Pool,Older People - City & South,Residential Independent Sector
Cambridgeshire County Council,27-May-16,20680555-13394285,-1010.03,Cambridge Manor Care Home (Tlc),Care Establishment,2 - Commissioning - Older people Pool,Older People - City & South,Residential Independent Sector
Cambridgeshire County Council,27-May-16,20680556-13394286,-1010.03,Cambridge Manor Care Home (Tlc),Care Establishment,2 - Commissioning - Older people Pool,Older People - City & South,Residential Independent Sector
Cambridgeshire County Council,27-May-16,20680557-13394287,-1010.03,Cambridge Manor Care Home (Tlc),Care Establishment,2 - Commissioning - Older people Pool,Older People - City & South,Residential Independent Sector
Cambridgeshire County Council,27-May-16,20680558-13394288,-1010.03,Cambridge Manor Care Home (Tlc),Care Establishment,2 - Commissioning - Older people Pool,Older People - City & South,Residential Independent Sector
Cambridgeshire County Council,27-May-16,20680559-13394289,-1010.03,Cambridge Manor Care Home (Tlc),Care Establishment,2 - Commissioning - Older people Pool,Older People - City & South,Residential Independent Sector
Cambridgeshire County Council,27-May-16,20680560-13394290,-1010.03,Cambridge Manor Care Home (Tlc),Care Establishment,2 - Commissioning - Older people Pool,Older People - City & South,Residential Independent Sector
Cambridgeshire County Council,27-May-16,20680561-13394291,-1010.03,Cambridge Manor Care Home (Tlc),Care Establishment,2 - Commissioning - Older people Pool,Older People - City & South,Residential Independent Sector
Cambridgeshire County Council,24-May-16,20742591-13369254,-956.6,Guidant Group,Trade Supplier,S&C,STAR Team - Stautory Assessment & Resources Team,Pay - Agency Staff
Cambridgeshire County Council,26-May-16,20751745-13381078,-940,Cambridge Regional College,Education,S&C,H to S Transport - CRC,Home to School - Public Transport
Cambridgeshire County Council,27-May-16,20772604-13408913,-936.48,Hunters Healthcare (Hunters Down),Care Establishment,2 - Commissioning - Older people Pool,Hunts O P  Team,Residential Independent Sector
Cambridgeshire County Council,27-May-16,20772606-13408915,-936.48,Hunters Healthcare (Hunters Down),Care Establishment,2 - Commissioning - Older people Pool,Hunts O P  Team,Residential Independent Sector
Cambridgeshire County Council,27-May-16,20772608-13408917,-936.48,Hunters Healthcare (Hunters Down),Care Establishment,2 - Commissioning - Older people Pool,Hunts O P  Team,Residential Independent Sector
Cambridgeshire County Council,13-May-16,20551777-13323436,-926.11,Making Space#1,Care Establishment,3 - Operations - Countywide Services,Countywide PD Service - Care,Nursing Independent Sector
Cambridgeshire County Council,13-May-16,20551779-13323438,-926.11,Making Space#1,Care Establishment,3 - Operations - Countywide Services,Countywide PD Service - Care,Nursing Independent Sector
Cambridgeshire County Council,13-May-16,20551780-13323439,-926.11,Making Space#1,Care Establishment,3 - Operations - Countywide Services,Countywide PD Service - Care,Nursing Independent Sector
Cambridgeshire County Council,13-May-16,20551783-13323442,-926.11,Making Space#1,Care Establishment,3 - Operations - Countywide Services,Countywide PD Service - Care,Nursing Independent Sector
Cambridgeshire County Council,13-May-16,20551784-13323443,-926.11,Making Space#1,Care Establishment,3 - Operations - Countywide Services,Countywide PD Service - Care,Nursing Independent Sector
Cambridgeshire County Council,13-May-16,20551786-13323445,-926.11,Making Space#1,Care Establishment,3 - Operations - Countywide Services,Countywide PD Service - Care,Nursing Independent Sector
Cambridgeshire County Council,13-May-16,20551787-13323446,-926.11,Making Space#1,Care Establishment,3 - Operations - Countywide Services,Countywide PD Service - Care,Nursing Independent Sector
Cambridgeshire County Council,13-May-16,20551789-13323448,-926.11,Making Space#1,Care Establishment,3 - Operations - Countywide Services,Countywide PD Service - Care,Nursing Independent Sector
Cambridgeshire County Council,13-May-16,20551792-13323451,-926.11,Making Space#1,Care Establishment,3 - Operations - Countywide Services,Countywide PD Service - Care,Nursing Independent Sector
Cambridgeshire County Council,13-May-16,20551793-13323452,-926.11,Making Space#1,Care Establishment,3 - Operations - Countywide Services,Countywide PD Service - Care,Nursing Independent Sector
Cambridgeshire County Council,13-May-16,20551795-13323454,-926.11,Making Space#1,Care Establishment,3 - Operations - Countywide Services,Countywide PD Service - Care,Nursing Independent Sector
Cambridgeshire County Council,13-May-16,20551796-13323455,-926.11,Making Space#1,Care Establishment,3 - Operations - Countywide Services,Countywide PD Service - Care,Nursing Independent Sector
Cambridgeshire County Council,13-May-16,20551799-13323458,-926.11,Making Space#1,Care Establishment,3 - Operations - Countywide Services,Countywide PD Service - Care,Nursing Independent Sector
Cambridgeshire County Council,13-May-16,20551803-13323462,-926.11,Making Space#1,Care Establishment,3 - Operations - Countywide Services,Countywide PD Service - Care,Nursing Independent Sector
Cambridgeshire County Council,13-May-16,20551808-13323467,-926.11,Making Space#1,Care Establishment,3 - Operations - Countywide Services,Countywide PD Service - Care,Nursing Independent Sector
Cambridgeshire County Council,13-May-16,20557724-13323406,-926.11,Making Space#1,Care Establishment,3 - Operations - Countywide Services,Countywide PD Service - Care,Nursing Independent Sector
Cambridgeshire County Council,13-May-16,20557727-13323409,-926.11,Making Space#1,Care Establishment,3 - Operations - Countywide Services,Countywide PD Service - Care,Nursing Independent Sector
Cambridgeshire County Council,13-May-16,20557728-13323410,-926.11,Making Space#1,Care Establishment,3 - Operations - Countywide Services,Countywide PD Service - Care,Nursing Independent Sector
Cambridgeshire County Council,13-May-16,20557729-13323411,-926.11,Making Space#1,Care Establishment,3 - Operations - Countywide Services,Countywide PD Service - Care,Nursing Independent Sector
Cambridgeshire County Council,13-May-16,20557731-13323413,-926.11,Making Space#1,Care Establishment,3 - Operations - Countywide Services,Countywide PD Service - Care,Nursing Independent Sector
Cambridgeshire County Council,13-May-16,20557732-13323414,-926.11,Making Space#1,Care Establishment,3 - Operations - Countywide Services,Countywide PD Service - Care,Nursing Independent Sector
Cambridgeshire County Council,13-May-16,20557733-13323415,-926.11,Making Space#1,Care Establishment,3 - Operations - Countywide Services,Countywide PD Service - Care,Nursing Independent Sector
Cambridgeshire County Council,13-May-16,20557734-13323416,-926.11,Making Space#1,Care Establishment,3 - Operations - Countywide Services,Countywide PD Service - Care,Nursing Independent Sector
Cambridgeshire County Council,13-May-16,20557738-13323420,-926.11,Making Space#1,Care Establishment,3 - Operations - Countywide Services,Countywide PD Service - Care,Nursing Independent Sector
Cambridgeshire County Council,13-May-16,20557739-13323421,-926.11,Making Space#1,Care Establishment,3 - Operations - Countywide Services,Countywide PD Service - Care,Nursing Independent Sector
Cambridgeshire County Council,13-May-16,20557742-13323424,-926.11,Making Space#1,Care Establishment,3 - Operations - Countywide Services,Countywide PD Service - Care,Nursing Independent Sector
Cambridgeshire County Council,13-May-16,20557743-13323425,-926.11,Making Space#1,Care Establishment,3 - Operations - Countywide Services,Countywide PD Service - Care,Nursing Independent Sector
Cambridgeshire County Council,13-May-16,20557744-13323426,-926.11,Making Space#1,Care Establishment,3 - Operations - Countywide Services,Countywide PD Service - Care,Nursing Independent Sector
Cambridgeshire County Council,13-May-16,20557745-13323427,-926.11,Making Space#1,Care Establishment,3 - Operations - Countywide Services,Countywide PD Service - Care,Nursing Independent Sector
Cambridgeshire County Council,13-May-16,20559022-13323428,-926.11,Making Space#1,Care Establishment,3 - Operations - Countywide Services,Countywide PD Service - Care,Nursing Independent Sector
Cambridgeshire County Council,13-May-16,20559024-13323430,-926.11,Making Space#1,Care Establishment,3 - Operations - Countywide Services,Countywide PD Service - Care,Nursing Independent Sector
Cambridgeshire County Council,13-May-16,20559025-13323431,-926.11,Making Space#1,Care Establishment,3 - Operations - Countywide Services,Countywide PD Service - Care,Nursing Independent Sector
Cambridgeshire County Council,13-May-16,20598388-13323365,-926.11,Making Space#1,Care Establishment,3 - Operations - Countywide Services,Countywide PD Service - Care,Nursing Independent Sector
Cambridgeshire County Council,13-May-16,20598390-13323367,-926.11,Making Space#1,Care Establishment,3 - Operations - Countywide Services,Countywide PD Service - Care,Nursing Independent Sector
Cambridgeshire County Council,13-May-16,20598392-13323369,-926.11,Making Space#1,Care Establishment,3 - Operations - Countywide Services,Countywide PD Service - Care,Nursing Independent Sector
Cambridgeshire County Council,13-May-16,20598394-13323371,-926.11,Making Space#1,Care Establishment,3 - Operations - Countywide Services,Countywide PD Service - Care,Nursing Independent Sector
Cambridgeshire County Council,13-May-16,20598395-13323372,-926.11,Making Space#1,Care Establishment,3 - Operations - Countywide Services,Countywide PD Service - Care,Nursing Independent Sector
Cambridgeshire County Council,13-May-16,20598397-13323374,-926.11,Making Space#1,Care Establishment,3 - Operations - Countywide Services,Countywide PD Service - Care,Nursing Independent Sector
Cambridgeshire County Council,13-May-16,20598399-13323376,-926.11,Making Space#1,Care Establishment,3 - Operations - Countywide Services,Countywide PD Service - Care,Nursing Independent Sector
Cambridgeshire County Council,13-May-16,20598405-13323382,-926.11,Making Space#1,Care Establishment,3 - Operations - Countywide Services,Countywide PD Service - Care,Nursing Independent Sector
Cambridgeshire County Council,13-May-16,20598406-13323383,-926.11,Making Space#1,Care Establishment,3 - Operations - Countywide Services,Countywide PD Service - Care,Nursing Independent Sector
Cambridgeshire County Council,13-May-16,20598407-13323384,-926.11,Making Space#1,Care Establishment,3 - Operations - Countywide Services,Countywide PD Service - Care,Nursing Independent Sector
Cambridgeshire County Council,13-May-16,20598408-13323385,-926.11,Making Space#1,Care Establishment,3 - Operations - Countywide Services,Countywide PD Service - Care,Nursing Independent Sector
Cambridgeshire County Council,13-May-16,20598409-13323386,-926.11,Making Space#1,Care Establishment,3 - Operations - Countywide Services,Countywide PD Service - Care,Nursing Independent Sector
Cambridgeshire County Council,13-May-16,20598410-13323387,-926.11,Making Space#1,Care Establishment,3 - Operations - Countywide Services,Countywide PD Service - Care,Nursing Independent Sector
Cambridgeshire County Council,13-May-16,20598412-13323389,-926.11,Making Space#1,Care Establishment,3 - Operations - Countywide Services,Countywide PD Service - Care,Nursing Independent Sector
Cambridgeshire County Council,13-May-16,20598416-13323393,-926.11,Making Space#1,Care Establishment,3 - Operations - Countywide Services,Countywide PD Service - Care,Nursing Independent Sector
Cambridgeshire County Council,13-May-16,20598419-13323396,-926.11,Making Space#1,Care Establishment,3 - Operations - Countywide Services,Countywide PD Service - Care,Nursing Independent Sector
Cambridgeshire County Council,13-May-16,20598420-13323397,-926.11,Making Space#1,Care Establishment,3 - Operations - Countywide Services,Countywide PD Service - Care,Nursing Independent Sector
Cambridgeshire County Council,13-May-16,20598422-13323399,-926.11,Making Space#1,Care Establishment,3 - Operations - Countywide Services,Countywide PD Service - Care,Nursing Independent Sector
Cambridgeshire County Council,13-May-16,20598424-13323401,-926.11,Making Space#1,Care Establishment,3 - Operations - Countywide Services,Countywide PD Service - Care,Nursing Independent Sector
Cambridgeshire County Council,13-May-16,20598425-13323402,-926.11,Making Space#1,Care Establishment,3 - Operations - Countywide Services,Countywide PD Service - Care,Nursing Independent Sector
Cambridgeshire County Council,13-May-16,20598426-13323403,-926.11,Making Space#1,Care Establishment,3 - Operations - Countywide Services,Countywide PD Service - Care,Nursing Independent Sector
Cambridgeshire County Council,13-May-16,20599379-13323557,-926.11,Making Space#1,Care Establishment,3 - Operations - Countywide Services,Countywide PD Service - Care,Nursing Independent Sector
Cambridgeshire County Council,13-May-16,20599385-13323563,-926.11,Making Space#1,Care Establishment,3 - Operations - Countywide Services,Countywide PD Service - Care,Nursing Independent Sector
Cambridgeshire County Council,13-May-16,20599388-13323566,-926.11,Making Space#1,Care Establishment,3 - Operations - Countywide Services,Countywide PD Service - Care,Nursing Independent Sector
Cambridgeshire County Council,13-May-16,20599389-13323567,-926.11,Making Space#1,Care Establishment,3 - Operations - Countywide Services,Countywide PD Service - Care,Nursing Independent Sector
Cambridgeshire County Council,13-May-16,20599390-13323568,-926.11,Making Space#1,Care Establishment,3 - Operations - Countywide Services,Countywide PD Service - Care,Nursing Independent Sector
Cambridgeshire County Council,13-May-16,20599391-13323569,-926.11,Making Space#1,Care Establishment,3 - Operations - Countywide Services,Countywide PD Service - Care,Nursing Independent Sector
Cambridgeshire County Council,13-May-16,20599392-13323570,-926.11,Making Space#1,Care Establishment,3 - Operations - Countywide Services,Countywide PD Service - Care,Nursing Independent Sector
Cambridgeshire County Council,13-May-16,20599394-13323572,-926.11,Making Space#1,Care Establishment,3 - Operations - Countywide Services,Countywide PD Service - Care,Nursing Independent Sector
Cambridgeshire County Council,13-May-16,20599395-13323573,-926.11,Making Space#1,Care Establishment,3 - Operations - Countywide Services,Countywide PD Service - Care,Nursing Independent Sector
Cambridgeshire County Council,13-May-16,20599398-13323576,-926.11,Making Space#1,Care Establishment,3 - Operations - Countywide Services,Countywide PD Service - Care,Nursing Independent Sector
Cambridgeshire County Council,13-May-16,20599399-13323577,-926.11,Making Space#1,Care Establishment,3 - Operations - Countywide Services,Countywide PD Service - Care,Nursing Independent Sector
Cambridgeshire County Council,13-May-16,20649858-13323475,-926.11,Making Space#1,Care Establishment,3 - Operations - Countywide Services,Countywide PD Service - Care,Nursing Independent Sector
Cambridgeshire County Council,13-May-16,20649863-13323480,-926.11,Making Space#1,Care Establishment,3 - Operations - Countywide Services,Countywide PD Service - Care,Nursing Independent Sector
Cambridgeshire County Council,13-May-16,20649864-13323481,-926.11,Making Space#1,Care Establishment,3 - Operations - Countywide Services,Countywide PD Service - Care,Nursing Independent Sector
Cambridgeshire County Council,13-May-16,20649865-13323482,-926.11,Making Space#1,Care Establishment,3 - Operations - Countywide Services,Countywide PD Service - Care,Nursing Independent Sector
Cambridgeshire County Council,13-May-16,20649867-13323484,-926.11,Making Space#1,Care Establishment,3 - Operations - Countywide Services,Countywide PD Service - Care,Nursing Independent Sector
Cambridgeshire County Council,13-May-16,20649868-13323485,-926.11,Making Space#1,Care Establishment,3 - Operations - Countywide Services,Countywide PD Service - Care,Nursing Independent Sector
Cambridgeshire County Council,13-May-16,20649870-13323487,-926.11,Making Space#1,Care Establishment,3 - Operations - Countywide Services,Countywide PD Service - Care,Nursing Independent Sector
Cambridgeshire County Council,13-May-16,20649872-13323489,-926.11,Making Space#1,Care Establishment,3 - Operations - Countywide Services,Countywide PD Service - Care,Nursing Independent Sector
Cambridgeshire County Council,13-May-16,20649874-13323491,-926.11,Making Space#1,Care Establishment,3 - Operations - Countywide Services,Countywide PD Service - Care,Nursing Independent Sector
Cambridgeshire County Council,13-May-16,20649875-13323492,-926.11,Making Space#1,Care Establishment,3 - Operations - Countywide Services,Countywide PD Service - Care,Nursing Independent Sector
Cambridgeshire County Council,13-May-16,20649879-13323496,-926.11,Making Space#1,Care Establishment,3 - Operations - Countywide Services,Countywide PD Service - Care,Nursing Independent Sector
Cambridgeshire County Council,13-May-16,20649880-13323497,-926.11,Making Space#1,Care Establishment,3 - Operations - Countywide Services,Countywide PD Service - Care,Nursing Independent Sector
Cambridgeshire County Council,13-May-16,20649882-13323499,-926.11,Making Space#1,Care Establishment,3 - Operations - Countywide Services,Countywide PD Service - Care,Nursing Independent Sector
Cambridgeshire County Council,13-May-16,20649884-13323501,-926.11,Making Space#1,Care Establishment,3 - Operations - Countywide Services,Countywide PD Service - Care,Nursing Independent Sector
Cambridgeshire County Council,13-May-16,20649885-13323502,-926.11,Making Space#1,Care Establishment,3 - Operations - Countywide Services,Countywide PD Service - Care,Nursing Independent Sector
Cambridgeshire County Council,13-May-16,20649891-13323508,-926.11,Making Space#1,Care Establishment,3 - Operations - Countywide Services,Countywide PD Service - Care,Nursing Independent Sector
Cambridgeshire County Council,13-May-16,20649895-13323512,-926.11,Making Space#1,Care Establishment,3 - Operations - Countywide Services,Countywide PD Service - Care,Nursing Independent Sector
Cambridgeshire County Council,13-May-16,20649897-13323514,-926.11,Making Space#1,Care Establishment,3 - Operations - Countywide Services,Countywide PD Service - Care,Nursing Independent Sector
Cambridgeshire County Council,13-May-16,20649900-13323517,-926.11,Making Space#1,Care Establishment,3 - Operations - Countywide Services,Countywide PD Service - Care,Nursing Independent Sector
Cambridgeshire County Council,13-May-16,20649902-13323519,-926.11,Making Space#1,Care Establishment,3 - Operations - Countywide Services,Countywide PD Service - Care,Nursing Independent Sector
Cambridgeshire County Council,13-May-16,20649905-13323522,-926.11,Making Space#1,Care Establishment,3 - Operations - Countywide Services,Countywide PD Service - Care,Nursing Independent Sector
Cambridgeshire County Council,13-May-16,20649907-13323524,-926.11,Making Space#1,Care Establishment,3 - Operations - Countywide Services,Countywide PD Service - Care,Nursing Independent Sector
Cambridgeshire County Council,13-May-16,20649908-13323525,-926.11,Making Space#1,Care Establishment,3 - Operations - Countywide Services,Countywide PD Service - Care,Nursing Independent Sector
Cambridgeshire County Council,13-May-16,20649909-13323526,-926.11,Making Space#1,Care Establishment,3 - Operations - Countywide Services,Countywide PD Service - Care,Nursing Independent Sector
Cambridgeshire County Council,13-May-16,20649910-13323527,-926.11,Making Space#1,Care Establishment,3 - Operations - Countywide Services,Countywide PD Service - Care,Nursing Independent Sector
Cambridgeshire County Council,13-May-16,20649914-13323531,-926.11,Making Space#1,Care Establishment,3 - Operations - Countywide Services,Countywide PD Service - Care,Nursing Independent Sector
Cambridgeshire County Council,13-May-16,20649915-13323532,-926.11,Making Space#1,Care Establishment,3 - Operations - Countywide Services,Countywide PD Service - Care,Nursing Independent Sector
Cambridgeshire County Council,13-May-16,20649917-13323534,-926.11,Making Space#1,Care Establishment,3 - Operations - Countywide Services,Countywide PD Service - Care,Nursing Independent Sector
Cambridgeshire County Council,13-May-16,20649918-13323535,-926.11,Making Space#1,Care Establishment,3 - Operations - Countywide Services,Countywide PD Service - Care,Nursing Independent Sector
Cambridgeshire County Council,13-May-16,20649923-13323540,-926.11,Making Space#1,Care Establishment,3 - Operations - Countywide Services,Countywide PD Service - Care,Nursing Independent Sector
Cambridgeshire County Council,13-May-16,20649924-13323541,-926.11,Making Space#1,Care Establishment,3 - Operations - Countywide Services,Countywide PD Service - Care,Nursing Independent Sector
Cambridgeshire County Council,13-May-16,20649925-13323542,-926.11,Making Space#1,Care Establishment,3 - Operations - Countywide Services,Countywide PD Service - Care,Nursing Independent Sector
Cambridgeshire County Council,20-May-16,20679317-13358897,-926.11,Making Space#1,Care Establishment,3 - Operations - Countywide Services,Countywide PD Service - Care,Nursing Independent Sector
Cambridgeshire County Council,20-May-16,20679318-13358898,-926.11,Making Space#1,Care Establishment,3 - Operations - Countywide Services,Countywide PD Service - Care,Nursing Independent Sector
Cambridgeshire County Council,20-May-16,20679320-13358900,-926.11,Making Space#1,Care Establishment,3 - Operations - Countywide Services,Countywide PD Service - Care,Nursing Independent Sector
Cambridgeshire County Council,20-May-16,20679321-13358901,-926.11,Making Space#1,Care Establishment,3 - Operations - Countywide Services,Countywide PD Service - Care,Nursing Independent Sector
Cambridgeshire County Council,20-May-16,20679322-13358902,-926.11,Making Space#1,Care Establishment,3 - Operations - Countywide Services,Countywide PD Service - Care,Nursing Independent Sector
Cambridgeshire County Council,20-May-16,20679324-13358904,-926.11,Making Space#1,Care Establishment,3 - Operations - Countywide Services,Countywide PD Service - Care,Nursing Independent Sector
Cambridgeshire County Council,20-May-16,20679325-13358905,-926.11,Making Space#1,Care Establishment,3 - Operations - Countywide Services,Countywide PD Service - Care,Nursing Independent Sector
Cambridgeshire County Council,20-May-16,20679328-13358908,-926.11,Making Space#1,Care Establishment,3 - Operations - Countywide Services,Countywide PD Service - Care,Nursing Independent Sector
Cambridgeshire County Council,20-May-16,20679329-13358909,-926.11,Making Space#1,Care Establishment,3 - Operations - Countywide Services,Countywide PD Service - Care,Nursing Independent Sector
Cambridgeshire County Council,20-May-16,20679330-13358910,-926.11,Making Space#1,Care Establishment,3 - Operations - Countywide Services,Countywide PD Service - Care,Nursing Independent Sector
Cambridgeshire County Council,20-May-16,20679331-13358911,-926.11,Making Space#1,Care Establishment,3 - Operations - Countywide Services,Countywide PD Service - Care,Nursing Independent Sector
Cambridgeshire County Council,20-May-16,20679333-13358913,-926.11,Making Space#1,Care Establishment,3 - Operations - Countywide Services,Countywide PD Service - Care,Nursing Independent Sector
Cambridgeshire County Council,20-May-16,20680301-13358849,-926.11,Making Space#1,Care Establishment,3 - Operations - Countywide Services,Countywide PD Service - Care,Nursing Independent Sector
Cambridgeshire County Council,20-May-16,20680309-13358857,-926.11,Making Space#1,Care Establishment,3 - Operations - Countywide Services,Countywide PD Service - Care,Nursing Independent Sector
Cambridgeshire County Council,20-May-16,20680312-13358860,-926.11,Making Space#1,Care Establishment,3 - Operations - Countywide Services,Countywide PD Service - Care,Nursing Independent Sector
Cambridgeshire County Council,20-May-16,20680313-13358861,-926.11,Making Space#1,Care Establishment,3 - Operations - Countywide Services,Countywide PD Service - Care,Nursing Independent Sector
Cambridgeshire County Council,20-May-16,20680315-13358863,-926.11,Making Space#1,Care Establishment,3 - Operations - Countywide Services,Countywide PD Service - Care,Nursing Independent Sector
Cambridgeshire County Council,20-May-16,20680316-13358864,-926.11,Making Space#1,Care Establishment,3 - Operations - Countywide Services,Countywide PD Service - Care,Nursing Independent Sector
Cambridgeshire County Council,20-May-16,20680318-13358866,-926.11,Making Space#1,Care Establishment,3 - Operations - Countywide Services,Countywide PD Service - Care,Nursing Independent Sector
Cambridgeshire County Council,20-May-16,20680319-13358867,-926.11,Making Space#1,Care Establishment,3 - Operations - Countywide Services,Countywide PD Service - Care,Nursing Independent Sector
Cambridgeshire County Council,20-May-16,20680321-13358869,-926.11,Making Space#1,Care Establishment,3 - Operations - Countywide Services,Countywide PD Service - Care,Nursing Independent Sector
Cambridgeshire County Council,20-May-16,20680324-13358872,-926.11,Making Space#1,Care Establishment,3 - Operations - Countywide Services,Countywide PD Service - Care,Nursing Independent Sector
Cambridgeshire County Council,20-May-16,20680328-13358876,-926.11,Making Space#1,Care Establishment,3 - Operations - Countywide Services,Countywide PD Service - Care,Nursing Independent Sector
Cambridgeshire County Council,20-May-16,20680333-13358881,-926.11,Making Space#1,Care Establishment,3 - Operations - Countywide Services,Countywide PD Service - Care,Nursing Independent Sector
Cambridgeshire County Council,20-May-16,20680335-13358883,-926.11,Making Space#1,Care Establishment,3 - Operations - Countywide Services,Countywide PD Service - Care,Nursing Independent Sector
Cambridgeshire County Council,20-May-16,20680336-13358884,-926.11,Making Space#1,Care Establishment,3 - Operations - Countywide Services,Countywide PD Service - Care,Nursing Independent Sector
Cambridgeshire County Council,20-May-16,20680341-13358889,-926.11,Making Space#1,Care Establishment,3 - Operations - Countywide Services,Countywide PD Service - Care,Nursing Independent Sector
Cambridgeshire County Council,20-May-16,20680343-13358891,-926.11,Making Space#1,Care Establishment,3 - Operations - Countywide Services,Countywide PD Service - Care,Nursing Independent Sector
Cambridgeshire County Council,20-May-16,20680344-13358892,-926.11,Making Space#1,Care Establishment,3 - Operations - Countywide Services,Countywide PD Service - Care,Nursing Independent Sector
Cambridgeshire County Council,20-May-16,20680346-13358894,-926.11,Making Space#1,Care Establishment,3 - Operations - Countywide Services,Countywide PD Service - Care,Nursing Independent Sector
Cambridgeshire County Council,20-May-16,20680347-13358895,-926.11,Making Space#1,Care Establishment,3 - Operations - Countywide Services,Countywide PD Service - Care,Nursing Independent Sector
Cambridgeshire County Council,20-May-16,20680348-13358896,-926.11,Making Space#1,Care Establishment,3 - Operations - Countywide Services,Countywide PD Service - Care,Nursing Independent Sector
Cambridgeshire County Council,27-May-16,20680548-13394278,-865.74,Cambridge Manor Care Home (Tlc),Care Establishment,2 - Commissioning - Older people Pool,Older People - City & South,Residential Independent Sector
Cambridgeshire County Council,27-May-16,20764180-13401736,-861.13,The Cambridge Housing Society Ltd,Care Establishment,2 - Commissioning - Older people Pool,Older People - City & South,Residential Independent Sector
Cambridgeshire County Council,27-May-16,20764185-13401741,-861.13,The Cambridge Housing Society Ltd,Care Establishment,2 - Commissioning - Older people Pool,Older People - City & South,Residential Independent Sector
Cambridgeshire County Council,27-May-16,20764188-13401744,-861.13,The Cambridge Housing Society Ltd,Care Establishment,2 - Commissioning - Older people Pool,Older People - City & South,Residential Independent Sector
Cambridgeshire County Council,27-May-16,20764191-13401747,-861.13,The Cambridge Housing Society Ltd,Care Establishment,2 - Commissioning - Older people Pool,Older People - City & South,Residential Independent Sector
Cambridgeshire County Council,27-May-16,20764195-13401751,-861.13,The Cambridge Housing Society Ltd,Care Establishment,2 - Commissioning - Older people Pool,Older People - City & South,Residential Independent Sector
Cambridgeshire County Council,27-May-16,20764197-13401753,-861.13,The Cambridge Housing Society Ltd,Care Establishment,2 - Commissioning - Older people Pool,Older People - City & South,Residential Independent Sector
Cambridgeshire County Council,27-May-16,20764198-13401754,-861.13,The Cambridge Housing Society Ltd,Care Establishment,2 - Commissioning - Older people Pool,Older People - City & South,Residential Independent Sector
Cambridgeshire County Council,20-May-16,20679223-13359561,-858.52,Barchester Healthcare Homes Ltd,Care Establishment,2 - Commissioning - Older people Pool,Older People Mental Health E Cambs,Nursing Independent Sector
Cambridgeshire County Council,20-May-16,20681276-13359554,-858.52,Barchester Healthcare Homes Ltd,Care Establishment,2 - Commissioning - Older people Pool,Older People Mental Health E Cambs,Nursing Independent Sector
Cambridgeshire County Council,13-May-16,20655977-13329050,-840,Cambian Fairview Hospital,Care Establishment,2 - Operations - Learning Disability,LDP E Cambs Special Needs,Day and Domicillary Care Independent Sector
Cambridgeshire County Council,13-May-16,20484667-13325713,-835,Longueville Court,Care Establishment,2 - Commissioning - Older people Pool,Hunts O P  Team,Nursing Independent Sector
Cambridgeshire County Council,13-May-16,20484668-13325714,-835,Longueville Court,Care Establishment,2 - Commissioning - Older people Pool,Hunts O P  Team,Nursing Independent Sector
Cambridgeshire County Council,13-May-16,20484671-13325717,-835,Longueville Court,Care Establishment,2 - Commissioning - Older people Pool,Hunts O P  Team,Nursing Independent Sector
Cambridgeshire County Council,13-May-16,20484673-13325719,-835,Longueville Court,Care Establishment,2 - Commissioning - Older people Pool,Older People Mental Health Hunts,Nursing Independent Sector
Cambridgeshire County Council,13-May-16,20484676-13325722,-835,Longueville Court,Care Establishment,2 - Commissioning - Older people Pool,Hunts O P  Team,Nursing Independent Sector
Cambridgeshire County Council,13-May-16,20484677-13325723,-835,Longueville Court,Care Establishment,2 - Commissioning - Older people Pool,Hunts O P  Team,Nursing Independent Sector
Cambridgeshire County Council,13-May-16,20484678-13325724,-835,Longueville Court,Care Establishment,2 - Commissioning - Older people Pool,Older People Mental Health Hunts,Nursing Independent Sector
Cambridgeshire County Council,13-May-16,20484680-13325726,-835,Longueville Court,Care Establishment,2 - Commissioning - Older people Pool,Hunts O P  Team,Nursing Independent Sector
Cambridgeshire County Council,13-May-16,20484682-13325728,-835,Longueville Court,Care Establishment,2 - Commissioning - Older people Pool,Older People Mental Health Hunts,Nursing Independent Sector
Cambridgeshire County Council,13-May-16,20484684-13325730,-835,Longueville Court,Care Establishment,2 - Commissioning - Older people Pool,Older People Mental Health Hunts,Nursing Independent Sector
Cambridgeshire County Council,13-May-16,20484690-13325736,-835,Longueville Court,Care Establishment,2 - Commissioning - Older people Pool,Older People Mental Health Hunts,Nursing Independent Sector
Cambridgeshire County Council,13-May-16,20484691-13325737,-835,Longueville Court,Care Establishment,2 - Commissioning - Older people Pool,Older People Mental Health Hunts,Nursing Independent Sector
Cambridgeshire County Council,13-May-16,20484692-13325738,-835,Longueville Court,Care Establishment,2 - Commissioning - Older people Pool,Hunts O P  Team,Nursing Independent Sector
Cambridgeshire County Council,13-May-16,20484695-13325741,-835,Longueville Court,Care Establishment,2 - Commissioning - Older people Pool,Older People Mental Health Hunts,Nursing Independent Sector
Cambridgeshire County Council,13-May-16,20484698-13325744,-835,Longueville Court,Care Establishment,2 - Commissioning - Older people Pool,Hunts O P  Team,Nursing Independent Sector
Cambridgeshire County Council,13-May-16,20484700-13325746,-835,Longueville Court,Care Establishment,2 - Commissioning - Older people Pool,Hunts O P  Team,Nursing Independent Sector
Cambridgeshire County Council,13-May-16,20484701-13325747,-835,Longueville Court,Care Establishment,2 - Commissioning - Older people Pool,Hunts O P  Team,Nursing Independent Sector
Cambridgeshire County Council,13-May-16,20484702-13325748,-835,Longueville Court,Care Establishment,2 - Commissioning - Older people Pool,Older People Mental Health Hunts,Nursing Independent Sector
Cambridgeshire County Council,13-May-16,20484703-13325749,-835,Longueville Court,Care Establishment,2 - Commissioning - Older people Pool,Hunts O P  Team,Nursing Independent Sector
Cambridgeshire County Council,13-May-16,20484704-13325750,-835,Longueville Court,Care Establishment,2 - Commissioning - Older people Pool,Hunts O P  Team,Nursing Independent Sector
Cambridgeshire County Council,13-May-16,20484707-13325753,-835,Longueville Court,Care Establishment,2 - Commissioning - Older people Pool,Older People Mental Health Hunts,Nursing Independent Sector
Cambridgeshire County Council,13-May-16,20484708-13325754,-835,Longueville Court,Care Establishment,2 - Commissioning - Older people Pool,Older People Mental Health Hunts,Nursing Independent Sector
Cambridgeshire County Council,13-May-16,20484710-13325756,-835,Longueville Court,Care Establishment,2 - Commissioning - Older people Pool,Older People Mental Health Hunts,Nursing Independent Sector
Cambridgeshire County Council,13-May-16,20484712-13325758,-835,Longueville Court,Care Establishment,2 - Commissioning - Older people Pool,Hunts O P  Team,Nursing Independent Sector
Cambridgeshire County Council,13-May-16,20484716-13325762,-835,Longueville Court,Care Establishment,2 - Commissioning - Older people Pool,Hunts O P  Team,Nursing Independent Sector
Cambridgeshire County Council,13-May-16,20521004-13325689,-835,Longueville Court,Care Establishment,2 - Commissioning - Older people Pool,Hunts O P  Team,Nursing Independent Sector
Cambridgeshire County Council,13-May-16,20521005-13325690,-835,Longueville Court,Care Establishment,2 - Commissioning - Older people Pool,Older People Mental Health Hunts,Nursing Independent Sector
Cambridgeshire County Council,13-May-16,20521010-13325693,-835,Longueville Court,Care Establishment,2 - Commissioning - Older people Pool,Older People Mental Health Hunts,Nursing Independent Sector
Cambridgeshire County Council,13-May-16,20521012-13325695,-835,Longueville Court,Care Establishment,2 - Commissioning - Older people Pool,Older People Mental Health Hunts,Nursing Independent Sector
Cambridgeshire County Council,13-May-16,20521013-13325696,-835,Longueville Court,Care Establishment,2 - Commissioning - Older people Pool,Hunts O P  Team,Nursing Independent Sector
Cambridgeshire County Council,13-May-16,20521015-13325698,-835,Longueville Court,Care Establishment,2 - Commissioning - Older people Pool,Hunts O P  Team,Nursing Independent Sector
Cambridgeshire County Council,13-May-16,20521016-13325699,-835,Longueville Court,Care Establishment,2 - Commissioning - Older people Pool,Hunts O P  Team,Nursing Independent Sector
Cambridgeshire County Council,13-May-16,20521019-13325702,-835,Longueville Court,Care Establishment,2 - Commissioning - Older people Pool,Older People Mental Health Hunts,Nursing Independent Sector
Cambridgeshire County Council,13-May-16,20521020-13325703,-835,Longueville Court,Care Establishment,2 - Commissioning - Older people Pool,Hunts O P  Team,Nursing Independent Sector
Cambridgeshire County Council,13-May-16,20521022-13325705,-835,Longueville Court,Care Establishment,2 - Commissioning - Older people Pool,Older People Mental Health Hunts,Nursing Independent Sector
Cambridgeshire County Council,13-May-16,20521023-13325706,-835,Longueville Court,Care Establishment,2 - Commissioning - Older people Pool,Hunts O P  Team,Nursing Independent Sector
Cambridgeshire County Council,13-May-16,20521024-13325707,-835,Longueville Court,Care Establishment,2 - Commissioning - Older people Pool,Hunts O P  Team,Nursing Independent Sector
Cambridgeshire County Council,13-May-16,20521025-13325708,-835,Longueville Court,Care Establishment,2 - Commissioning - Older people Pool,Hunts O P  Team,Nursing Independent Sector
Cambridgeshire County Council,13-May-16,20521026-13325709,-835,Longueville Court,Care Establishment,2 - Commissioning - Older people Pool,Older People Mental Health Hunts,Nursing Independent Sector
Cambridgeshire County Council,13-May-16,20521027-13325710,-835,Longueville Court,Care Establishment,2 - Commissioning - Older people Pool,Older People Mental Health Hunts,Nursing Independent Sector
Cambridgeshire County Council,13-May-16,20524992-13325670,-835,Longueville Court,Care Establishment,2 - Commissioning - Older people Pool,Hunts O P  Team,Nursing Independent Sector
Cambridgeshire County Council,13-May-16,20524999-13325675,-835,Longueville Court,Care Establishment,2 - Commissioning - Older people Pool,Hunts O P  Team,Nursing Independent Sector
Cambridgeshire County Council,13-May-16,20525002-13325677,-835,Longueville Court,Care Establishment,2 - Commissioning - Older people Pool,Older People Mental Health Hunts,Nursing Independent Sector
Cambridgeshire County Council,13-May-16,20525003-13325678,-835,Longueville Court,Care Establishment,2 - Commissioning - Older people Pool,Hunts O P  Team,Nursing Independent Sector
Cambridgeshire County Council,13-May-16,20525013-13325686,-835,Longueville Court,Care Establishment,2 - Commissioning - Older people Pool,Older People Mental Health Hunts,Nursing Independent Sector
Cambridgeshire County Council,13-May-16,20525014-13325687,-835,Longueville Court,Care Establishment,2 - Commissioning - Older people Pool,Older People Mental Health Hunts,Nursing Independent Sector
Cambridgeshire County Council,13-May-16,20525015-13325688,-835,Longueville Court,Care Establishment,2 - Commissioning - Older people Pool,Older People Mental Health Hunts,Nursing Independent Sector
Cambridgeshire County Council,13-May-16,20525019-13325661,-835,Longueville Court,Care Establishment,2 - Commissioning - Older people Pool,Older People Mental Health Hunts,Nursing Independent Sector
Cambridgeshire County Council,13-May-16,20525020-13325662,-835,Longueville Court,Care Establishment,2 - Commissioning - Older people Pool,Older People Mental Health Hunts,Nursing Independent Sector
Cambridgeshire County Council,13-May-16,20525022-13325664,-835,Longueville Court,Care Establishment,2 - Commissioning - Older people Pool,Older People Mental Health Hunts,Nursing Independent Sector
Cambridgeshire County Council,27-May-16,20772605-13408914,-802.7,Hunters Healthcare (Hunters Down),Care Establishment,2 - Commissioning - Older people Pool,Hunts O P  Team,Residential Independent Sector
Cambridgeshire County Council,13-May-16,20551800-13323459,-793.81,Making Space#1,Care Establishment,3 - Operations - Countywide Services,Countywide PD Service - Care,Nursing Independent Sector
Cambridgeshire County Council,13-May-16,20598404-13323381,-793.81,Making Space#1,Care Establishment,3 - Operations - Countywide Services,Countywide PD Service - Care,Nursing Independent Sector
Cambridgeshire County Council,13-May-16,20649922-13323539,-793.81,Making Space#1,Care Establishment,3 - Operations - Countywide Services,Countywide PD Service - Care,Nursing Independent Sector
Cambridgeshire County Council,20-May-16,20680330-13358878,-793.81,Making Space#1,Care Establishment,3 - Operations - Countywide Services,Countywide PD Service - Care,Nursing Independent Sector
Cambridgeshire County Council,05-May-16,20598932-13279714,-787.68,Gr Gibbs,Care Establishment,2 - Operations - Learning Disability,LDP Huntingdonshire Locality - Care,Residential Independent Sector
Cambridgeshire County Council,05-May-16,20598933-13279715,-787.68,Gr Gibbs,Care Establishment,2 - Operations - Learning Disability,LDP Huntingdonshire Locality - Care,Residential Independent Sector
Cambridgeshire County Council,05-May-16,20598934-13279716,-787.68,Gr Gibbs,Care Establishment,2 - Operations - Learning Disability,LDP Huntingdonshire Locality - Care,Residential Independent Sector
Cambridgeshire County Council,05-May-16,20598937-13279719,-787.68,Gr Gibbs,Care Establishment,2 - Operations - Learning Disability,LDP Huntingdonshire Locality - Care,Residential Independent Sector
Cambridgeshire County Council,05-May-16,20598940-13279722,-787.68,Gr Gibbs,Care Establishment,2 - Operations - Learning Disability,LDP Huntingdonshire Locality - Care,Residential Independent Sector
Cambridgeshire County Council,05-May-16,20598941-13279723,-787.68,Gr Gibbs,Care Establishment,2 - Operations - Learning Disability,LDP Huntingdonshire Locality - Care,Residential Independent Sector
Cambridgeshire County Council,05-May-16,20598942-13279724,-787.68,Gr Gibbs,Care Establishment,2 - Operations - Learning Disability,LDP Huntingdonshire Locality - Care,Residential Independent Sector
Cambridgeshire County Council,05-May-16,20598947-13279729,-787.68,Gr Gibbs,Care Establishment,2 - Operations - Learning Disability,LDP Huntingdonshire Locality - Care,Residential Independent Sector
Cambridgeshire County Council,05-May-16,20598953-13279735,-787.68,Gr Gibbs,Care Establishment,2 - Operations - Learning Disability,LDP Huntingdonshire Locality - Care,Residential Independent Sector
Cambridgeshire County Council,05-May-16,20598961-13279705,-787.68,Gr Gibbs,Care Establishment,2 - Operations - Learning Disability,LDP Huntingdonshire Locality - Care,Residential Independent Sector
Cambridgeshire County Council,05-May-16,20598963-13279707,-787.68,Gr Gibbs,Care Establishment,2 - Operations - Learning Disability,LDP Huntingdonshire Locality - Care,Residential Independent Sector
Cambridgeshire County Council,05-May-16,20598964-13279708,-787.68,Gr Gibbs,Care Establishment,2 - Operations - Learning Disability,LDP Huntingdonshire Locality - Care,Residential Independent Sector
Cambridgeshire County Council,05-May-16,20598968-13279712,-787.68,Gr Gibbs,Care Establishment,2 - Operations - Learning Disability,LDP Huntingdonshire Locality - Care,Residential Independent Sector
Cambridgeshire County Council,13-May-16,20652436-13324479,-758.99,Gr Gibbs,Care Establishment,2 - Operations - Learning Disability,LDP Huntingdonshire Locality - Care,Residential Independent Sector
Cambridgeshire County Council,13-May-16,20652438-13324481,-758.99,Gr Gibbs,Care Establishment,2 - Operations - Learning Disability,LDP Huntingdonshire Locality - Care,Residential Independent Sector
Cambridgeshire County Council,13-May-16,20652439-13324482,-758.99,Gr Gibbs,Care Establishment,2 - Operations - Learning Disability,LDP Huntingdonshire Locality - Care,Residential Independent Sector
Cambridgeshire County Council,13-May-16,20652441-13324484,-758.99,Gr Gibbs,Care Establishment,2 - Operations - Learning Disability,LDP Huntingdonshire Locality - Care,Residential Independent Sector
Cambridgeshire County Council,13-May-16,20652443-13324486,-758.99,Gr Gibbs,Care Establishment,2 - Operations - Learning Disability,LDP Huntingdonshire Locality - Care,Residential Independent Sector
Cambridgeshire County Council,13-May-16,20652444-13324487,-758.99,Gr Gibbs,Care Establishment,2 - Operations - Learning Disability,LDP Huntingdonshire Locality - Care,Residential Independent Sector
Cambridgeshire County Council,13-May-16,20652447-13324490,-758.99,Gr Gibbs,Care Establishment,2 - Operations - Learning Disability,LDP Huntingdonshire Locality - Care,Residential Independent Sector
Cambridgeshire County Council,13-May-16,20652451-13324494,-758.99,Gr Gibbs,Care Establishment,2 - Operations - Learning Disability,LDP Huntingdonshire Locality - Care,Residential Independent Sector
Cambridgeshire County Council,13-May-16,20652452-13324495,-758.99,Gr Gibbs,Care Establishment,2 - Operations - Learning Disability,LDP Huntingdonshire Locality - Care,Residential Independent Sector
Cambridgeshire County Council,13-May-16,20652454-13324497,-758.99,Gr Gibbs,Care Establishment,2 - Operations - Learning Disability,LDP Huntingdonshire Locality - Care,Residential Independent Sector
Cambridgeshire County Council,13-May-16,20652455-13324498,-758.99,Gr Gibbs,Care Establishment,2 - Operations - Learning Disability,LDP Huntingdonshire Locality - Care,Residential Independent Sector
Cambridgeshire County Council,13-May-16,20652457-13324500,-758.99,Gr Gibbs,Care Establishment,2 - Operations - Learning Disability,LDP Huntingdonshire Locality - Care,Residential Independent Sector
Cambridgeshire County Council,13-May-16,20652460-13324503,-758.99,Gr Gibbs,Care Establishment,2 - Operations - Learning Disability,LDP Huntingdonshire Locality - Care,Residential Independent Sector
Cambridgeshire County Council,13-May-16,20652466-13324509,-758.99,Gr Gibbs,Care Establishment,2 - Operations - Learning Disability,LDP Huntingdonshire Locality - Care,Residential Independent Sector
Cambridgeshire County Council,13-May-16,20652471-13324514,-758.99,Gr Gibbs,Care Establishment,2 - Operations - Learning Disability,LDP Huntingdonshire Locality - Care,Residential Independent Sector
Cambridgeshire County Council,13-May-16,20652472-13324515,-758.99,Gr Gibbs,Care Establishment,2 - Operations - Learning Disability,LDP Huntingdonshire Locality - Care,Residential Independent Sector
Cambridgeshire County Council,27-May-16,20599324-13408490,-754.88,Bna Goldsborough Peterborough,Care Establishment,3 - Operations - Countywide Services,Countywide PD Service - Care,Day and Domicillary Care Independent Sector
Cambridgeshire County Council,27-May-16,20599329-13408491,-754.88,Bna Goldsborough Peterborough,Care Establishment,3 - Operations - Countywide Services,Countywide PD Service - Care,Day and Domicillary Care Independent Sector
Cambridgeshire County Council,05-May-16,20598608-13279171,-750,Redacted Personal Data,Individual,2 - Operations - Learning Disability,LDP Huntingdonshire Locality - Care,Direct Payments - Social Services
Cambridgeshire County Council,05-May-16,20598612-13279175,-750,Redacted Personal Data,Individual,2 - Operations - Learning Disability,LDP Huntingdonshire Locality - Care,Direct Payments - Social Services
Cambridgeshire County Council,05-May-16,20598613-13279176,-750,Redacted Personal Data,Individual,2 - Operations - Learning Disability,LDP Huntingdonshire Locality - Care,Direct Payments - Social Services
Cambridgeshire County Council,05-May-16,20598618-13279181,-750,Redacted Personal Data,Individual,2 - Operations - Learning Disability,LDP Huntingdonshire Locality - Care,Direct Payments - Social Services
Cambridgeshire County Council,05-May-16,20598622-13279185,-750,Redacted Personal Data,Individual,2 - Operations - Learning Disability,LDP Huntingdonshire Locality - Care,Direct Payments - Social Services
Cambridgeshire County Council,05-May-16,20599758-13279148,-750,Redacted Personal Data,Individual,2 - Operations - Learning Disability,LDP Huntingdonshire Locality - Care,Direct Payments - Social Services
Cambridgeshire County Council,05-May-16,20599759-13279124,-750,Redacted Personal Data,Individual,2 - Operations - Learning Disability,LDP Huntingdonshire Locality - Care,Direct Payments - Social Services
Cambridgeshire County Council,05-May-16,20599763-13279128,-750,Redacted Personal Data,Individual,2 - Operations - Learning Disability,LDP Huntingdonshire Locality - Care,Direct Payments - Social Services
Cambridgeshire County Council,05-May-16,20599764-13279129,-750,Redacted Personal Data,Individual,2 - Operations - Learning Disability,LDP Huntingdonshire Locality - Care,Direct Payments - Social Services
Cambridgeshire County Council,05-May-16,20599770-13279135,-750,Redacted Personal Data,Individual,2 - Operations - Learning Disability,LDP Huntingdonshire Locality - Care,Direct Payments - Social Services
Cambridgeshire County Council,05-May-16,20599771-13279136,-750,Redacted Personal Data,Individual,2 - Operations - Learning Disability,LDP Huntingdonshire Locality - Care,Direct Payments - Social Services
Cambridgeshire County Council,05-May-16,20599772-13279137,-750,Redacted Personal Data,Individual,2 - Operations - Learning Disability,LDP Huntingdonshire Locality - Care,Direct Payments - Social Services
Cambridgeshire County Council,05-May-16,20599775-13279140,-750,Redacted Personal Data,Individual,2 - Operations - Learning Disability,LDP Huntingdonshire Locality - Care,Direct Payments - Social Services
Cambridgeshire County Council,13-May-16,20599925-13326077,-750,Redacted Personal Data,Individual,3 - Operations - Countywide Services,Countywide PD Service - Care,SDS - Care and support Services
Cambridgeshire County Council,13-May-16,20599926-13326078,-750,Redacted Personal Data,Individual,3 - Operations - Countywide Services,Countywide PD Service - Care,SDS - Care and support Services
Cambridgeshire County Council,27-May-16,20764187-13401743,-738.11,The Cambridge Housing Society Ltd,Care Establishment,2 - Commissioning - Older people Pool,Older People - City & South,Residential Independent Sector
Cambridgeshire County Council,20-May-16,20679225-13359562,-735.87,Barchester Healthcare Homes Ltd,Care Establishment,2 - Commissioning - Older people Pool,Older People Mental Health E Cambs,Nursing Independent Sector
Cambridgeshire County Council,27-May-16,20767100-13398787,-735,Manor House Residential And Nursing,Care Establishment,2 - Commissioning - Older people Pool,Hunts O P  Team,Nursing Independent Sector
Cambridgeshire County Council,27-May-16,20680562-13394274,-721.45,Cambridge Manor Care Home (Tlc),Care Establishment,2 - Commissioning - Older people Pool,Older People - City & South,Residential Independent Sector
Cambridgeshire County Council,27-May-16,20649616-13393361,-693.47,Availl Healthcare,Care Establishment,2 - Operations - Learning Disability,LDP Cambs City - Special Needs,Day and Domicillary Care Independent Sector
Cambridgeshire County Council,13-May-16,20466138-13329860,-684.71,Jacobs Enforcement Agents,Trade Supplier,Control Accounts,VAT - Cambs CC,Debtors - Govt depts VAT input tax
Cambridgeshire County Council,27-May-16,20773174-13394143,-680,Cherry Hinton Nursing Home,Care Establishment,2 - Commissioning - Older people Pool,Older People - City & South,Nursing Independent Sector
Cambridgeshire County Council,27-May-16,20773187-13394125,-680,Cherry Hinton Nursing Home,Care Establishment,2 - Commissioning - Older people Pool,Older People - City & South,Nursing Independent Sector
Cambridgeshire County Council,27-May-16,20773191-13394126,-680,Cherry Hinton Nursing Home,Care Establishment,2 - Commissioning - Older people Pool,Older People - City & South,Nursing Independent Sector
Cambridgeshire County Council,27-May-16,20773193-13394128,-680,Cherry Hinton Nursing Home,Care Establishment,2 - Commissioning - Older people Pool,Older People - City & South,Nursing Independent Sector
Cambridgeshire County Council,27-May-16,20773197-13394129,-680,Cherry Hinton Nursing Home,Care Establishment,2 - Commissioning - Older people Pool,Older People - City & South,Nursing Independent Sector
Cambridgeshire County Council,27-May-16,20773199-13394131,-680,Cherry Hinton Nursing Home,Care Establishment,2 - Commissioning - Older people Pool,Older People - City & South,Nursing Independent Sector
Cambridgeshire County Council,27-May-16,20773216-13394136,-680,Cherry Hinton Nursing Home,Care Establishment,2 - Commissioning - Older people Pool,Older People - City & South,Nursing Independent Sector
Cambridgeshire County Council,27-May-16,20649609-13393367,-668.83,Availl Healthcare,Care Establishment,2 - Operations - Learning Disability,LDP Cambs City - Special Needs,Day and Domicillary Care Independent Sector
Cambridgeshire County Council,27-May-16,20649614-13393372,-668.83,Availl Healthcare,Care Establishment,2 - Operations - Learning Disability,LDP Cambs City - Special Needs,Day and Domicillary Care Independent Sector
Cambridgeshire County Council,20-May-16,20599184-13358585,-666.21,Hereward Care Services Limited,Care Establishment,2 - Commissioning - Older people Pool,Hunts O P  Team,Residential Independent Sector
Cambridgeshire County Council,20-May-16,20599187-13358588,-666.21,Hereward Care Services Limited,Care Establishment,2 - Commissioning - Older people Pool,Hunts O P  Team,Residential Independent Sector
Cambridgeshire County Council,20-May-16,20599190-13358591,-666.21,Hereward Care Services Limited,Care Establishment,2 - Commissioning - Older people Pool,Hunts O P  Team,Residential Independent Sector
Cambridgeshire County Council,20-May-16,20599198-13358599,-666.21,Hereward Care Services Limited,Care Establishment,2 - Commissioning - Older people Pool,Hunts O P  Team,Residential Independent Sector
Cambridgeshire County Council,20-May-16,20599200-13358601,-666.21,Hereward Care Services Limited,Care Establishment,2 - Commissioning - Older people Pool,Hunts O P  Team,Residential Independent Sector
Cambridgeshire County Council,20-May-16,20599202-13358603,-666.21,Hereward Care Services Limited,Care Establishment,2 - Commissioning - Older people Pool,Hunts O P  Team,Residential Independent Sector
Cambridgeshire County Council,20-May-16,20599203-13358604,-666.21,Hereward Care Services Limited,Care Establishment,2 - Commissioning - Older people Pool,Hunts O P  Team,Residential Independent Sector
Cambridgeshire County Council,20-May-16,20599204-13358605,-666.21,Hereward Care Services Limited,Care Establishment,2 - Commissioning - Older people Pool,Hunts O P  Team,Residential Independent Sector
Cambridgeshire County Council,20-May-16,20599206-13358607,-666.21,Hereward Care Services Limited,Care Establishment,2 - Commissioning - Older people Pool,Hunts O P  Team,Residential Independent Sector
Cambridgeshire County Council,20-May-16,20599210-13358611,-666.21,Hereward Care Services Limited,Care Establishment,2 - Commissioning - Older people Pool,Hunts O P  Team,Residential Independent Sector
Cambridgeshire County Council,20-May-16,20599211-13358612,-666.21,Hereward Care Services Limited,Care Establishment,2 - Commissioning - Older people Pool,Hunts O P  Team,Residential Independent Sector
Cambridgeshire County Council,20-May-16,20599212-13358531,-666.21,Hereward Care Services Limited,Care Establishment,2 - Commissioning - Older people Pool,Hunts O P  Team,Residential Independent Sector
Cambridgeshire County Council,20-May-16,20599213-13358532,-666.21,Hereward Care Services Limited,Care Establishment,2 - Commissioning - Older people Pool,Hunts O P  Team,Residential Independent Sector
Cambridgeshire County Council,20-May-16,20599217-13358536,-666.21,Hereward Care Services Limited,Care Establishment,2 - Commissioning - Older people Pool,Hunts O P  Team,Residential Independent Sector
Cambridgeshire County Council,20-May-16,20599218-13358537,-666.21,Hereward Care Services Limited,Care Establishment,2 - Commissioning - Older people Pool,Hunts O P  Team,Residential Independent Sector
Cambridgeshire County Council,20-May-16,20599220-13358539,-666.21,Hereward Care Services Limited,Care Establishment,2 - Commissioning - Older people Pool,Hunts O P  Team,Residential Independent Sector
Cambridgeshire County Council,27-May-16,20649611-13393369,-661.95,Availl Healthcare,Care Establishment,2 - Operations - Learning Disability,LDP Cambs City - Special Needs,Day and Domicillary Care Independent Sector
Cambridgeshire County Council,27-May-16,20649619-13393364,-661.95,Availl Healthcare,Care Establishment,2 - Operations - Learning Disability,LDP Cambs City - Special Needs,Day and Domicillary Care Independent Sector
Cambridgeshire County Council,27-May-16,20649618-13393363,-658.59,Availl Healthcare,Care Establishment,2 - Operations - Learning Disability,LDP Cambs City - Special Needs,Day and Domicillary Care Independent Sector
Cambridgeshire County Council,27-May-16,20649610-13393368,-638.43,Availl Healthcare,Care Establishment,2 - Operations - Learning Disability,LDP Cambs City - Special Needs,Day and Domicillary Care Independent Sector
Cambridgeshire County Council,27-May-16,20649612-13393370,-638.43,Availl Healthcare,Care Establishment,2 - Operations - Learning Disability,LDP Cambs City - Special Needs,Day and Domicillary Care Independent Sector
Cambridgeshire County Council,27-May-16,20649615-13393373,-638.43,Availl Healthcare,Care Establishment,2 - Operations - Learning Disability,LDP Cambs City - Special Needs,Day and Domicillary Care Independent Sector
Cambridgeshire County Council,27-May-16,20649620-13393365,-638.43,Availl Healthcare,Care Establishment,2 - Operations - Learning Disability,LDP Cambs City - Special Needs,Day and Domicillary Care Independent Sector
Cambridgeshire County Council,27-May-16,20650762-13406471,-630.23,Mihomecare Ltd (Enara Hunts),Care Establishment,2 - Commissioning - Older people Pool,Hunts O P  Team,Day and Domicillary Care Independent Sector
Cambridgeshire County Council,09-May-16,20499551-13299926,-624,Guidant Group,Trade Supplier,CSC,Director of Social Services,Pay - Agency Staff
Cambridgeshire County Council,27-May-16,20650763-13406472,-622,Mihomecare Ltd (Enara Hunts),Care Establishment,2 - Commissioning - Older people Pool,Hunts O P  Team,Day and Domicillary Care Independent Sector
Cambridgeshire County Council,27-May-16,20650764-13406473,-622,Mihomecare Ltd (Enara Hunts),Care Establishment,2 - Commissioning - Older people Pool,Hunts O P  Team,Day and Domicillary Care Independent Sector
Cambridgeshire County Council,16-May-16,20471598-13338198,-619.61,Banner T/A Supplies Team Limited,Trade Supplier,Corporate Services,Support - Business Support,Consumables / cables / toner
Cambridgeshire County Council,27-May-16,20764940-13408693,-583,Ringshill Care Home,Care Establishment,2 - Commissioning - Older people Pool,Hunts O P  Team,Residential Independent Sector
Cambridgeshire County Council,27-May-16,20764941-13408694,-583,Ringshill Care Home,Care Establishment,2 - Commissioning - Older people Pool,Hunts O P  Team,Residential Independent Sector
Cambridgeshire County Council,27-May-16,20773206-13394135,-582.86,Cherry Hinton Nursing Home,Care Establishment,2 - Commissioning - Older people Pool,Older People - City & South,Nursing Independent Sector
Cambridgeshire County Council,13-May-16,20654680-13331944,-580.47,Avery House Care Home,Care Establishment,2 - Commissioning - Older people Pool,Older People - Fenland,Residential Independent Sector
Cambridgeshire County Council,13-May-16,20654691-13331946,-580.47,Avery House Care Home,Care Establishment,2 - Commissioning - Older people Pool,Older People - Fenland,Residential Independent Sector
Cambridgeshire County Council,13-May-16,20655651-13331965,-580.47,Avery House Care Home,Care Establishment,2 - Commissioning - Older people Pool,Older People - Fenland,Residential Independent Sector
Cambridgeshire County Council,13-May-16,20655690-13331970,-580.47,Avery House Care Home,Care Establishment,2 - Commissioning - Older people Pool,Older People - Fenland,Residential Independent Sector
Cambridgeshire County Council,27-May-16,20754705-13405212,-578.43,Care Full Care Ltd,Care Establishment,2 - Commissioning - Older people Pool,Older People - City & South,Short Term Other
Cambridgeshire County Council,27-May-16,20762699-13405195,-578.43,Care Full Care Ltd,Care Establishment,2 - Commissioning - Older people Pool,Older People - City & South,Short Term Other
Cambridgeshire County Council,27-May-16,20762701-13405197,-578.43,Care Full Care Ltd,Care Establishment,2 - Commissioning - Older people Pool,Older People - City & South,Short Term Other
Cambridgeshire County Council,27-May-16,20680565-13394277,-577.16,Cambridge Manor Care Home (Tlc),Care Establishment,2 - Commissioning - Older people Pool,Older People - City & South,Residential Independent Sector
Cambridgeshire County Council,27-May-16,20653216-13405055,-577.08,Woodlands Care Centre,Care Establishment,2 - Commissioning - Older people Pool,Older People - City & South,Nursing Independent Sector
Cambridgeshire County Council,27-May-16,20653219-13405056,-577.08,Woodlands Care Centre,Care Establishment,2 - Commissioning - Older people Pool,Older People - City & South,Nursing Independent Sector
Cambridgeshire County Council,27-May-16,20653222-13405057,-577.08,Woodlands Care Centre,Care Establishment,2 - Commissioning - Older people Pool,Older People - City & South,Nursing Independent Sector
Cambridgeshire County Council,27-May-16,20653225-13405059,-577.08,Woodlands Care Centre,Care Establishment,2 - Commissioning - Older people Pool,Older People - City & South,Nursing Independent Sector
Cambridgeshire County Council,27-May-16,20653226-13405060,-577.08,Woodlands Care Centre,Care Establishment,2 - Commissioning - Older people Pool,Older People - City & South,Nursing Independent Sector
Cambridgeshire County Council,13-May-16,20655191-13327163,-577.08,Barchester Healthcare Homes Ltd,Care Establishment,2 - Commissioning - Older people Pool,Older People - City & South,Nursing Independent Sector
Cambridgeshire County Council,13-May-16,20655193-13327164,-577.08,Barchester Healthcare Homes Ltd,Care Establishment,2 - Commissioning - Older people Pool,Older People - City & South,Nursing Independent Sector
Cambridgeshire County Council,27-May-16,20678631-13405040,-577.08,Woodlands Care Centre,Care Establishment,2 - Commissioning - Older people Pool,Older People - City & South,Nursing Independent Sector
Cambridgeshire County Council,27-May-16,20678633-13405041,-577.08,Woodlands Care Centre,Care Establishment,2 - Commissioning - Older people Pool,Older People - City & South,Nursing Independent Sector
Cambridgeshire County Council,27-May-16,20678645-13405043,-577.08,Woodlands Care Centre,Care Establishment,2 - Commissioning - Older people Pool,Older People - City & South,Nursing Independent Sector
Cambridgeshire County Council,27-May-16,20652399-13406520,-576.68,Mihomecare Ltd (Enara Hunts),Care Establishment,2 - Commissioning - Older people Pool,Hunts O P  Team,Day and Domicillary Care Independent Sector
Cambridgeshire County Council,27-May-16,20652402-13406521,-576.68,Mihomecare Ltd (Enara Hunts),Care Establishment,2 - Commissioning - Older people Pool,Hunts O P  Team,Day and Domicillary Care Independent Sector
Cambridgeshire County Council,27-May-16,20655834-13406393,-576.68,Mihomecare Ltd (Enara Hunts),Care Establishment,2 - Commissioning - Older people Pool,Hunts O P  Team,Day and Domicillary Care Independent Sector
Cambridgeshire County Council,27-May-16,20655835-13406394,-576.68,Mihomecare Ltd (Enara Hunts),Care Establishment,2 - Commissioning - Older people Pool,Hunts O P  Team,Day and Domicillary Care Independent Sector
Cambridgeshire County Council,27-May-16,20655836-13406395,-576.68,Mihomecare Ltd (Enara Hunts),Care Establishment,2 - Commissioning - Older people Pool,Hunts O P  Team,Day and Domicillary Care Independent Sector
Cambridgeshire County Council,27-May-16,20656706-13406398,-576.68,Mihomecare Ltd (Enara Hunts),Care Establishment,2 - Commissioning - Older people Pool,Hunts O P  Team,Day and Domicillary Care Independent Sector
Cambridgeshire County Council,27-May-16,20680842-13392891,-575.86,Glennfield Care Centre (Op),Care Establishment,2 - Commissioning - Older people Pool,Hunts O P  Team,Residential Independent Sector
Cambridgeshire County Council,27-May-16,20680843-13392892,-575.86,Glennfield Care Centre (Op),Care Establishment,2 - Commissioning - Older people Pool,Hunts O P  Team,Residential Independent Sector
Cambridgeshire County Council,27-May-16,20680844-13392893,-575.86,Glennfield Care Centre (Op),Care Establishment,2 - Commissioning - Older people Pool,Hunts O P  Team,Residential Independent Sector
Cambridgeshire County Council,27-May-16,20762712-13405204,-575.63,Care Full Care Ltd,Care Establishment,2 - Commissioning - Older people Pool,Older People - City & South,Short Term Other
Cambridgeshire County Council,27-May-16,20773280-13405826,-574.22,Barchester Healthcare Homes Ltd,Care Establishment,2 - Commissioning - Older people Pool,East Cambs - O P Team,Nursing Independent Sector
Cambridgeshire County Council,27-May-16,20770128-13398803,-566.39,Millfield Lodge Care Home Ltd,Care Establishment,2 - Commissioning - Older people Pool,Hunts O P  Team,Nursing Independent Sector
Cambridgeshire County Council,27-May-16,20770129-13398804,-566.39,Millfield Lodge Care Home Ltd,Care Establishment,2 - Commissioning - Older people Pool,Hunts O P  Team,Nursing Independent Sector
Cambridgeshire County Council,05-May-16,20598952-13279734,-562.63,Gr Gibbs,Care Establishment,2 - Operations - Learning Disability,LDP Huntingdonshire Locality - Care,Residential Independent Sector
Cambridgeshire County Council,27-May-16,20657159-13406342,-560.21,Mihomecare Ltd (Enara Hunts),Care Establishment,2 - Commissioning - Older people Pool,Hunts O P  Team,Day and Domicillary Care Independent Sector
Cambridgeshire County Council,27-May-16,20657170-13406344,-560.21,Mihomecare Ltd (Enara Hunts),Care Establishment,2 - Commissioning - Older people Pool,Hunts O P  Team,Day and Domicillary Care Independent Sector
Cambridgeshire County Council,27-May-16,20754697-13405208,-558.83,Care Full Care Ltd,Care Establishment,2 - Commissioning - Older people Pool,Older People - City & South,Short Term Other
Cambridgeshire County Council,27-May-16,20754703-13405210,-558.83,Care Full Care Ltd,Care Establishment,2 - Commissioning - Older people Pool,Older People - City & South,Short Term Other
Cambridgeshire County Council,27-May-16,20762709-13405201,-558.83,Care Full Care Ltd,Care Establishment,2 - Commissioning - Older people Pool,Older People - City & South,Short Term Other
Cambridgeshire County Council,27-May-16,20762711-13405203,-558.83,Care Full Care Ltd,Care Establishment,2 - Commissioning - Older people Pool,Older People - City & South,Short Term Other
Cambridgeshire County Council,27-May-16,20651607-13408696,-553,Ringshill Care Home,Care Establishment,2 - Commissioning - Older people Pool,Older People - Fenland,Nursing Independent Sector
Cambridgeshire County Council,27-May-16,20651619-13408700,-553,Ringshill Care Home,Care Establishment,2 - Commissioning - Older people Pool,Older People - Fenland,Nursing Independent Sector
Cambridgeshire County Council,27-May-16,20651621-13408702,-553,Ringshill Care Home,Care Establishment,2 - Commissioning - Older people Pool,Older People - Fenland,Nursing Independent Sector
Cambridgeshire County Council,27-May-16,20649346-13404978,-549.74,St Georges Nursing Home,Care Establishment,2 - Commissioning - Older people Pool,Older People - City & South,Nursing Independent Sector
Cambridgeshire County Council,27-May-16,20681658-13394349,-549.36,Cambridge Manor Care Home (Tlc),Care Establishment,2 - Commissioning - Older people Pool,Older People - City & South,Nursing Independent Sector
Cambridgeshire County Council,13-May-16,20652459-13324502,-542.14,Gr Gibbs,Care Establishment,2 - Operations - Learning Disability,LDP Huntingdonshire Locality - Care,Residential Independent Sector
Cambridgeshire County Council,27-May-16,20599981-13398713,-541.38,The Elms Nursing Home,Care Establishment,2 - Commissioning - Older people Pool,Older People - Fenland,Nursing Independent Sector
Cambridgeshire County Council,27-May-16,20599982-13398714,-541.38,The Elms Nursing Home,Care Establishment,2 - Commissioning - Older people Pool,Older People - Fenland,Nursing Independent Sector
Cambridgeshire County Council,27-May-16,20599983-13398715,-541.38,The Elms Nursing Home,Care Establishment,2 - Commissioning - Older people Pool,Older People - Fenland,Nursing Independent Sector
Cambridgeshire County Council,13-May-16,20484172-13328045,-538,Mns Care Plc - Mabbs Hall Care Home,Care Establishment,2 - Commissioning - Older people Pool,East Cambs - O P Team,Nursing Independent Sector
Cambridgeshire County Council,13-May-16,20484174-13328046,-538,Mns Care Plc - Mabbs Hall Care Home,Care Establishment,2 - Commissioning - Older people Pool,East Cambs - O P Team,Nursing Independent Sector
Cambridgeshire County Council,13-May-16,20484182-13328047,-538,Mns Care Plc - Mabbs Hall Care Home,Care Establishment,2 - Commissioning - Older people Pool,East Cambs - O P Team,Nursing Independent Sector
Cambridgeshire County Council,13-May-16,20484205-13328049,-538,Mns Care Plc - Mabbs Hall Care Home,Care Establishment,2 - Commissioning - Older people Pool,East Cambs - O P Team,Nursing Independent Sector
Cambridgeshire County Council,05-May-16,20598589-13279153,-535.71,Redacted Personal Data,Individual,2 - Operations - Learning Disability,LDP Huntingdonshire Locality - Care,Direct Payments - Social Services
Cambridgeshire County Council,27-May-16,20650761-13406470,-535.49,Mihomecare Ltd (Enara Hunts),Care Establishment,2 - Commissioning - Older people Pool,Hunts O P  Team,Day and Domicillary Care Independent Sector
Cambridgeshire County Council,20-May-16,20681980-13357652,-535,Llys Gwyn Residential Home,Care Establishment,2 - Commissioning - Older people Pool,Older People Mental Health City & South,Residential Independent Sector
Cambridgeshire County Council,20-May-16,20681984-13357656,-535,Llys Gwyn Residential Home,Care Establishment,2 - Commissioning - Older people Pool,Older People Mental Health City & South,Residential Independent Sector
Cambridgeshire County Council,20-May-16,20681986-13357658,-535,Llys Gwyn Residential Home,Care Establishment,2 - Commissioning - Older people Pool,Older People Mental Health City & South,Residential Independent Sector
Cambridgeshire County Council,13-May-16,20522262-13324883,-532.23,Wentworth Croft Residential And Nursing,Care Establishment,2 - Commissioning - Older people Pool,Older People Mental Health Fenland,Nursing Independent Sector
Cambridgeshire County Council,13-May-16,20522263-13324884,-532.23,Wentworth Croft Residential And Nursing,Care Establishment,2 - Commissioning - Older people Pool,Older People Mental Health Fenland,Nursing Independent Sector
Cambridgeshire County Council,13-May-16,20522264-13324885,-532.23,Wentworth Croft Residential And Nursing,Care Establishment,2 - Commissioning - Older people Pool,Older People Mental Health Fenland,Nursing Independent Sector
Cambridgeshire County Council,13-May-16,20522267-13324888,-532.23,Wentworth Croft Residential And Nursing,Care Establishment,2 - Commissioning - Older people Pool,Older People Mental Health Fenland,Nursing Independent Sector
Cambridgeshire County Council,13-May-16,20522268-13324889,-532.23,Wentworth Croft Residential And Nursing,Care Establishment,2 - Commissioning - Older people Pool,Older People Mental Health Fenland,Nursing Independent Sector
Cambridgeshire County Council,13-May-16,20522269-13324890,-532.23,Wentworth Croft Residential And Nursing,Care Establishment,2 - Commissioning - Older people Pool,Older People Mental Health Fenland,Nursing Independent Sector
Cambridgeshire County Council,13-May-16,20522270-13324891,-532.23,Wentworth Croft Residential And Nursing,Care Establishment,2 - Commissioning - Older people Pool,Older People Mental Health Fenland,Nursing Independent Sector
Cambridgeshire County Council,13-May-16,20522271-13324892,-532.23,Wentworth Croft Residential And Nursing,Care Establishment,2 - Commissioning - Older people Pool,Older People Mental Health Fenland,Nursing Independent Sector
Cambridgeshire County Council,13-May-16,20522273-13324894,-532.23,Wentworth Croft Residential And Nursing,Care Establishment,2 - Commissioning - Older people Pool,Older People Mental Health Fenland,Nursing Independent Sector
Cambridgeshire County Council,13-May-16,20522274-13324895,-532.23,Wentworth Croft Residential And Nursing,Care Establishment,2 - Commissioning - Older people Pool,Older People Mental Health Fenland,Nursing Independent Sector
Cambridgeshire County Council,13-May-16,20522275-13324896,-532.23,Wentworth Croft Residential And Nursing,Care Establishment,2 - Commissioning - Older people Pool,Older People Mental Health Fenland,Nursing Independent Sector
Cambridgeshire County Council,13-May-16,20522276-13324897,-532.23,Wentworth Croft Residential And Nursing,Care Establishment,2 - Commissioning - Older people Pool,Older People Mental Health Fenland,Nursing Independent Sector
Cambridgeshire County Council,13-May-16,20522277-13324898,-532.23,Wentworth Croft Residential And Nursing,Care Establishment,2 - Commissioning - Older people Pool,Older People Mental Health Fenland,Nursing Independent Sector
Cambridgeshire County Council,13-May-16,20522278-13324899,-532.23,Wentworth Croft Residential And Nursing,Care Establishment,2 - Commissioning - Older people Pool,Older People Mental Health Fenland,Nursing Independent Sector
Cambridgeshire County Council,13-May-16,20522279-13324900,-532.23,Wentworth Croft Residential And Nursing,Care Establishment,2 - Commissioning - Older people Pool,Older People Mental Health Fenland,Nursing Independent Sector
Cambridgeshire County Council,13-May-16,20522280-13324901,-532.23,Wentworth Croft Residential And Nursing,Care Establishment,2 - Commissioning - Older people Pool,Older People Mental Health Fenland,Nursing Independent Sector
Cambridgeshire County Council,13-May-16,20522281-13324902,-532.23,Wentworth Croft Residential And Nursing,Care Establishment,2 - Commissioning - Older people Pool,Older People Mental Health Fenland,Nursing Independent Sector
Cambridgeshire County Council,13-May-16,20522282-13324903,-532.23,Wentworth Croft Residential And Nursing,Care Establishment,2 - Commissioning - Older people Pool,Older People Mental Health Fenland,Nursing Independent Sector
Cambridgeshire County Council,13-May-16,20526075-13324882,-532.23,Wentworth Croft Residential And Nursing,Care Establishment,2 - Commissioning - Older people Pool,Older People Mental Health Fenland,Nursing Independent Sector
Cambridgeshire County Council,20-May-16,20678824-13357678,-519.88,Redacted Personal Data,Individual,3 - Operations - Countywide Services,Countywide PD Service - Care,Direct Payments - Social Services
Cambridgeshire County Council,20-May-16,20678826-13357680,-519.88,Redacted Personal Data,Individual,3 - Operations - Countywide Services,Countywide PD Service - Care,Direct Payments - Social Services
Cambridgeshire County Council,20-May-16,20678828-13357682,-519.88,Redacted Personal Data,Individual,3 - Operations - Countywide Services,Countywide PD Service - Care,Direct Payments - Social Services
Cambridgeshire County Council,20-May-16,20680588-13357686,-519.88,Redacted Personal Data,Individual,3 - Operations - Countywide Services,Countywide PD Service - Care,Direct Payments - Social Services
Cambridgeshire County Council,20-May-16,20680589-13357687,-519.88,Redacted Personal Data,Individual,3 - Operations - Countywide Services,Countywide PD Service - Care,Direct Payments - Social Services
Cambridgeshire County Council,20-May-16,20680590-13357688,-519.88,Redacted Personal Data,Individual,3 - Operations - Countywide Services,Countywide PD Service - Care,Direct Payments - Social Services
Cambridgeshire County Council,20-May-16,20680593-13357691,-519.88,Redacted Personal Data,Individual,3 - Operations - Countywide Services,Countywide PD Service - Care,Direct Payments - Social Services
Cambridgeshire County Council,20-May-16,20680594-13357692,-519.88,Redacted Personal Data,Individual,3 - Operations - Countywide Services,Countywide PD Service - Care,Direct Payments - Social Services
Cambridgeshire County Council,20-May-16,20680595-13357693,-519.88,Redacted Personal Data,Individual,3 - Operations - Countywide Services,Countywide PD Service - Care,Direct Payments - Social Services
Cambridgeshire County Council,20-May-16,20680596-13357694,-519.88,Redacted Personal Data,Individual,3 - Operations - Countywide Services,Countywide PD Service - Care,Direct Payments - Social Services
Cambridgeshire County Council,20-May-16,20680604-13357701,-519.88,Redacted Personal Data,Individual,3 - Operations - Countywide Services,Countywide PD Service - Care,Direct Payments - Social Services
Cambridgeshire County Council,20-May-16,20680608-13357705,-519.88,Redacted Personal Data,Individual,3 - Operations - Countywide Services,Countywide PD Service - Care,Direct Payments - Social Services
Cambridgeshire County Council,27-May-16,20652102-13406502,-519.02,Mihomecare Ltd (Enara Hunts),Care Establishment,2 - Commissioning - Older people Pool,Hunts O P  Team,Day and Domicillary Care Independent Sector
Cambridgeshire County Council,20-May-16,20598371-13359391,-515.5,Bramley Court,Care Establishment,2 - Commissioning - Older people Pool,Older People - City & South,Residential Independent Sector
Cambridgeshire County Council,20-May-16,20598378-13359398,-515.5,Bramley Court,Care Establishment,2 - Commissioning - Older people Pool,Older People - City & South,Residential Independent Sector
Cambridgeshire County Council,20-May-16,20599354-13359363,-515.5,Bramley Court,Care Establishment,2 - Commissioning - Older people Pool,Older People - City & South,Residential Independent Sector
Cambridgeshire County Council,20-May-16,20599360-13359369,-515.5,Bramley Court,Care Establishment,2 - Commissioning - Older people Pool,Older People - City & South,Residential Independent Sector
Cambridgeshire County Council,20-May-16,20599363-13359372,-515.5,Bramley Court,Care Establishment,2 - Commissioning - Older people Pool,Older People - City & South,Residential Independent Sector
Cambridgeshire County Council,20-May-16,20599369-13359378,-515.5,Bramley Court,Care Establishment,2 - Commissioning - Older people Pool,Older People - City & South,Residential Independent Sector
Cambridgeshire County Council,20-May-16,20599373-13359382,-515.5,Bramley Court,Care Establishment,2 - Commissioning - Older people Pool,Older People - City & South,Residential Independent Sector
Cambridgeshire County Council,27-May-16,20655986-13398627,-509.6,Abbey Healthcare (Huntingdon) Ltd,Care Establishment,2 - Commissioning - Older people Pool,Hunts O P  Team,Nursing Independent Sector
Cambridgeshire County Council,27-May-16,20655987-13398628,-509.6,Abbey Healthcare (Huntingdon) Ltd,Care Establishment,2 - Commissioning - Older people Pool,Hunts O P  Team,Nursing Independent Sector
Cambridgeshire County Council,27-May-16,20655989-13398630,-509.6,Abbey Healthcare (Huntingdon) Ltd,Care Establishment,2 - Commissioning - Older people Pool,Hunts O P  Team,Nursing Independent Sector
Cambridgeshire County Council,27-May-16,20681822-13396219,-509.6,Askham Village Community Ltd,Care Establishment,2 - Commissioning - Older people Pool,East Cambs - O P Team,Nursing Independent Sector
Cambridgeshire County Council,27-May-16,20681824-13396221,-509.6,Askham Village Community Ltd,Care Establishment,2 - Commissioning - Older people Pool,East Cambs - O P Team,Nursing Independent Sector
Cambridgeshire County Council,27-May-16,20681827-13396224,-509.6,Askham Village Community Ltd,Care Establishment,2 - Commissioning - Older people Pool,East Cambs - O P Team,Nursing Independent Sector
Cambridgeshire County Council,20-May-16,20681704-13359998,-505.66,Westward Farm,Care Establishment,2 - Operations - Learning Disability,LDP Huntingdonshire Locality - Care,Residential Independent Sector
Cambridgeshire County Council,20-May-16,20598369-13359389,-500,Bramley Court,Care Establishment,2 - Commissioning - Older people Pool,Older People - City & South,Residential Independent Sector
Cambridgeshire County Council,20-May-16,20598372-13359392,-500,Bramley Court,Care Establishment,2 - Commissioning - Older people Pool,Older People - City & South,Residential Independent Sector
Cambridgeshire County Council,20-May-16,20598373-13359393,-500,Bramley Court,Care Establishment,2 - Commissioning - Older people Pool,Older People - City & South,Residential Independent Sector
Cambridgeshire County Council,20-May-16,20598375-13359395,-500,Bramley Court,Care Establishment,2 - Commissioning - Older people Pool,Older People - City & South,Residential Independent Sector
Cambridgeshire County Council,20-May-16,20599352-13359361,-500,Bramley Court,Care Establishment,2 - Commissioning - Older people Pool,Older People - City & South,Residential Independent Sector
Cambridgeshire County Council,20-May-16,20599358-13359367,-500,Bramley Court,Care Establishment,2 - Commissioning - Older people Pool,Older People - City & South,Residential Independent Sector
Cambridgeshire County Council,20-May-16,20599361-13359370,-500,Bramley Court,Care Establishment,2 - Commissioning - Older people Pool,Older People - City & South,Residential Independent Sector
Cambridgeshire County Council,20-May-16,20599362-13359371,-500,Bramley Court,Care Establishment,2 - Commissioning - Older people Pool,Older People - City & South,Residential Independent Sector
Cambridgeshire County Council,20-May-16,20599365-13359374,-500,Bramley Court,Care Establishment,2 - Commissioning - Older people Pool,Older People - City & South,Residential Independent Sector
Cambridgeshire County Council,20-May-16,20599366-13359375,-500,Bramley Court,Care Establishment,2 - Commissioning - Older people Pool,Older People - City & South,Residential Independent Sector
Cambridgeshire County Council,20-May-16,20599370-13359379,-500,Bramley Court,Care Establishment,2 - Commissioning - Older people Pool,Older People - City & South,Residential Independent Sector
Cambridgeshire County Council,20-May-16,20599372-13359381,-500,Bramley Court,Care Establishment,2 - Commissioning - Older people Pool,Older People - City & South,Residential Independent Sector
Cambridgeshire County Council,20-May-16,20598370-13359390,500,Bramley Court,Care Establishment,2 - Commissioning - Older people Pool,Older People - City & South,Residential Independent Sector
Cambridgeshire County Council,20-May-16,20598376-13359396,500,Bramley Court,Care Establishment,2 - Commissioning - Older people Pool,Older People - City & South,Residential Independent Sector
Cambridgeshire County Council,20-May-16,20599355-13359364,500,Bramley Court,Care Establishment,2 - Commissioning - Older people Pool,Older People - City & South,Residential Independent Sector
Cambridgeshire County Council,20-May-16,20599356-13359365,500,Bramley Court,Care Establishment,2 - Commissioning - Older people Pool,Older People - City & South,Residential Independent Sector
Cambridgeshire County Council,20-May-16,20599357-13359366,500,Bramley Court,Care Establishment,2 - Commissioning - Older people Pool,Older People - City & South,Residential Independent Sector
Cambridgeshire County Council,20-May-16,20599359-13359368,500,Bramley Court,Care Establishment,2 - Commissioning - Older people Pool,Older People - City & South,Residential Independent Sector
Cambridgeshire County Council,20-May-16,20599364-13359373,500,Bramley Court,Care Establishment,2 - Commissioning - Older people Pool,Older People - City & South,Residential Independent Sector
Cambridgeshire County Council,20-May-16,20599368-13359377,500,Bramley Court,Care Establishment,2 - Commissioning - Older people Pool,Older People - City & South,Residential Independent Sector
Cambridgeshire County Council,05-May-16,20600427-13279230,500,Redacted Personal Data,Individual,CSC,CSC Direct Payments,Direct Payments - Social Services
Cambridgeshire County Council,13-May-16,20649561-13328446,500,Redacted Personal Data,Parent/Guardian,3 - Operations - Countywide Services,Countywide PD Service - Care,Direct Payments - Social Services
Cambridgeshire County Council,13-May-16,20649562-13328447,500,Redacted Personal Data,Parent/Guardian,3 - Operations - Countywide Services,Countywide PD Service - Care,Direct Payments - Social Services
Cambridgeshire County Council,13-May-16,20649563-13328448,500,Redacted Personal Data,Parent/Guardian,3 - Operations - Countywide Services,Countywide PD Service - Care,Direct Payments - Social Services
Cambridgeshire County Council,13-May-16,20649564-13328449,500,Redacted Personal Data,Parent/Guardian,3 - Operations - Countywide Services,Countywide PD Service - Care,Direct Payments - Social Services
Cambridgeshire County Council,17-May-16,20668502-13340223,500,Redacted Personal Data,Parent/Guardian,CSC,FCP allowances,Boarding Out Allowances
Cambridgeshire County Council,27-May-16,20755804-13387550,500,Hilton Park Care Centre,Care Establishment,LGSS,Miscellaneous - Other,Suspense/Other bodies Expenditure / Payments
Cambridgeshire County Council,27-May-16,20757920-13402037,500,The Gables Specialist Nursing Home,Care Establishment,2 - Commissioning - Older people Pool,Older People Mental Health Fenland,Residential Independent Sector
Cambridgeshire County Council,27-May-16,20764360-13402030,500,The Gables Specialist Nursing Home,Care Establishment,2 - Commissioning - Older people Pool,Older People Mental Health Fenland,Residential Independent Sector
Cambridgeshire County Council,27-May-16,20764362-13402031,500,The Gables Specialist Nursing Home,Care Establishment,2 - Commissioning - Older people Pool,Older People Mental Health Fenland,Residential Independent Sector
Cambridgeshire County Council,27-May-16,20765477-13407037,500,The Cambridge Nursing Centre,Care Establishment,2 - Commissioning - Older people Pool,Older People - City & South,Nursing Independent Sector
Cambridgeshire County Council,31-May-16,20799716-13413636,500,Wellside Surgery,Trade Supplier,PH,Stop Smoking Service & Intervention - Non Prescribed,Other Hired Contract Services
Cambridgeshire County Council,27-May-16,20755133-13402543,500.22,Home Meadow Ltd,Care Establishment,2 - Commissioning - Older people Pool,Older People - City & South,Residential Independent Sector
Cambridgeshire County Council,27-May-16,20755136-13402544,500.22,Home Meadow Ltd,Care Establishment,2 - Commissioning - Older people Pool,Older People - City & South,Residential Independent Sector
Cambridgeshire County Council,27-May-16,20755139-13402545,500.22,Home Meadow Ltd,Care Establishment,2 - Commissioning - Older people Pool,Older People - City & South,Residential Independent Sector
Cambridgeshire County Council,27-May-16,20755140-13402546,500.22,Home Meadow Ltd,Care Establishment,2 - Commissioning - Older people Pool,Older People - City & South,Residential Independent Sector
Cambridgeshire County Council,27-May-16,20760181-13402556,500.22,Home Meadow Ltd,Care Establishment,2 - Commissioning - Older people Pool,Older People - City & South,Residential Independent Sector
Cambridgeshire County Council,27-May-16,20760185-13402557,500.22,Home Meadow Ltd,Care Establishment,2 - Commissioning - Older people Pool,Older People - City & South,Residential Independent Sector
Cambridgeshire County Council,27-May-16,20760196-13402558,500.22,Home Meadow Ltd,Care Establishment,2 - Commissioning - Older people Pool,Older People - City & South,Residential Independent Sector
Cambridgeshire County Council,27-May-16,20760216-13402559,500.22,Home Meadow Ltd,Care Establishment,2 - Commissioning - Older people Pool,Older People - City & South,Residential Independent Sector
Cambridgeshire County Council,03-May-16,20506116-13265145,500.4,The Recruitment Agency Limited,Trade Supplier,S&C,Catering - Ernulf Comm School; St Neots,Pay - Agency Staff
Cambridgeshire County Council,16-May-16,20595567-13338022,500.4,Bill Ibbotts Catering Equipment Services Ltd,Company,S&C,"Catering - Property, Equipment & Maintenance",Repair of canteen equipment
Cambridgeshire County Council,10-May-16,20614593-13300918,500.4,The Recruitment Agency Limited,Trade Supplier,S&C,Catering - Shire Hall Serveries,Pay - Agency Staff
Cambridgeshire County Council,09-May-16,20614410-13300205,500.83,North Brink Practice,Care Establishment,PH,SH Contraception - Prescribed,Other Hired Contract Services
Cambridgeshire County Council,06-May-16,20502495-13288930,501.3,Ivett & Reed,Trade Supplier,Executive Director,Executive Director - Env Services,Consumer Protection equipment
Cambridgeshire County Council,20-May-16,20681955-13357558,501.43,Avery House Care Home,Care Establishment,2 - Commissioning - Older people Pool,Older People - Fenland,Residential Independent Sector
Cambridgeshire County Council,13-May-16,20652856-13327761,501.68,Hunters Healthcare (Hunters Down),Care Establishment,2 - Commissioning - Older people Pool,Hunts O P  Team,Residential Independent Sector
Cambridgeshire County Council,13-May-16,20652857-13327762,501.68,Hunters Healthcare (Hunters Down),Care Establishment,2 - Commissioning - Older people Pool,Hunts O P  Team,Residential Independent Sector
Cambridgeshire County Council,27-May-16,20752742-13408919,501.68,Hunters Healthcare (Hunters Down),Care Establishment,2 - Commissioning - Older people Pool,Hunts O P  Team,Residential Independent Sector
Cambridgeshire County Council,27-May-16,20752743-13408920,501.68,Hunters Healthcare (Hunters Down),Care Establishment,2 - Commissioning - Older people Pool,Hunts O P  Team,Residential Independent Sector
Cambridgeshire County Council,27-May-16,20752744-13408921,501.68,Hunters Healthcare (Hunters Down),Care Establishment,2 - Commissioning - Older people Pool,Hunts O P  Team,Residential Independent Sector
Cambridgeshire County Council,27-May-16,20752745-13408922,501.68,Hunters Healthcare (Hunters Down),Care Establishment,2 - Commissioning - Older people Pool,Hunts O P  Team,Residential Independent Sector
Cambridgeshire County Council,16-May-16,20540129-13338003,502,Limetree Offset Ltd,Trade Supplier,Assets & Commissioning,Waste PFI,Printing
Cambridgeshire County Council,27-May-16,20758954-13405030,502.68,Woodlands Care Centre,Care Establishment,2 - Commissioning - Older people Pool,Older People - City & South,Nursing Independent Sector
Cambridgeshire County Council,27-May-16,20765421-13405000,502.68,Woodlands Care Centre,Care Establishment,2 - Commissioning - Older people Pool,Older People - City & South,Nursing Independent Sector
Cambridgeshire County Council,20-May-16,20678672-13359103,502.74,Redacted Personal Data,Individual,2 - Commissioning - Older people Pool,Older People - City & South,Direct Payments - Social Services
Cambridgeshire County Council,20-May-16,20678673-13359104,502.74,Redacted Personal Data,Individual,2 - Commissioning - Older people Pool,Older People - City & South,Direct Payments - Social Services
Cambridgeshire County Council,20-May-16,20678674-13359105,502.74,Redacted Personal Data,Individual,2 - Commissioning - Older people Pool,Older People - City & South,Direct Payments - Social Services
Cambridgeshire County Council,20-May-16,20678675-13359106,502.74,Redacted Personal Data,Individual,2 - Commissioning - Older people Pool,Older People - City & South,Direct Payments - Social Services
Cambridgeshire County Council,23-May-16,20685364-13366900,502.75,Redacted Personal Data,Individual,CSC,CSC Direct Payments,Direct Payments - Social Services
Cambridgeshire County Council,10-May-16,20614585-13301126,502.8,Espo,Trade Supplier,S&C,Catering - Direct Overheads Area 3 (LC),Light Canteen equipment
Cambridgeshire County Council,23-May-16,20592368-13367261,503,Limetree Offset Ltd,Trade Supplier,LRNG,Primary Core Offer,Printing
Cambridgeshire County Council,27-May-16,20772011-13388802,503.09,Loughton Hall,Care Establishment,2 - Commissioning - Older people Pool,Older People - City & South,Residential Independent Sector
Cambridgeshire County Council,27-May-16,20772012-13388803,503.09,Loughton Hall,Care Establishment,2 - Commissioning - Older people Pool,Older People - City & South,Residential Independent Sector
Cambridgeshire County Council,27-May-16,20772013-13388804,503.09,Loughton Hall,Care Establishment,2 - Commissioning - Older people Pool,Older People - City & South,Residential Independent Sector
Cambridgeshire County Council,27-May-16,20772014-13388805,503.09,Loughton Hall,Care Establishment,2 - Commissioning - Older people Pool,Older People - City & South,Residential Independent Sector
Cambridgeshire County Council,24-May-16,20617579-13369509,503.1,Thoroughbreads,Trade Supplier,LRNG,Professional Development Centre - Cambri,Provisions - General
Cambridgeshire County Council,27-May-16,20753074-13395264,503.11,Cottenham Court Nursing Home,Care Establishment,2 - Commissioning - Older people Pool,Older People - City & South,Residential Independent Sector
Cambridgeshire County Council,27-May-16,20753078-13395265,503.11,Cottenham Court Nursing Home,Care Establishment,2 - Commissioning - Older people Pool,Older People - City & South,Residential Independent Sector
Cambridgeshire County Council,27-May-16,20753083-13395266,503.11,Cottenham Court Nursing Home,Care Establishment,2 - Commissioning - Older people Pool,Older People - City & South,Residential Independent Sector
Cambridgeshire County Council,27-May-16,20753085-13395267,503.11,Cottenham Court Nursing Home,Care Establishment,2 - Commissioning - Older people Pool,Older People - City & South,Residential Independent Sector
Cambridgeshire County Council,31-May-16,20781688-13413728,503.4,Abbots Events Ltd,Trade Supplier,S&C,Catering - Overheads - Schools Catering,Provisions - General
Cambridgeshire County Council,20-May-16,20669811-13359316,503.47,Imtech Aqua Maintenance Ltd,Company,LGSS Managed,Hawthorns Community Home,Building Maintenance - Structural Maintenance - Unplanned
Cambridgeshire County Council,11-May-16,20545533-13308994,503.91,Lex Autolease Ltd,Trade Supplier,4 - Operations - Providers services,No. 18 Alder Close High Supported Living Scheme,Leased Vehicle Costs
Cambridgeshire County Council,05-May-16,20499524-13279365,504,Coach And Horses Guest House,Trade Supplier,CSC,CSC Access Unit 3,Childrens Lodgings
Cambridgeshire County Council,13-May-16,20540545-13322877,504,Coach And Horses Guest House,Trade Supplier,CSC,CSC Access Unit 3,Living support grants
Cambridgeshire County Council,20-May-16,20614519-13358493,504,Coach And Horses Guest House,Trade Supplier,CSC,CSC Access Unit 3,Childrens Lodgings
Cambridgeshire County Council,16-May-16,20614698-13338181,504,Randstad Education Limited,Trade Supplier,E&P,SEND Specialist Services - Access & Inclusion,Other Hired Contract Services
Cambridgeshire County Council,23-May-16,20665925-13367919,504,Griff (Norfolk) Ltd,Trade Supplier,S&C,Home to School Transport - Special,Social Services Transport
Cambridgeshire County Council,19-May-16,20674306-13351956,504,Camcab Ltd,Trade Supplier,S&C,H to S Transport - Primary,Home to School - Contract
Cambridgeshire County Council,25-May-16,20746264-13374215,504,Environtec Limited,Company,Schools,The Grove Primary School; Cambridge ;(2123),Capital WIP - land and buildings  -  Construction cost
Cambridgeshire County Council,04-May-16,20584982-13273898,504.12,Redacted Personal Data,Individual,LRNG,Step Up 2SW,Volunteers Travel Allowance
Cambridgeshire County Council,17-May-16,20668714-13339874,504.4,Redacted Personal Data,Parent/Guardian,CSC,FCP allowances,Boarding Out Allowances
Cambridgeshire County Council,27-May-16,20766078-13404813,504.4,Westminster Homecare Limited,Care Establishment,2 - Commissioning - Older people Pool,Older People - City & South,Day and Domicillary Care Independent Sector
Cambridgeshire County Council,27-May-16,20766080-13404814,504.4,Westminster Homecare Limited,Care Establishment,2 - Commissioning - Older people Pool,Older People - City & South,Day and Domicillary Care Independent Sector
Cambridgeshire County Council,13-May-16,20649763-13332993,504.44,Redacted Personal Data,Individual,3 - Operations - Countywide Services,Countywide PD Service - Care,Direct Payments - Social Services
Cambridgeshire County Council,13-May-16,20649765-13332995,504.44,Redacted Personal Data,Individual,3 - Operations - Countywide Services,Countywide PD Service - Care,Direct Payments - Social Services
Cambridgeshire County Council,13-May-16,20649768-13332998,504.44,Redacted Personal Data,Individual,3 - Operations - Countywide Services,Countywide PD Service - Care,Direct Payments - Social Services
Cambridgeshire County Council,13-May-16,20649771-13332989,504.44,Redacted Personal Data,Individual,3 - Operations - Countywide Services,Countywide PD Service - Care,Direct Payments - Social Services
Cambridgeshire County Council,31-May-16,20668774-13413381,505.16,Kennett Parish Council,Other Public Bodies,Local Infrastructure & Street Management,Network Management,Village Maintenance - Parishs
Cambridgeshire County Council,23-May-16,20603799-13367285,505.2,Bill Ibbotts Catering Equipment Services Ltd,Company,S&C,"Catering - Property, Equipment & Maintenance",Repair of canteen equipment
Cambridgeshire County Council,09-May-16,20609382-13300565,505.36,Askews And Holts Library Services Ltd,Trade Supplier,Corporate Services,Support - Stock & Distribution,Library Book Fund
Cambridgeshire County Council,04-May-16,20584956-13273928,505.44,Redacted Personal Data,Individual,S&C,Home to School Transport - Special,Home to School - Post 16
Cambridgeshire County Council,27-May-16,20760427-13389033,505.98,Caerus Care Ltd,Care Establishment,2 - Operations - Learning Disability,LDP Fenland Locality - Care,Supported Living
Cambridgeshire County Council,27-May-16,20760471-13389034,505.98,Caerus Care Ltd,Care Establishment,2 - Operations - Learning Disability,LDP Fenland Locality - Care,Supported Living
Cambridgeshire County Council,27-May-16,20760495-13389035,505.98,Caerus Care Ltd,Care Establishment,2 - Operations - Learning Disability,LDP Fenland Locality - Care,Supported Living
Cambridgeshire County Council,27-May-16,20767667-13389009,505.98,Caerus Care Ltd,Care Establishment,2 - Operations - Learning Disability,LDP Fenland Locality - Care,Supported Living
Cambridgeshire County Council,03-May-16,20532666-13265693,506,Nas Earlybird Centre,Charity,E&P,SEND Training,Staff Training & Development
Cambridgeshire County Council,11-May-16,20621618-13308982,506,Drs Lund & Greatrex (Parkhall Surgery),Trade Supplier,PH,NHS Health Checks Prog - Prescribed,Other Hired Contract Services
Cambridgeshire County Council,11-May-16,20621637-13309038,506,The Riverside Practice,Trade Supplier,PH,NHS Health Checks Prog - Prescribed,Other Hired Contract Services
Cambridgeshire County Council,13-May-16,20655907-13332855,506.24,Redacted Personal Data,Individual,3 - Operations - Countywide Services,Countywide PD Service - Care,Direct Payments - Social Services
Cambridgeshire County Council,13-May-16,20655908-13332856,506.24,Redacted Personal Data,Individual,3 - Operations - Countywide Services,Countywide PD Service - Care,Direct Payments - Social Services
Cambridgeshire County Council,13-May-16,20655909-13332857,506.24,Redacted Personal Data,Individual,3 - Operations - Countywide Services,Countywide PD Service - Care,Direct Payments - Social Services
Cambridgeshire County Council,13-May-16,20655910-13332858,506.24,Redacted Personal Data,Individual,3 - Operations - Countywide Services,Countywide PD Service - Care,Direct Payments - Social Services
Cambridgeshire County Council,09-May-16,20535601-13300476,506.28,Fenland District Council,Other Public Bodies,LRNG,Safeguarding,Casual hire of facilities
Cambridgeshire County Council,23-May-16,20685400-13367141,506.28,Redacted Personal Data,Individual,CSC,CSC Direct Payments,Direct Payments - Social Services
Cambridgeshire County Council,27-May-16,20764919-13408931,506.38,Farrington Care Homes Ltd T/A Woodlands Residential Care Home,Care Establishment,2 - Commissioning - Older people Pool,Hunts O P  Team,Residential Independent Sector
Cambridgeshire County Council,27-May-16,20764921-13408932,506.38,Farrington Care Homes Ltd T/A Woodlands Residential Care Home,Care Establishment,2 - Commissioning - Older people Pool,Hunts O P  Team,Residential Independent Sector
Cambridgeshire County Council,27-May-16,20764923-13408933,506.38,Farrington Care Homes Ltd T/A Woodlands Residential Care Home,Care Establishment,2 - Commissioning - Older people Pool,Hunts O P  Team,Residential Independent Sector
Cambridgeshire County Council,27-May-16,20764924-13408934,506.38,Farrington Care Homes Ltd T/A Woodlands Residential Care Home,Care Establishment,2 - Commissioning - Older people Pool,Hunts O P  Team,Residential Independent Sector
Cambridgeshire County Council,27-May-16,20764925-13408935,506.38,Farrington Care Homes Ltd T/A Woodlands Residential Care Home,Care Establishment,2 - Commissioning - Older people Pool,Hunts O P  Team,Residential Independent Sector
Cambridgeshire County Council,16-May-16,20529703-13338027,506.4,Martin Rix (South Angle Farm),Trade Supplier,LGSS Managed,County Farms,Trees / landscaping materials
Cambridgeshire County Council,13-May-16,20653385-13329827,506.46,Redacted Personal Data,Individual,3 - Operations - Countywide Services,Countywide PD Service - Care,Direct Payments - Social Services
Cambridgeshire County Council,13-May-16,20653386-13329828,506.46,Redacted Personal Data,Individual,3 - Operations - Countywide Services,Countywide PD Service - Care,Direct Payments - Social Services
Cambridgeshire County Council,13-May-16,20653387-13329829,506.46,Redacted Personal Data,Individual,3 - Operations - Countywide Services,Countywide PD Service - Care,Direct Payments - Social Services
Cambridgeshire County Council,13-May-16,20653388-13329830,506.46,Redacted Personal Data,Individual,3 - Operations - Countywide Services,Countywide PD Service - Care,Direct Payments - Social Services
Cambridgeshire County Council,23-May-16,20603920-13367062,506.72,Pinpoint Cambridgeshire,Education,E&P,SEND Training,Staff Training & Development
Cambridgeshire County Council,09-May-16,20529701-13300600,506.88,Premier Moves Ltd,Trade Supplier,Schools,Ely St Mary's CofE Junior School; Ely ;(3362),Capital WIP - land and buildings  -  Construction cost
Cambridgeshire County Council,03-May-16,20540538-13265235,507.6,Playfords Ltd,Company,LRNG,ICT Service Procurement,Materials for resale
Cambridgeshire County Council,27-May-16,20753734-13401276,507.79,Conquest Care Homes Peterborough,Care Establishment,2 - Operations - Learning Disability,LDP Fenland Locality - Care,Supported Living
Cambridgeshire County Council,27-May-16,20753735-13401277,507.79,Conquest Care Homes Peterborough,Care Establishment,2 - Operations - Learning Disability,LDP Fenland Locality - Care,Supported Living
Cambridgeshire County Council,27-May-16,20753737-13401278,507.79,Conquest Care Homes Peterborough,Care Establishment,2 - Operations - Learning Disability,LDP Fenland Locality - Care,Supported Living
Cambridgeshire County Council,27-May-16,20755217-13401213,507.79,Conquest Care Homes Peterborough,Care Establishment,2 - Operations - Learning Disability,LDP Fenland Locality - Care,Supported Living
Cambridgeshire County Council,27-May-16,20772859-13401289,507.79,Conquest Care Homes Peterborough,Care Establishment,2 - Operations - Learning Disability,LDP Fenland Locality - Care,Supported Living
Cambridgeshire County Council,27-May-16,20772860-13401290,507.79,Conquest Care Homes Peterborough,Care Establishment,2 - Operations - Learning Disability,LDP Fenland Locality - Care,Supported Living
Cambridgeshire County Council,27-May-16,20772861-13401291,507.79,Conquest Care Homes Peterborough,Care Establishment,2 - Operations - Learning Disability,LDP Fenland Locality - Care,Supported Living
Cambridgeshire County Council,27-May-16,20772863-13401293,507.79,Conquest Care Homes Peterborough,Care Establishment,2 - Operations - Learning Disability,LDP Fenland Locality - Care,Supported Living
Cambridgeshire County Council,06-May-16,20603359-13289093,507.9,Askews And Holts Library Services Ltd,Trade Supplier,Corporate Services,Support - Stock & Distribution,Library Book Fund
Cambridgeshire County Council,20-May-16,20681700-13359994,508,Westward Farm,Care Establishment,2 - Operations - Learning Disability,LDP Huntingdonshire Locality - Care,Residential Independent Sector
Cambridgeshire County Council,13-May-16,20649591-13328590,508.04,Tony Stocks T/A Guyatt House,Care Establishment,2 - Operations - Learning Disability,LDP E Cambs Locality - Care,Residential Independent Sector
Cambridgeshire County Council,13-May-16,20649594-13328591,508.04,Tony Stocks T/A Guyatt House,Care Establishment,2 - Operations - Learning Disability,LDP E Cambs Locality - Care,Residential Independent Sector
Cambridgeshire County Council,13-May-16,20649599-13328593,508.04,Tony Stocks T/A Guyatt House,Care Establishment,2 - Operations - Learning Disability,LDP E Cambs Locality - Care,Residential Independent Sector
Cambridgeshire County Council,13-May-16,20652392-13328578,508.04,Tony Stocks T/A Guyatt House,Care Establishment,2 - Operations - Learning Disability,LDP E Cambs Locality - Care,Residential Independent Sector
Cambridgeshire County Council,31-May-16,20750783-13412905,508.08,Girton College,Education,LRNG,Primary Core Offer,Casual hire of facilities
Cambridgeshire County Council,27-May-16,20757269-13406003,508.21,Camb Care Ltd,Care Establishment,2 - Commissioning - Older people Pool,Hunts O P  Team,Day and Domicillary Care Independent Sector
Cambridgeshire County Council,27-May-16,20757270-13406004,508.21,Camb Care Ltd,Care Establishment,2 - Commissioning - Older people Pool,Hunts O P  Team,Day and Domicillary Care Independent Sector
Cambridgeshire County Council,27-May-16,20757271-13406005,508.21,Camb Care Ltd,Care Establishment,2 - Commissioning - Older people Pool,Hunts O P  Team,Day and Domicillary Care Independent Sector
Cambridgeshire County Council,27-May-16,20757272-13406006,508.21,Camb Care Ltd,Care Establishment,2 - Commissioning - Older people Pool,Hunts O P  Team,Day and Domicillary Care Independent Sector
Cambridgeshire County Council,27-May-16,20760157-13406233,508.21,Camb Care Ltd,Care Establishment,2 - Commissioning - Older people Pool,Hunts O P  Team,Day and Domicillary Care Independent Sector
Cambridgeshire County Council,27-May-16,20760159-13406234,508.21,Camb Care Ltd,Care Establishment,2 - Commissioning - Older people Pool,Hunts O P  Team,Day and Domicillary Care Independent Sector
Cambridgeshire County Council,27-May-16,20760162-13406235,508.21,Camb Care Ltd,Care Establishment,2 - Commissioning - Older people Pool,Hunts O P  Team,Day and Domicillary Care Independent Sector
Cambridgeshire County Council,27-May-16,20760163-13406236,508.21,Camb Care Ltd,Care Establishment,2 - Commissioning - Older people Pool,Hunts O P  Team,Day and Domicillary Care Independent Sector
Cambridgeshire County Council,27-May-16,20770784-13405942,508.21,Camb Care Ltd,Care Establishment,2 - Commissioning - Older people Pool,Hunts O P  Team,Day and Domicillary Care Independent Sector
Cambridgeshire County Council,27-May-16,20770791-13405943,508.21,Camb Care Ltd,Care Establishment,2 - Commissioning - Older people Pool,Hunts O P  Team,Day and Domicillary Care Independent Sector
Cambridgeshire County Council,27-May-16,20770792-13405944,508.21,Camb Care Ltd,Care Establishment,2 - Commissioning - Older people Pool,Hunts O P  Team,Day and Domicillary Care Independent Sector
Cambridgeshire County Council,16-May-16,20588353-13338161,508.32,Isl Refrigeration Ltd,Company,S&C,"Catering - Property, Equipment & Maintenance",Repair of canteen equipment
Cambridgeshire County Council,06-May-16,20604354-13288994,508.72,Stagecoach Services Ltd,Trade Supplier,Passenger Transport,Bus Service Operators Grant,Support - subsidised bus routes
Cambridgeshire County Council,27-May-16,20754549-13408782,508.8,Ringshill Care Home,Care Establishment,2 - Commissioning - Older people Pool,Older People - Fenland,Residential Independent Sector
Cambridgeshire County Council,27-May-16,20763371-13408738,508.8,Ringshill Care Home,Care Establishment,2 - Commissioning - Older people Pool,Older People - Fenland,Residential Independent Sector
Cambridgeshire County Council,27-May-16,20763372-13408739,508.8,Ringshill Care Home,Care Establishment,2 - Commissioning - Older people Pool,Older People - Fenland,Residential Independent Sector
Cambridgeshire County Council,27-May-16,20763374-13408740,508.8,Ringshill Care Home,Care Establishment,2 - Commissioning - Older people Pool,Older People - Fenland,Residential Independent Sector
Cambridgeshire County Council,03-May-16,20584658-13266003,509.36,Papworth Trust#1,Trust (Other),2 - Operations - Learning Disability,LDP South Cambs Locality - Care,Day and Domicillary Care Independent Sector
Cambridgeshire County Council,31-May-16,20779672-13413005,509.36,Papworth Trust#1,Trust (Other),2 - Operations - Learning Disability,LDP South Cambs Locality - Care,Day and Domicillary Care Independent Sector
Cambridgeshire County Council,31-May-16,20779674-13413006,509.36,Papworth Trust#1,Trust (Other),2 - Operations - Learning Disability,LDP South Cambs Locality - Care,Day and Domicillary Care Independent Sector
Cambridgeshire County Council,27-May-16,20754165-13398676,509.6,Abbey Healthcare (Huntingdon) Ltd,Care Establishment,2 - Commissioning - Older people Pool,Hunts O P  Team,Nursing Independent Sector
Cambridgeshire County Council,27-May-16,20754166-13398677,509.6,Abbey Healthcare (Huntingdon) Ltd,Care Establishment,2 - Commissioning - Older people Pool,Hunts O P  Team,Nursing Independent Sector
Cambridgeshire County Council,27-May-16,20754167-13398678,509.6,Abbey Healthcare (Huntingdon) Ltd,Care Establishment,2 - Commissioning - Older people Pool,Hunts O P  Team,Nursing Independent Sector
Cambridgeshire County Council,27-May-16,20754168-13398679,509.6,Abbey Healthcare (Huntingdon) Ltd,Care Establishment,2 - Commissioning - Older people Pool,Hunts O P  Team,Nursing Independent Sector
Cambridgeshire County Council,27-May-16,20754169-13398680,509.6,Abbey Healthcare (Huntingdon) Ltd,Care Establishment,2 - Commissioning - Older people Pool,Hunts O P  Team,Nursing Independent Sector
Cambridgeshire County Council,27-May-16,20754775-13407346,509.6,Ford House Care Home,Care Establishment,2 - Commissioning - Older people Pool,Hunts O P  Team,Nursing Independent Sector
Cambridgeshire County Council,27-May-16,20754776-13407347,509.6,Ford House Care Home,Care Establishment,2 - Commissioning - Older people Pool,Hunts O P  Team,Nursing Independent Sector
Cambridgeshire County Council,27-May-16,20754777-13407348,509.6,Ford House Care Home,Care Establishment,2 - Commissioning - Older people Pool,Hunts O P  Team,Nursing Independent Sector
Cambridgeshire County Council,27-May-16,20754778-13407349,509.6,Ford House Care Home,Care Establishment,2 - Commissioning - Older people Pool,Hunts O P  Team,Nursing Independent Sector
Cambridgeshire County Council,27-May-16,20756670-13398659,509.6,Abbey Healthcare (Huntingdon) Ltd,Care Establishment,2 - Commissioning - Older people Pool,Hunts O P  Team,Nursing Independent Sector
Cambridgeshire County Council,27-May-16,20756672-13398660,509.6,Abbey Healthcare (Huntingdon) Ltd,Care Establishment,2 - Commissioning - Older people Pool,Hunts O P  Team,Nursing Independent Sector
Cambridgeshire County Council,27-May-16,20756692-13396172,509.6,Askham Village Community Ltd,Care Establishment,2 - Commissioning - Older people Pool,Older People - Fenland,Nursing Independent Sector
Cambridgeshire County Council,27-May-16,20756698-13396173,509.6,Askham Village Community Ltd,Care Establishment,2 - Commissioning - Older people Pool,Older People - Fenland,Nursing Independent Sector
Cambridgeshire County Council,27-May-16,20756708-13396174,509.6,Askham Village Community Ltd,Care Establishment,2 - Commissioning - Older people Pool,Older People - Fenland,Nursing Independent Sector
Cambridgeshire County Council,27-May-16,20756709-13396175,509.6,Askham Village Community Ltd,Care Establishment,2 - Commissioning - Older people Pool,Older People - Fenland,Nursing Independent Sector
Cambridgeshire County Council,27-May-16,20758019-13396166,509.6,Askham Village Community Ltd,Care Establishment,2 - Commissioning - Older people Pool,Older People - Fenland,Nursing Independent Sector
Cambridgeshire County Council,27-May-16,20758020-13396167,509.6,Askham Village Community Ltd,Care Establishment,2 - Commissioning - Older people Pool,Older People - Fenland,Nursing Independent Sector
Cambridgeshire County Council,27-May-16,20758022-13396168,509.6,Askham Village Community Ltd,Care Establishment,2 - Commissioning - Older people Pool,Older People - Fenland,Nursing Independent Sector
Cambridgeshire County Council,27-May-16,20758024-13396169,509.6,Askham Village Community Ltd,Care Establishment,2 - Commissioning - Older people Pool,Older People - Fenland,Nursing Independent Sector
Cambridgeshire County Council,27-May-16,20759130-13396156,509.6,Askham Village Community Ltd,Care Establishment,2 - Commissioning - Older people Pool,Older People - Fenland,Nursing Independent Sector
Cambridgeshire County Council,27-May-16,20759139-13396155,509.6,Askham Village Community Ltd,Care Establishment,2 - Commissioning - Older people Pool,Older People - Fenland,Nursing Independent Sector
Cambridgeshire County Council,27-May-16,20760279-13407365,509.6,Ford House Care Home,Care Establishment,2 - Commissioning - Older people Pool,Hunts O P  Team,Nursing Independent Sector
Cambridgeshire County Council,27-May-16,20760280-13407366,509.6,Ford House Care Home,Care Establishment,2 - Commissioning - Older people Pool,Hunts O P  Team,Nursing Independent Sector
Cambridgeshire County Council,27-May-16,20760281-13407367,509.6,Ford House Care Home,Care Establishment,2 - Commissioning - Older people Pool,Hunts O P  Team,Nursing Independent Sector
Cambridgeshire County Council,27-May-16,20760282-13407368,509.6,Ford House Care Home,Care Establishment,2 - Commissioning - Older people Pool,Hunts O P  Team,Nursing Independent Sector
Cambridgeshire County Council,27-May-16,20760368-13396194,509.6,Askham Village Community Ltd,Care Establishment,2 - Commissioning - Older people Pool,Older People Mental Health Fenland,Nursing Independent Sector
Cambridgeshire County Council,27-May-16,20760369-13396195,509.6,Askham Village Community Ltd,Care Establishment,2 - Commissioning - Older people Pool,Older People Mental Health Fenland,Nursing Independent Sector
Cambridgeshire County Council,27-May-16,20760370-13396196,509.6,Askham Village Community Ltd,Care Establishment,2 - Commissioning - Older people Pool,Older People Mental Health Fenland,Nursing Independent Sector
Cambridgeshire County Council,27-May-16,20760371-13396197,509.6,Askham Village Community Ltd,Care Establishment,2 - Commissioning - Older people Pool,Older People Mental Health Fenland,Nursing Independent Sector
Cambridgeshire County Council,27-May-16,20760459-13396192,509.6,Askham Village Community Ltd,Care Establishment,2 - Commissioning - Older people Pool,Older People - Fenland,Nursing Independent Sector
Cambridgeshire County Council,27-May-16,20760498-13396193,509.6,Askham Village Community Ltd,Care Establishment,2 - Commissioning - Older people Pool,Older People - Fenland,Nursing Independent Sector
Cambridgeshire County Council,27-May-16,20761933-13407350,509.6,Ford House Care Home,Care Establishment,2 - Commissioning - Older people Pool,Hunts O P  Team,Nursing Independent Sector
Cambridgeshire County Council,27-May-16,20761934-13407351,509.6,Ford House Care Home,Care Establishment,2 - Commissioning - Older people Pool,Hunts O P  Team,Nursing Independent Sector
Cambridgeshire County Council,27-May-16,20761936-13407352,509.6,Ford House Care Home,Care Establishment,2 - Commissioning - Older people Pool,Hunts O P  Team,Nursing Independent Sector
Cambridgeshire County Council,27-May-16,20761938-13407353,509.6,Ford House Care Home,Care Establishment,2 - Commissioning - Older people Pool,Hunts O P  Team,Nursing Independent Sector
Cambridgeshire County Council,27-May-16,20762103-13407342,509.6,Ford House Care Home,Care Establishment,2 - Commissioning - Older people Pool,Hunts O P  Team,Nursing Independent Sector
Cambridgeshire County Council,27-May-16,20762105-13407343,509.6,Ford House Care Home,Care Establishment,2 - Commissioning - Older people Pool,Hunts O P  Team,Nursing Independent Sector
Cambridgeshire County Council,27-May-16,20762108-13407344,509.6,Ford House Care Home,Care Establishment,2 - Commissioning - Older people Pool,Hunts O P  Team,Nursing Independent Sector
Cambridgeshire County Council,27-May-16,20762111-13407345,509.6,Ford House Care Home,Care Establishment,2 - Commissioning - Older people Pool,Hunts O P  Team,Nursing Independent Sector
Cambridgeshire County Council,27-May-16,20763619-13398651,509.6,Abbey Healthcare (Huntingdon) Ltd,Care Establishment,2 - Commissioning - Older people Pool,Hunts O P  Team,Nursing Independent Sector
Cambridgeshire County Council,27-May-16,20763621-13398652,509.6,Abbey Healthcare (Huntingdon) Ltd,Care Establishment,2 - Commissioning - Older people Pool,Hunts O P  Team,Nursing Independent Sector
Cambridgeshire County Council,27-May-16,20763624-13398653,509.6,Abbey Healthcare (Huntingdon) Ltd,Care Establishment,2 - Commissioning - Older people Pool,Hunts O P  Team,Nursing Independent Sector
Cambridgeshire County Council,27-May-16,20763653-13407337,509.6,Ford House Care Home,Care Establishment,2 - Commissioning - Older people Pool,Hunts O P  Team,Nursing Independent Sector
Cambridgeshire County Council,27-May-16,20763654-13407338,509.6,Ford House Care Home,Care Establishment,2 - Commissioning - Older people Pool,Hunts O P  Team,Nursing Independent Sector
Cambridgeshire County Council,27-May-16,20763655-13407339,509.6,Ford House Care Home,Care Establishment,2 - Commissioning - Older people Pool,Hunts O P  Team,Nursing Independent Sector
Cambridgeshire County Council,27-May-16,20763656-13407340,509.6,Ford House Care Home,Care Establishment,2 - Commissioning - Older people Pool,Hunts O P  Team,Nursing Independent Sector
Cambridgeshire County Council,27-May-16,20763658-13398654,509.6,Abbey Healthcare (Huntingdon) Ltd,Care Establishment,2 - Commissioning - Older people Pool,Older People - Fenland,Nursing Independent Sector
Cambridgeshire County Council,27-May-16,20763660-13398655,509.6,Abbey Healthcare (Huntingdon) Ltd,Care Establishment,2 - Commissioning - Older people Pool,Older People - Fenland,Nursing Independent Sector
Cambridgeshire County Council,27-May-16,20763663-13398656,509.6,Abbey Healthcare (Huntingdon) Ltd,Care Establishment,2 - Commissioning - Older people Pool,Older People - Fenland,Nursing Independent Sector
Cambridgeshire County Council,27-May-16,20763664-13398657,509.6,Abbey Healthcare (Huntingdon) Ltd,Care Establishment,2 - Commissioning - Older people Pool,Older People - Fenland,Nursing Independent Sector
Cambridgeshire County Council,27-May-16,20763665-13398658,509.6,Abbey Healthcare (Huntingdon) Ltd,Care Establishment,2 - Commissioning - Older people Pool,Older People - Fenland,Nursing Independent Sector
Cambridgeshire County Council,27-May-16,20767120-13396190,509.6,Askham Village Community Ltd,Care Establishment,2 - Commissioning - Older people Pool,Older People - Fenland,Nursing Independent Sector
Cambridgeshire County Council,27-May-16,20767680-13396186,509.6,Askham Village Community Ltd,Care Establishment,2 - Commissioning - Older people Pool,Older People - Fenland,Nursing Independent Sector
Cambridgeshire County Council,27-May-16,20767727-13396184,509.6,Askham Village Community Ltd,Care Establishment,2 - Commissioning - Older people Pool,Older People - Fenland,Nursing Independent Sector
Cambridgeshire County Council,27-May-16,20768093-13407358,509.6,Ford House Care Home,Care Establishment,2 - Commissioning - Older people Pool,Older People - City & South,Nursing Independent Sector
Cambridgeshire County Council,27-May-16,20768095-13407359,509.6,Ford House Care Home,Care Establishment,2 - Commissioning - Older people Pool,Older People - City & South,Nursing Independent Sector
Cambridgeshire County Council,27-May-16,20768097-13407360,509.6,Ford House Care Home,Care Establishment,2 - Commissioning - Older people Pool,Older People - City & South,Nursing Independent Sector
Cambridgeshire County Council,27-May-16,20768131-13396180,509.6,Askham Village Community Ltd,Care Establishment,2 - Commissioning - Older people Pool,Older People - Fenland,Nursing Independent Sector
Cambridgeshire County Council,27-May-16,20768153-13396181,509.6,Askham Village Community Ltd,Care Establishment,2 - Commissioning - Older people Pool,Older People - Fenland,Nursing Independent Sector
Cambridgeshire County Council,27-May-16,20768169-13396182,509.6,Askham Village Community Ltd,Care Establishment,2 - Commissioning - Older people Pool,Older People - Fenland,Nursing Independent Sector
Cambridgeshire County Council,27-May-16,20769360-13407341,509.6,Ford House Care Home,Care Establishment,2 - Commissioning - Older people Pool,Older People - City & South,Nursing Independent Sector
Cambridgeshire County Council,27-May-16,20772639-13396214,509.6,Askham Village Community Ltd,Care Establishment,2 - Commissioning - Older people Pool,Older People - Fenland,Nursing Independent Sector
Cambridgeshire County Council,27-May-16,20772640-13396215,509.6,Askham Village Community Ltd,Care Establishment,2 - Commissioning - Older people Pool,Older People - Fenland,Nursing Independent Sector
Cambridgeshire County Council,27-May-16,20772641-13396216,509.6,Askham Village Community Ltd,Care Establishment,2 - Commissioning - Older people Pool,Older People - Fenland,Nursing Independent Sector
Cambridgeshire County Council,27-May-16,20772642-13396217,509.6,Askham Village Community Ltd,Care Establishment,2 - Commissioning - Older people Pool,Older People - Fenland,Nursing Independent Sector
Cambridgeshire County Council,27-May-16,20772888-13396210,509.6,Askham Village Community Ltd,Care Establishment,2 - Commissioning - Older people Pool,Older People - Fenland,Nursing Independent Sector
Cambridgeshire County Council,27-May-16,20772891-13396211,509.6,Askham Village Community Ltd,Care Establishment,2 - Commissioning - Older people Pool,Older People - Fenland,Nursing Independent Sector
Cambridgeshire County Council,27-May-16,20772892-13396212,509.6,Askham Village Community Ltd,Care Establishment,2 - Commissioning - Older people Pool,Older People - Fenland,Nursing Independent Sector
Cambridgeshire County Council,27-May-16,20772894-13396213,509.6,Askham Village Community Ltd,Care Establishment,2 - Commissioning - Older people Pool,Older People - Fenland,Nursing Independent Sector
Cambridgeshire County Council,27-May-16,20773015-13396199,509.6,Askham Village Community Ltd,Care Establishment,2 - Commissioning - Older people Pool,Older People - Fenland,Nursing Independent Sector
Cambridgeshire County Council,27-May-16,20773016-13396200,509.6,Askham Village Community Ltd,Care Establishment,2 - Commissioning - Older people Pool,Older People - Fenland,Nursing Independent Sector
Cambridgeshire County Council,27-May-16,20773018-13396202,509.6,Askham Village Community Ltd,Care Establishment,2 - Commissioning - Older people Pool,Older People - Fenland,Nursing Independent Sector
Cambridgeshire County Council,27-May-16,20773019-13396203,509.6,Askham Village Community Ltd,Care Establishment,2 - Commissioning - Older people Pool,Older People - Fenland,Nursing Independent Sector
Cambridgeshire County Council,27-May-16,20773024-13396206,509.6,Askham Village Community Ltd,Care Establishment,2 - Commissioning - Older people Pool,Older People - Fenland,Nursing Independent Sector
Cambridgeshire County Council,27-May-16,20773029-13396207,509.6,Askham Village Community Ltd,Care Establishment,2 - Commissioning - Older people Pool,Older People - Fenland,Nursing Independent Sector
Cambridgeshire County Council,27-May-16,20773032-13396209,509.6,Askham Village Community Ltd,Care Establishment,2 - Commissioning - Older people Pool,Older People - Fenland,Nursing Independent Sector
Cambridgeshire County Council,27-May-16,20773892-13407361,509.6,Ford House Care Home,Care Establishment,2 - Commissioning - Older people Pool,East Cambs - O P Team,Nursing Independent Sector
Cambridgeshire County Council,27-May-16,20773893-13407362,509.6,Ford House Care Home,Care Establishment,2 - Commissioning - Older people Pool,East Cambs - O P Team,Nursing Independent Sector
Cambridgeshire County Council,27-May-16,20773894-13407363,509.6,Ford House Care Home,Care Establishment,2 - Commissioning - Older people Pool,East Cambs - O P Team,Nursing Independent Sector
Cambridgeshire County Council,27-May-16,20773895-13407364,509.6,Ford House Care Home,Care Establishment,2 - Commissioning - Older people Pool,East Cambs - O P Team,Nursing Independent Sector
Cambridgeshire County Council,27-May-16,20765408-13391667,509.8,Qualitycare,Care Establishment,2 - Commissioning - Older people Pool,East Cambs - O P Team,Day and Domicillary Care Independent Sector
Cambridgeshire County Council,27-May-16,20765409-13391668,509.8,Qualitycare,Care Establishment,2 - Commissioning - Older people Pool,East Cambs - O P Team,Day and Domicillary Care Independent Sector
Cambridgeshire County Council,03-May-16,20488623-13265124,510,Ic Consultants Ltd,Other Public Bodies,Corporate Services,Coroners General,Post Mortems
Cambridgeshire County Council,12-May-16,20627700-13316890,510,Ian May T/A Silver Service Taxi,Trade Supplier,3 - Operations - Countywide Services,Countywide PD Service - Care,Vehicle hire
Cambridgeshire County Council,18-May-16,20673151-13349927,510,Ic Consultants Ltd,Other Public Bodies,Corporate Services,Coroners General,Post Mortems
Cambridgeshire County Council,23-May-16,20685389-13367039,510,Redacted Personal Data,Individual,CSC,CSC Direct Payments,Direct Payments - Social Services
Cambridgeshire County Council,24-May-16,20691560-13370904,510,Melbourn Village College,Education,E&P,FIP - Core,Medical equipment & supplies
Cambridgeshire County Council,27-May-16,20763771-13401200,510,Conquest Care Homes Peterborough,Care Establishment,2 - Operations - Learning Disability,LDP Fenland Locality - Care,Supported Living
Cambridgeshire County Council,27-May-16,20763772-13401201,510,Conquest Care Homes Peterborough,Care Establishment,2 - Operations - Learning Disability,LDP Fenland Locality - Care,Supported Living
Cambridgeshire County Council,27-May-16,20763773-13401202,510,Conquest Care Homes Peterborough,Care Establishment,2 - Operations - Learning Disability,LDP Fenland Locality - Care,Supported Living
Cambridgeshire County Council,27-May-16,20763774-13401203,510,Conquest Care Homes Peterborough,Care Establishment,2 - Operations - Learning Disability,LDP Fenland Locality - Care,Supported Living
Cambridgeshire County Council,27-May-16,20764942-13393673,510,Craegmoor Supporting You In Cambridgeshire,Care Establishment,2 - Operations - Learning Disability,LDP Fenland Locality - Care,Supported Living
Cambridgeshire County Council,27-May-16,20764943-13393674,510,Craegmoor Supporting You In Cambridgeshire,Care Establishment,2 - Operations - Learning Disability,LDP Fenland Locality - Care,Supported Living
Cambridgeshire County Council,27-May-16,20764946-13393675,510,Craegmoor Supporting You In Cambridgeshire,Care Establishment,2 - Operations - Learning Disability,LDP Fenland Locality - Care,Supported Living
Cambridgeshire County Council,27-May-16,20764947-13393676,510,Craegmoor Supporting You In Cambridgeshire,Care Establishment,2 - Operations - Learning Disability,LDP Fenland Locality - Care,Supported Living
Cambridgeshire County Council,27-May-16,20766579-13393681,510,Craegmoor Supporting You In Cambridgeshire,Care Establishment,2 - Operations - Learning Disability,LDP Fenland Locality - Care,Supported Living
Cambridgeshire County Council,27-May-16,20766582-13393682,510,Craegmoor Supporting You In Cambridgeshire,Care Establishment,2 - Operations - Learning Disability,LDP Fenland Locality - Care,Supported Living
Cambridgeshire County Council,27-May-16,20766585-13393683,510,Craegmoor Supporting You In Cambridgeshire,Care Establishment,2 - Operations - Learning Disability,LDP Fenland Locality - Care,Supported Living
Cambridgeshire County Council,27-May-16,20766586-13393684,510,Craegmoor Supporting You In Cambridgeshire,Care Establishment,2 - Operations - Learning Disability,LDP Fenland Locality - Care,Supported Living
Cambridgeshire County Council,27-May-16,20768555-13393677,510,Craegmoor Supporting You In Cambridgeshire,Care Establishment,2 - Operations - Learning Disability,LDP Fenland Locality - Care,Supported Living
Cambridgeshire County Council,27-May-16,20768556-13393678,510,Craegmoor Supporting You In Cambridgeshire,Care Establishment,2 - Operations - Learning Disability,LDP Fenland Locality - Care,Supported Living
Cambridgeshire County Council,27-May-16,20768557-13393679,510,Craegmoor Supporting You In Cambridgeshire,Care Establishment,2 - Operations - Learning Disability,LDP Fenland Locality - Care,Supported Living
Cambridgeshire County Council,27-May-16,20768558-13393680,510,Craegmoor Supporting You In Cambridgeshire,Care Establishment,2 - Operations - Learning Disability,LDP Fenland Locality - Care,Supported Living
Cambridgeshire County Council,27-May-16,20768632-13397396,510,The Chestnuts Residential Home,Care Establishment,2 - Commissioning - Older people Pool,Older People - Fenland,Residential Independent Sector
Cambridgeshire County Council,27-May-16,20768636-13397397,510,The Chestnuts Residential Home,Care Establishment,2 - Commissioning - Older people Pool,Older People - Fenland,Residential Independent Sector
Cambridgeshire County Council,27-May-16,20768656-13397398,510,The Chestnuts Residential Home,Care Establishment,2 - Commissioning - Older people Pool,Older People - Fenland,Residential Independent Sector
Cambridgeshire County Council,27-May-16,20768657-13397399,510,The Chestnuts Residential Home,Care Establishment,2 - Commissioning - Older people Pool,Older People - Fenland,Residential Independent Sector
Cambridgeshire County Council,31-May-16,20665900-13412939,510.22,Whaddon Parish Council,Other Public Bodies,Local Infrastructure & Street Management,Network Management,Village Maintenance - Parishs
Cambridgeshire County Council,12-May-16,20627858-13316998,510.44,Aa Global Language Service Ltd,Trade Supplier,CSC,Leaving Care C & F - Asylum Seekers,Interpreters
Cambridgeshire County Council,27-May-16,20774025-13395345,510.44,Rose Lodge,Care Establishment,2 - Commissioning - Older people Pool,Older People Mental Health Fenland,Nursing Independent Sector
Cambridgeshire County Council,27-May-16,20774072-13395341,510.44,Rose Lodge,Care Establishment,2 - Commissioning - Older people Pool,Older People Mental Health Fenland,Nursing Independent Sector
Cambridgeshire County Council,27-May-16,20774104-13395342,510.44,Rose Lodge,Care Establishment,2 - Commissioning - Older people Pool,Older People Mental Health Fenland,Nursing Independent Sector
Cambridgeshire County Council,27-May-16,20774105-13395343,510.44,Rose Lodge,Care Establishment,2 - Commissioning - Older people Pool,Older People Mental Health Fenland,Nursing Independent Sector
Cambridgeshire County Council,27-May-16,20774117-13395344,510.44,Rose Lodge,Care Establishment,2 - Commissioning - Older people Pool,Older People Mental Health Fenland,Nursing Independent Sector
Cambridgeshire County Council,13-May-16,20651692-13325058,510.73,Redacted Personal Data,Individual,2 - Operations - Learning Disability,LDP City Locality - Care,SDS - Care and support Services
Cambridgeshire County Council,13-May-16,20651708-13325063,510.73,Redacted Personal Data,Individual,2 - Operations - Learning Disability,LDP City Locality - Care,SDS - Care and support Services
Cambridgeshire County Council,13-May-16,20651731-13325070,510.73,Redacted Personal Data,Individual,2 - Operations - Learning Disability,LDP City Locality - Care,SDS - Care and support Services
Cambridgeshire County Council,13-May-16,20651736-13325072,510.73,Redacted Personal Data,Individual,2 - Operations - Learning Disability,LDP City Locality - Care,SDS - Care and support Services
Cambridgeshire County Council,13-May-16,20580093-13332550,511.56,Northgate Vehicle Hire Ltd,Trade Supplier,S&C,Education Property Strategy Manager,Employer's cbn to Lease car costs
Cambridgeshire County Council,13-May-16,20653423-13323842,511.56,Redacted Personal Data,Individual,2 - Commissioning - Older people Pool,Older People - Fenland,SDS - Care and support Services
Cambridgeshire County Council,13-May-16,20653435-13323843,511.56,Redacted Personal Data,Individual,2 - Commissioning - Older people Pool,Older People - Fenland,SDS - Care and support Services
Cambridgeshire County Council,13-May-16,20653459-13323844,511.56,Redacted Personal Data,Individual,2 - Commissioning - Older people Pool,Older People - Fenland,SDS - Care and support Services
Cambridgeshire County Council,13-May-16,20653470-13323845,511.56,Redacted Personal Data,Individual,2 - Commissioning - Older people Pool,Older People - Fenland,SDS - Care and support Services
Cambridgeshire County Council,09-May-16,20614374-13300119,511.6,Sawston Medical Practice,Care Establishment,PH,SH Contraception - Prescribed,Other Hired Contract Services
Cambridgeshire County Council,09-May-16,20614355-13300249,511.64,Priory Fields Surgery,Care Establishment,PH,SH Contraception - Prescribed,Other Hired Contract Services
Cambridgeshire County Council,03-May-16,20581701-13266045,511.8,Redacted Personal Data,Foster Parent,CSC,Leaving Care C & F - Asylum Seekers,Boarding Out Allowances
Cambridgeshire County Council,17-May-16,20667881-13341003,511.8,Redacted Personal Data,Foster Parent,CSC,Leaving Care C & F - Asylum Seekers,Boarding Out Allowances
Cambridgeshire County Council,27-May-16,20767088-13406737,512.12,Mihomecare Ltd (Enara Hunts),Care Establishment,2 - Commissioning - Older people Pool,Hunts O P  Team,Day and Domicillary Care Independent Sector
Cambridgeshire County Council,27-May-16,20752821-13403733,512.33,Abbott Healthcare Ltd,Care Establishment,2 - Commissioning - Older people Pool,Hunts O P  Team,Day and Domicillary Care Independent Sector
Cambridgeshire County Council,27-May-16,20752822-13403734,512.33,Abbott Healthcare Ltd,Care Establishment,2 - Commissioning - Older people Pool,Hunts O P  Team,Day and Domicillary Care Independent Sector
Cambridgeshire County Council,27-May-16,20752823-13403735,512.33,Abbott Healthcare Ltd,Care Establishment,2 - Commissioning - Older people Pool,Hunts O P  Team,Day and Domicillary Care Independent Sector
Cambridgeshire County Council,27-May-16,20752824-13403707,512.33,Abbott Healthcare Ltd,Care Establishment,2 - Commissioning - Older people Pool,Hunts O P  Team,Day and Domicillary Care Independent Sector
Cambridgeshire County Council,05-May-16,20599346-13279598,512.6,Fitzwilliam Healthcare Ltd,Care Establishment,2 - Commissioning - Older people Pool,Older People - City & South,Residential Independent Sector
Cambridgeshire County Council,05-May-16,20599348-13279600,512.6,Fitzwilliam Healthcare Ltd,Care Establishment,2 - Commissioning - Older people Pool,Older People - City & South,Residential Independent Sector
Cambridgeshire County Council,05-May-16,20599349-13279601,512.6,Fitzwilliam Healthcare Ltd,Care Establishment,2 - Commissioning - Older people Pool,Older People - City & South,Residential Independent Sector
Cambridgeshire County Council,27-May-16,20752660-13406978,512.6,Buchan Healthcare Ltd,Care Establishment,2 - Commissioning - Older people Pool,Older People Mental Health City & South,Residential Independent Sector
Cambridgeshire County Council,27-May-16,20752661-13406979,512.6,Buchan Healthcare Ltd,Care Establishment,2 - Commissioning - Older people Pool,Older People Mental Health City & South,Residential Independent Sector
Cambridgeshire County Council,27-May-16,20752662-13406980,512.6,Buchan Healthcare Ltd,Care Establishment,2 - Commissioning - Older people Pool,Older People Mental Health City & South,Residential Independent Sector
Cambridgeshire County Council,27-May-16,20752663-13406981,512.6,Buchan Healthcare Ltd,Care Establishment,2 - Commissioning - Older people Pool,Older People Mental Health City & South,Residential Independent Sector
Cambridgeshire County Council,27-May-16,20752993-13397928,512.6,Fitzwilliam Healthcare Ltd,Care Establishment,2 - Commissioning - Older people Pool,Older People - City & South,Residential Independent Sector
Cambridgeshire County Council,27-May-16,20752997-13397929,512.6,Fitzwilliam Healthcare Ltd,Care Establishment,2 - Commissioning - Older people Pool,Older People - City & South,Residential Independent Sector
Cambridgeshire County Council,27-May-16,20753301-13397924,512.6,Fitzwilliam Healthcare Ltd,Care Establishment,2 - Commissioning - Older people Pool,Older People - City & South,Residential Independent Sector
Cambridgeshire County Council,27-May-16,20753302-13397925,512.6,Fitzwilliam Healthcare Ltd,Care Establishment,2 - Commissioning - Older people Pool,Older People - City & South,Residential Independent Sector
Cambridgeshire County Council,27-May-16,20753303-13397926,512.6,Fitzwilliam Healthcare Ltd,Care Establishment,2 - Commissioning - Older people Pool,Older People - City & South,Residential Independent Sector
Cambridgeshire County Council,27-May-16,20753304-13397927,512.6,Fitzwilliam Healthcare Ltd,Care Establishment,2 - Commissioning - Older people Pool,Older People - City & South,Residential Independent Sector
Cambridgeshire County Council,27-May-16,20759713-13397935,512.6,Fitzwilliam Healthcare Ltd,Care Establishment,2 - Commissioning - Older people Pool,Older People - City & South,Residential Independent Sector
Cambridgeshire County Council,27-May-16,20759715-13397936,512.6,Fitzwilliam Healthcare Ltd,Care Establishment,2 - Commissioning - Older people Pool,Older People - City & South,Residential Independent Sector
Cambridgeshire County Council,27-May-16,20759716-13397937,512.6,Fitzwilliam Healthcare Ltd,Care Establishment,2 - Commissioning - Older people Pool,Older People - City & South,Residential Independent Sector
Cambridgeshire County Council,27-May-16,20759717-13397938,512.6,Fitzwilliam Healthcare Ltd,Care Establishment,2 - Commissioning - Older people Pool,Older People - City & South,Residential Independent Sector
Cambridgeshire County Council,27-May-16,20760539-13401953,512.6,Etheldred House,Care Establishment,2 - Commissioning - Older people Pool,Older People - City & South,Residential Independent Sector
Cambridgeshire County Council,27-May-16,20760543-13401954,512.6,Etheldred House,Care Establishment,2 - Commissioning - Older people Pool,Older People - City & South,Residential Independent Sector
Cambridgeshire County Council,27-May-16,20760845-13397921,512.6,Fitzwilliam Healthcare Ltd,Care Establishment,2 - Commissioning - Older people Pool,Older People - City & South,Residential Independent Sector
Cambridgeshire County Council,27-May-16,20760858-13397922,512.6,Fitzwilliam Healthcare Ltd,Care Establishment,2 - Commissioning - Older people Pool,Older People - City & South,Residential Independent Sector
Cambridgeshire County Council,27-May-16,20760859-13397923,512.6,Fitzwilliam Healthcare Ltd,Care Establishment,2 - Commissioning - Older people Pool,Older People - City & South,Residential Independent Sector
Cambridgeshire County Council,27-May-16,20765060-13401885,512.6,Etheldred House,Care Establishment,2 - Commissioning - Older people Pool,Older People - City & South,Residential Independent Sector
Cambridgeshire County Council,27-May-16,20765065-13401886,512.6,Etheldred House,Care Establishment,2 - Commissioning - Older people Pool,Older People - City & South,Residential Independent Sector
Cambridgeshire County Council,27-May-16,20765068-13401887,512.6,Etheldred House,Care Establishment,2 - Commissioning - Older people Pool,Older People - City & South,Residential Independent Sector
Cambridgeshire County Council,27-May-16,20765073-13401888,512.6,Etheldred House,Care Establishment,2 - Commissioning - Older people Pool,Older People - City & South,Residential Independent Sector
Cambridgeshire County Council,27-May-16,20766245-13397931,512.6,Fitzwilliam Healthcare Ltd,Care Establishment,2 - Commissioning - Older people Pool,Older People - City & South,Residential Independent Sector
Cambridgeshire County Council,27-May-16,20766246-13397932,512.6,Fitzwilliam Healthcare Ltd,Care Establishment,2 - Commissioning - Older people Pool,Older People - City & South,Residential Independent Sector
Cambridgeshire County Council,27-May-16,20766247-13397933,512.6,Fitzwilliam Healthcare Ltd,Care Establishment,2 - Commissioning - Older people Pool,Older People - City & South,Residential Independent Sector
Cambridgeshire County Council,27-May-16,20766248-13397934,512.6,Fitzwilliam Healthcare Ltd,Care Establishment,2 - Commissioning - Older people Pool,Older People - City & South,Residential Independent Sector
Cambridgeshire County Council,27-May-16,20767483-13401939,512.6,Etheldred House,Care Establishment,2 - Commissioning - Older people Pool,Older People - City & South,Residential Independent Sector
Cambridgeshire County Council,27-May-16,20767484-13401940,512.6,Etheldred House,Care Establishment,2 - Commissioning - Older people Pool,Older People - City & South,Residential Independent Sector
Cambridgeshire County Council,27-May-16,20772352-13401960,512.6,Etheldred House,Care Establishment,2 - Commissioning - Older people Pool,Older People - City & South,Residential Independent Sector
Cambridgeshire County Council,27-May-16,20772353-13401961,512.6,Etheldred House,Care Establishment,2 - Commissioning - Older people Pool,Older People - City & South,Residential Independent Sector
Cambridgeshire County Council,27-May-16,20772354-13401962,512.6,Etheldred House,Care Establishment,2 - Commissioning - Older people Pool,Older People - City & South,Residential Independent Sector
Cambridgeshire County Council,27-May-16,20772355-13401963,512.6,Etheldred House,Care Establishment,2 - Commissioning - Older people Pool,Older People - City & South,Residential Independent Sector
Cambridgeshire County Council,27-May-16,20773451-13397917,512.6,Fitzwilliam Healthcare Ltd,Care Establishment,2 - Commissioning - Older people Pool,Older People - City & South,Residential Independent Sector
Cambridgeshire County Council,27-May-16,20773452-13397918,512.6,Fitzwilliam Healthcare Ltd,Care Establishment,2 - Commissioning - Older people Pool,Older People - City & South,Residential Independent Sector
Cambridgeshire County Council,27-May-16,20773455-13397919,512.6,Fitzwilliam Healthcare Ltd,Care Establishment,2 - Commissioning - Older people Pool,Older People - City & South,Residential Independent Sector
Cambridgeshire County Council,27-May-16,20773456-13397920,512.6,Fitzwilliam Healthcare Ltd,Care Establishment,2 - Commissioning - Older people Pool,Older People - City & South,Residential Independent Sector
Cambridgeshire County Council,23-May-16,20691571-13367030,513,Redacted Personal Data,Individual,CSC,CSC Children In Need Unit 25,Living support grants
Cambridgeshire County Council,27-May-16,20774214-13392435,513.14,Sense For Deaf Blind People,Care Establishment,2 - Operations - Learning Disability,LDP South Cambs Locality - Care,Daycare
Cambridgeshire County Council,27-May-16,20774223-13392422,513.14,Sense For Deaf Blind People,Care Establishment,2 - Operations - Learning Disability,LDP South Cambs Locality - Care,Daycare
Cambridgeshire County Council,27-May-16,20774229-13392423,513.14,Sense For Deaf Blind People,Care Establishment,2 - Operations - Learning Disability,LDP South Cambs Locality - Care,Daycare
Cambridgeshire County Council,27-May-16,20774230-13392424,513.14,Sense For Deaf Blind People,Care Establishment,2 - Operations - Learning Disability,LDP South Cambs Locality - Care,Daycare
Cambridgeshire County Council,27-May-16,20769430-13388118,513.57,The Old Vicarage#1,Care Establishment,2 - Commissioning - Older people Pool,Older People Mental Health Fenland,Residential Independent Sector
Cambridgeshire County Council,27-May-16,20769432-13388119,513.57,The Old Vicarage#1,Care Establishment,2 - Commissioning - Older people Pool,Older People Mental Health Fenland,Residential Independent Sector
Cambridgeshire County Council,27-May-16,20769434-13388120,513.57,The Old Vicarage#1,Care Establishment,2 - Commissioning - Older people Pool,Older People Mental Health Fenland,Residential Independent Sector
Cambridgeshire County Council,27-May-16,20769438-13388121,513.57,The Old Vicarage#1,Care Establishment,2 - Commissioning - Older people Pool,Older People Mental Health Fenland,Residential Independent Sector
Cambridgeshire County Council,31-May-16,20588363-13412942,513.6,Gratte Brothers Catering Equipment Ltd,Company,4 - Operations - Providers services,"Larkfield, Ely",General Office Expenses & Stationery
Cambridgeshire County Council,13-May-16,20654145-13322987,513.8,Redacted Personal Data,Individual,3 - Operations - Countywide Services,Countywide PD Service - Care,Direct Payments - Social Services
Cambridgeshire County Council,13-May-16,20654146-13322988,513.8,Redacted Personal Data,Individual,3 - Operations - Countywide Services,Countywide PD Service - Care,Direct Payments - Social Services
Cambridgeshire County Council,13-May-16,20654147-13322989,513.8,Redacted Personal Data,Individual,3 - Operations - Countywide Services,Countywide PD Service - Care,Direct Payments - Social Services
Cambridgeshire County Council,13-May-16,20654148-13322990,513.8,Redacted Personal Data,Individual,3 - Operations - Countywide Services,Countywide PD Service - Care,Direct Payments - Social Services
Cambridgeshire County Council,13-May-16,20658156-13325250,513.8,Redacted Personal Data,Individual,3 - Operations - Countywide Services,Countywide PD Service - Care,Direct Payments - Social Services
Cambridgeshire County Council,13-May-16,20658157-13325251,513.8,Redacted Personal Data,Individual,3 - Operations - Countywide Services,Countywide PD Service - Care,Direct Payments - Social Services
Cambridgeshire County Council,13-May-16,20658158-13325252,513.8,Redacted Personal Data,Individual,3 - Operations - Countywide Services,Countywide PD Service - Care,Direct Payments - Social Services
Cambridgeshire County Council,13-May-16,20658159-13325253,513.8,Redacted Personal Data,Individual,3 - Operations - Countywide Services,Countywide PD Service - Care,Direct Payments - Social Services
Cambridgeshire County Council,27-May-16,20755566-13388255,514.44,Iceni House#1,Care Establishment,3 - Operations - Countywide Services,Countywide PD Service - Care,Nursing Independent Sector
Cambridgeshire County Council,27-May-16,20755567-13388256,514.44,Iceni House#1,Care Establishment,3 - Operations - Countywide Services,Countywide PD Service - Care,Nursing Independent Sector
Cambridgeshire County Council,27-May-16,20755568-13388257,514.44,Iceni House#1,Care Establishment,3 - Operations - Countywide Services,Countywide PD Service - Care,Nursing Independent Sector
Cambridgeshire County Council,27-May-16,20755569-13388258,514.44,Iceni House#1,Care Establishment,3 - Operations - Countywide Services,Countywide PD Service - Care,Nursing Independent Sector
Cambridgeshire County Council,20-May-16,20681392-13359402,515.5,Bramley Court,Care Establishment,2 - Commissioning - Older people Pool,Older People - City & South,Residential Independent Sector
Cambridgeshire County Council,20-May-16,20681393-13359403,515.5,Bramley Court,Care Establishment,2 - Commissioning - Older people Pool,Older People - City & South,Residential Independent Sector
Cambridgeshire County Council,20-May-16,20681394-13359404,515.5,Bramley Court,Care Establishment,2 - Commissioning - Older people Pool,Older People - City & South,Residential Independent Sector
Cambridgeshire County Council,20-May-16,20681395-13359405,515.5,Bramley Court,Care Establishment,2 - Commissioning - Older people Pool,Older People - City & South,Residential Independent Sector
Cambridgeshire County Council,20-May-16,20681396-13359406,515.5,Bramley Court,Care Establishment,2 - Commissioning - Older people Pool,Older People - City & South,Residential Independent Sector
Cambridgeshire County Council,20-May-16,20681397-13359407,515.5,Bramley Court,Care Establishment,2 - Commissioning - Older people Pool,Older People - City & South,Residential Independent Sector
Cambridgeshire County Council,20-May-16,20681398-13359408,515.5,Bramley Court,Care Establishment,2 - Commissioning - Older people Pool,Older People - City & South,Residential Independent Sector
Cambridgeshire County Council,20-May-16,20681399-13359409,515.5,Bramley Court,Care Establishment,2 - Commissioning - Older people Pool,Older People - City & South,Residential Independent Sector
Cambridgeshire County Council,20-May-16,20681400-13359410,515.5,Bramley Court,Care Establishment,2 - Commissioning - Older people Pool,Older People - City & South,Residential Independent Sector
Cambridgeshire County Council,20-May-16,20681401-13359411,515.5,Bramley Court,Care Establishment,2 - Commissioning - Older people Pool,Older People - City & South,Residential Independent Sector
Cambridgeshire County Council,27-May-16,20753825-13397411,515.5,The Chestnuts Residential Home,Care Establishment,2 - Commissioning - Older people Pool,Older People - Fenland,Residential Independent Sector
Cambridgeshire County Council,27-May-16,20753826-13397412,515.5,The Chestnuts Residential Home,Care Establishment,2 - Commissioning - Older people Pool,Older People - Fenland,Residential Independent Sector
Cambridgeshire County Council,27-May-16,20753827-13397413,515.5,The Chestnuts Residential Home,Care Establishment,2 - Commissioning - Older people Pool,Older People - Fenland,Residential Independent Sector
Cambridgeshire County Council,27-May-16,20753828-13397414,515.5,The Chestnuts Residential Home,Care Establishment,2 - Commissioning - Older people Pool,Older People - Fenland,Residential Independent Sector
Cambridgeshire County Council,27-May-16,20762196-13396915,515.5,Bethany Francis House#1,Care Establishment,3 - Operations - Countywide Services,Countywide PD Service - Care,Residential Independent Sector
Cambridgeshire County Council,27-May-16,20762197-13396916,515.5,Bethany Francis House#1,Care Establishment,3 - Operations - Countywide Services,Countywide PD Service - Care,Residential Independent Sector
Cambridgeshire County Council,27-May-16,20762198-13396917,515.5,Bethany Francis House#1,Care Establishment,3 - Operations - Countywide Services,Countywide PD Service - Care,Residential Independent Sector
Cambridgeshire County Council,27-May-16,20762199-13396918,515.5,Bethany Francis House#1,Care Establishment,3 - Operations - Countywide Services,Countywide PD Service - Care,Residential Independent Sector
Cambridgeshire County Council,27-May-16,20773609-13407500,515.5,Gracefield Nursing And Residential Home,Care Establishment,2 - Commissioning - Older people Pool,Older People Mental Health Hunts,Nursing Independent Sector
Cambridgeshire County Council,27-May-16,20773610-13407501,515.5,Gracefield Nursing And Residential Home,Care Establishment,2 - Commissioning - Older people Pool,Older People Mental Health Hunts,Nursing Independent Sector
Cambridgeshire County Council,27-May-16,20773611-13407502,515.5,Gracefield Nursing And Residential Home,Care Establishment,2 - Commissioning - Older people Pool,Older People Mental Health Hunts,Nursing Independent Sector
Cambridgeshire County Council,27-May-16,20773612-13407503,515.5,Gracefield Nursing And Residential Home,Care Establishment,2 - Commissioning - Older people Pool,Older People Mental Health Hunts,Nursing Independent Sector
Cambridgeshire County Council,27-May-16,20773613-13407504,515.5,Gracefield Nursing And Residential Home,Care Establishment,2 - Commissioning - Older people Pool,Older People Mental Health Hunts,Nursing Independent Sector
Cambridgeshire County Council,27-May-16,20754696-13391037,515.51,Midas Care Ltd,Care Establishment,3 - Operations - Countywide Services,Countywide PD Service - Care,Day and Domicillary Care Independent Sector
Cambridgeshire County Council,27-May-16,20755017-13391000,515.51,Midas Care Ltd,Care Establishment,2 - Commissioning - Older people Pool,Older People - Fenland,Day and Domicillary Care Independent Sector
Cambridgeshire County Council,27-May-16,20755023-13391001,515.51,Midas Care Ltd,Care Establishment,2 - Commissioning - Older people Pool,Older People - Fenland,Day and Domicillary Care Independent Sector
Cambridgeshire County Council,27-May-16,20755025-13391002,515.51,Midas Care Ltd,Care Establishment,2 - Commissioning - Older people Pool,Older People - Fenland,Day and Domicillary Care Independent Sector
Cambridgeshire County Council,27-May-16,20755026-13391003,515.51,Midas Care Ltd,Care Establishment,2 - Commissioning - Older people Pool,Older People - Fenland,Day and Domicillary Care Independent Sector
Cambridgeshire County Council,27-May-16,20755500-13390903,515.51,Midas Care Ltd,Care Establishment,3 - Operations - Countywide Services,Countywide PD Service - Care,Day and Domicillary Care Independent Sector
Cambridgeshire County Council,27-May-16,20755501-13390904,515.51,Midas Care Ltd,Care Establishment,3 - Operations - Countywide Services,Countywide PD Service - Care,Day and Domicillary Care Independent Sector
Cambridgeshire County Council,27-May-16,20755502-13390905,515.51,Midas Care Ltd,Care Establishment,3 - Operations - Countywide Services,Countywide PD Service - Care,Day and Domicillary Care Independent Sector
Cambridgeshire County Council,27-May-16,20755503-13390888,515.51,Midas Care Ltd,Care Establishment,3 - Operations - Countywide Services,Countywide PD Service - Care,Day and Domicillary Care Independent Sector
Cambridgeshire County Council,27-May-16,20756891-13390871,515.51,Midas Care Ltd,Care Establishment,2 - Commissioning - Older people Pool,East Cambs - O P Team,Day and Domicillary Care Independent Sector
Cambridgeshire County Council,27-May-16,20756892-13390872,515.51,Midas Care Ltd,Care Establishment,2 - Commissioning - Older people Pool,East Cambs - O P Team,Day and Domicillary Care Independent Sector
Cambridgeshire County Council,27-May-16,20756895-13390873,515.51,Midas Care Ltd,Care Establishment,2 - Commissioning - Older people Pool,East Cambs - O P Team,Day and Domicillary Care Independent Sector
Cambridgeshire County Council,27-May-16,20756896-13390841,515.51,Midas Care Ltd,Care Establishment,2 - Commissioning - Older people Pool,East Cambs - O P Team,Day and Domicillary Care Independent Sector
Cambridgeshire County Council,27-May-16,20762695-13390906,515.51,Midas Care Ltd,Care Establishment,3 - Operations - Countywide Services,Countywide PD Service - Care,Day and Domicillary Care Independent Sector
Cambridgeshire County Council,27-May-16,20762704-13390908,515.51,Midas Care Ltd,Care Establishment,3 - Operations - Countywide Services,Countywide PD Service - Care,Day and Domicillary Care Independent Sector
Cambridgeshire County Council,27-May-16,20762714-13390911,515.51,Midas Care Ltd,Care Establishment,3 - Operations - Countywide Services,Countywide PD Service - Care,Day and Domicillary Care Independent Sector
Cambridgeshire County Council,27-May-16,20772876-13399456,515.51,Brookfield Care,Care Establishment,2 - Commissioning - Older people Pool,Hunts O P  Team,Day and Domicillary Care Independent Sector
Cambridgeshire County Council,27-May-16,20772877-13399457,515.51,Brookfield Care,Care Establishment,2 - Commissioning - Older people Pool,Hunts O P  Team,Day and Domicillary Care Independent Sector
Cambridgeshire County Council,27-May-16,20772878-13399458,515.51,Brookfield Care,Care Establishment,2 - Commissioning - Older people Pool,Hunts O P  Team,Day and Domicillary Care Independent Sector
Cambridgeshire County Council,27-May-16,20772879-13399459,515.51,Brookfield Care,Care Establishment,2 - Commissioning - Older people Pool,Hunts O P  Team,Day and Domicillary Care Independent Sector
Cambridgeshire County Council,27-May-16,20772523-13403725,515.99,Abbott Healthcare Ltd,Care Establishment,2 - Commissioning - Older people Pool,Older People - City & South,Day and Domicillary Care Independent Sector
Cambridgeshire County Council,27-May-16,20772524-13403726,515.99,Abbott Healthcare Ltd,Care Establishment,2 - Commissioning - Older people Pool,Older People - City & South,Day and Domicillary Care Independent Sector
Cambridgeshire County Council,27-May-16,20772528-13403727,515.99,Abbott Healthcare Ltd,Care Establishment,2 - Commissioning - Older people Pool,Older People - City & South,Day and Domicillary Care Independent Sector
Cambridgeshire County Council,27-May-16,20772529-13403728,515.99,Abbott Healthcare Ltd,Care Establishment,2 - Commissioning - Older people Pool,Older People - City & South,Day and Domicillary Care Independent Sector
Cambridgeshire County Council,25-May-16,20746050-13374199,516,A10 Taxis,Trade Supplier,2 - Operations - Learning Disability,LDP E Cambs Locality - Care,Vehicle hire
Cambridgeshire County Council,27-May-16,20746215-13401060,516,Dart Taxis (March),Trade Supplier,3 - Operations - Countywide Services,Countywide PD Service - Care,Social Services Transport
Cambridgeshire County Council,23-May-16,20685404-13366929,516.07,Redacted Personal Data,Individual,CSC,CSC Direct Payments,Direct Payments - Social Services
Cambridgeshire County Council,27-May-16,20758059-13395315,516.1,Rose Lodge,Care Establishment,2 - Commissioning - Older people Pool,Older People - Fenland,Nursing Independent Sector
Cambridgeshire County Council,27-May-16,20764969-13395311,516.1,Rose Lodge,Care Establishment,2 - Commissioning - Older people Pool,Older People - Fenland,Nursing Independent Sector
Cambridgeshire County Council,27-May-16,20764972-13395312,516.1,Rose Lodge,Care Establishment,2 - Commissioning - Older people Pool,Older People - Fenland,Nursing Independent Sector
Cambridgeshire County Council,27-May-16,20764978-13395313,516.1,Rose Lodge,Care Establishment,2 - Commissioning - Older people Pool,Older People - Fenland,Nursing Independent Sector
Cambridgeshire County Council,27-May-16,20764991-13395314,516.1,Rose Lodge,Care Establishment,2 - Commissioning - Older people Pool,Older People - Fenland,Nursing Independent Sector
Cambridgeshire County Council,13-May-16,20654780-13329257,516.25,Redacted Personal Data,Individual,2 - Commissioning - Older people Pool,Older People - City & South,Direct Payments - Social Services
Cambridgeshire County Council,13-May-16,20654781-13329258,516.25,Redacted Personal Data,Individual,2 - Commissioning - Older people Pool,Older People - City & South,Direct Payments - Social Services
Cambridgeshire County Council,13-May-16,20656717-13329262,516.25,Redacted Personal Data,Individual,2 - Commissioning - Older people Pool,Older People - City & South,Direct Payments - Social Services
Cambridgeshire County Council,13-May-16,20656721-13329264,516.25,Redacted Personal Data,Individual,2 - Commissioning - Older people Pool,Older People - City & South,Direct Payments - Social Services
Cambridgeshire County Council,20-May-16,20681316-13359712,516.27,Etheldred House,Care Establishment,2 - Commissioning - Older people Pool,Older People - City & South,Nursing Independent Sector
Cambridgeshire County Council,27-May-16,20770801-13405947,516.28,Camb Care Ltd,Care Establishment,2 - Commissioning - Older people Pool,Hunts O P  Team,Day and Domicillary Care Independent Sector
Cambridgeshire County Council,06-May-16,20603888-13289048,517.5,Headway Cambridgeshire,Charity,4 - Commissioning - Mental Health & Supporting People,Hunts Mental Health Team,Day and Domicillary Care Independent Sector
Cambridgeshire County Council,27-May-16,20755321-13405099,518.08,Woodlands Care Centre,Care Establishment,2 - Commissioning - Older people Pool,Older People Mental Health City & South,Residential Independent Sector
Cambridgeshire County Council,27-May-16,20755327-13405100,518.08,Woodlands Care Centre,Care Establishment,2 - Commissioning - Older people Pool,Older People Mental Health City & South,Residential Independent Sector
Cambridgeshire County Council,27-May-16,20755328-13405101,518.08,Woodlands Care Centre,Care Establishment,2 - Commissioning - Older people Pool,Older People Mental Health City & South,Residential Independent Sector
Cambridgeshire County Council,27-May-16,20755329-13405102,518.08,Woodlands Care Centre,Care Establishment,2 - Commissioning - Older people Pool,Older People Mental Health City & South,Residential Independent Sector
Cambridgeshire County Council,27-May-16,20763221-13405081,518.08,Woodlands Care Centre,Care Establishment,2 - Commissioning - Older people Pool,Older People Mental Health City & South,Residential Independent Sector
Cambridgeshire County Council,27-May-16,20772471-13393751,518.08,Cedar Court Care Ltd,Care Establishment,2 - Commissioning - Older people Pool,Hunts O P  Team,Nursing Independent Sector
Cambridgeshire County Council,27-May-16,20772472-13393752,518.08,Cedar Court Care Ltd,Care Establishment,2 - Commissioning - Older people Pool,Hunts O P  Team,Nursing Independent Sector
Cambridgeshire County Council,27-May-16,20772473-13393753,518.08,Cedar Court Care Ltd,Care Establishment,2 - Commissioning - Older people Pool,Hunts O P  Team,Nursing Independent Sector
Cambridgeshire County Council,27-May-16,20772474-13393754,518.08,Cedar Court Care Ltd,Care Establishment,2 - Commissioning - Older people Pool,Hunts O P  Team,Nursing Independent Sector
Cambridgeshire County Council,27-May-16,20771086-13390608,518.92,Midas Care Ltd,Care Establishment,2 - Operations - Learning Disability,LDP E Cambs Locality - Care,Day and Domicillary Care Independent Sector
Cambridgeshire County Council,27-May-16,20771087-13390609,518.92,Midas Care Ltd,Care Establishment,2 - Operations - Learning Disability,LDP E Cambs Locality - Care,Day and Domicillary Care Independent Sector
Cambridgeshire County Council,27-May-16,20771088-13390610,518.92,Midas Care Ltd,Care Establishment,2 - Operations - Learning Disability,LDP E Cambs Locality - Care,Day and Domicillary Care Independent Sector
Cambridgeshire County Council,27-May-16,20771089-13390611,518.92,Midas Care Ltd,Care Establishment,2 - Operations - Learning Disability,LDP E Cambs Locality - Care,Day and Domicillary Care Independent Sector
Cambridgeshire County Council,27-May-16,20754286-13400240,518.94,Nas Services Ltd,Charity,2 - Operations - Learning Disability,LDP City Locality - Care,Daycare
Cambridgeshire County Council,27-May-16,20754287-13400241,518.94,Nas Services Ltd,Charity,2 - Operations - Learning Disability,LDP City Locality - Care,Daycare
Cambridgeshire County Council,27-May-16,20754289-13400242,518.94,Nas Services Ltd,Charity,2 - Operations - Learning Disability,LDP City Locality - Care,Daycare
Cambridgeshire County Council,27-May-16,20754290-13400243,518.94,Nas Services Ltd,Charity,2 - Operations - Learning Disability,LDP City Locality - Care,Daycare
Cambridgeshire County Council,13-May-16,20650366-13324937,518.97,Wentworth Croft Residential And Nursing,Care Establishment,2 - Commissioning - Older people Pool,Older People Mental Health Hunts,Nursing Independent Sector
Cambridgeshire County Council,13-May-16,20650367-13324938,518.97,Wentworth Croft Residential And Nursing,Care Establishment,2 - Commissioning - Older people Pool,Older People Mental Health Hunts,Nursing Independent Sector
Cambridgeshire County Council,13-May-16,20653999-13324914,518.97,Wentworth Croft Residential And Nursing,Care Establishment,2 - Commissioning - Older people Pool,Older People Mental Health Hunts,Nursing Independent Sector
Cambridgeshire County Council,13-May-16,20654000-13324915,518.97,Wentworth Croft Residential And Nursing,Care Establishment,2 - Commissioning - Older people Pool,Older People Mental Health Hunts,Nursing Independent Sector
Cambridgeshire County Council,13-May-16,20658225-13324927,518.97,Wentworth Croft Residential And Nursing,Care Establishment,2 - Commissioning - Older people Pool,Older People Mental Health Fenland,Nursing Independent Sector
Cambridgeshire County Council,13-May-16,20658226-13324928,518.97,Wentworth Croft Residential And Nursing,Care Establishment,2 - Commissioning - Older people Pool,Older People Mental Health Fenland,Nursing Independent Sector
Cambridgeshire County Council,13-May-16,20658227-13324929,518.97,Wentworth Croft Residential And Nursing,Care Establishment,2 - Commissioning - Older people Pool,Older People Mental Health Fenland,Nursing Independent Sector
Cambridgeshire County Council,13-May-16,20658228-13324930,518.97,Wentworth Croft Residential And Nursing,Care Establishment,2 - Commissioning - Older people Pool,Older People Mental Health Fenland,Nursing Independent Sector
Cambridgeshire County Council,27-May-16,20761242-13394953,519.02,Mihomecare Ltd (Fenland Premier Care),Care Establishment,2 - Commissioning - Older people Pool,East Cambs - O P Team,Day and Domicillary Care Independent Sector
Cambridgeshire County Council,27-May-16,20761244-13394955,519.02,Mihomecare Ltd (Fenland Premier Care),Care Establishment,2 - Commissioning - Older people Pool,East Cambs - O P Team,Day and Domicillary Care Independent Sector
Cambridgeshire County Council,27-May-16,20768263-13397165,519.02,Mihomecare Ltd (The Care Agency),Care Establishment,2 - Commissioning - Older people Pool,Older People - Fenland,Day and Domicillary Care Independent Sector
Cambridgeshire County Council,27-May-16,20768298-13397159,519.02,Mihomecare Ltd (The Care Agency),Care Establishment,2 - Commissioning - Older people Pool,Older People - Fenland,Day and Domicillary Care Independent Sector
Cambridgeshire County Council,27-May-16,20768304-13397161,519.02,Mihomecare Ltd (The Care Agency),Care Establishment,2 - Commissioning - Older people Pool,Older People - Fenland,Day and Domicillary Care Independent Sector
Cambridgeshire County Council,27-May-16,20768309-13397162,519.02,Mihomecare Ltd (The Care Agency),Care Establishment,2 - Commissioning - Older people Pool,Older People - Fenland,Day and Domicillary Care Independent Sector
Cambridgeshire County Council,27-May-16,20772040-13395195,519.02,Mihomecare Ltd (Fenland Premier Care),Care Establishment,2 - Commissioning - Older people Pool,East Cambs - O P Team,Day and Domicillary Care Independent Sector
Cambridgeshire County Council,27-May-16,20772041-13395196,519.02,Mihomecare Ltd (Fenland Premier Care),Care Establishment,2 - Commissioning - Older people Pool,East Cambs - O P Team,Day and Domicillary Care Independent Sector
Cambridgeshire County Council,27-May-16,20772042-13395197,519.02,Mihomecare Ltd (Fenland Premier Care),Care Establishment,2 - Commissioning - Older people Pool,East Cambs - O P Team,Day and Domicillary Care Independent Sector
Cambridgeshire County Council,27-May-16,20772043-13395198,519.02,Mihomecare Ltd (Fenland Premier Care),Care Establishment,2 - Commissioning - Older people Pool,East Cambs - O P Team,Day and Domicillary Care Independent Sector
Cambridgeshire County Council,03-May-16,20582161-13265234,519.76,Redacted Personal Data,Foster Parent,CSC,Operations Manager (O.M.) Children's Fie,Adoption Allowances
Cambridgeshire County Council,17-May-16,20668376-13340199,519.76,Redacted Personal Data,Foster Parent,CSC,Operations Manager (O.M.) Children's Fie,Adoption Allowances
Cambridgeshire County Council,13-May-16,20649041-13330769,519.88,Redacted Personal Data,Individual,3 - Operations - Countywide Services,Countywide PD Service - Care,Direct Payments - Social Services
Cambridgeshire County Council,13-May-16,20649042-13330770,519.88,Redacted Personal Data,Individual,3 - Operations - Countywide Services,Countywide PD Service - Care,Direct Payments - Social Services
Cambridgeshire County Council,13-May-16,20649043-13330771,519.88,Redacted Personal Data,Individual,3 - Operations - Countywide Services,Countywide PD Service - Care,Direct Payments - Social Services
Cambridgeshire County Council,13-May-16,20649044-13330772,519.88,Redacted Personal Data,Individual,3 - Operations - Countywide Services,Countywide PD Service - Care,Direct Payments - Social Services
Cambridgeshire County Council,19-May-16,19750973-13354933,520,Chamarel Ld,Care Establishment,2 - Operations - Learning Disability,LDP South Cambs Locality - Care,Day and Domicillary Care Independent Sector
Cambridgeshire County Council,16-May-16,20432796-13338056,520,Fenland District Council,Other Public Bodies,LGSS Managed,Elm Family centre,Business rates
Cambridgeshire County Council,16-May-16,20432833-13338048,520,Fenland District Council,Other Public Bodies,LGSS Managed,Murrow Children's Centre,Business rates
Cambridgeshire County Council,13-May-16,20656564-13323709,520,Redacted Personal Data,Individual,3 - Operations - Countywide Services,Countywide PD Service - Care,Direct Payments - Social Services
Cambridgeshire County Council,27-May-16,20760519-13396093,520.12,Kingfisher House,Care Establishment,2 - Commissioning - Older people Pool,Older People Mental Health E Cambs,Nursing Independent Sector
Cambridgeshire County Council,27-May-16,20760540-13396095,520.12,Kingfisher House,Care Establishment,2 - Commissioning - Older people Pool,Older People Mental Health E Cambs,Nursing Independent Sector
Cambridgeshire County Council,27-May-16,20770005-13398641,520.12,Abbey Healthcare (Huntingdon) Ltd,Care Establishment,2 - Commissioning - Older people Pool,Older People Mental Health Hunts,Nursing Independent Sector
Cambridgeshire County Council,27-May-16,20770023-13398642,520.12,Abbey Healthcare (Huntingdon) Ltd,Care Establishment,2 - Commissioning - Older people Pool,Older People Mental Health Hunts,Nursing Independent Sector
Cambridgeshire County Council,27-May-16,20770039-13392671,520.12,Soham Lodge,Care Establishment,2 - Commissioning - Older people Pool,Older People Mental Health E Cambs,Nursing Independent Sector
Cambridgeshire County Council,27-May-16,20770048-13398645,520.12,Abbey Healthcare (Huntingdon) Ltd,Care Establishment,2 - Commissioning - Older people Pool,Older People Mental Health Hunts,Nursing Independent Sector
Cambridgeshire County Council,27-May-16,20770066-13398646,520.12,Abbey Healthcare (Huntingdon) Ltd,Care Establishment,2 - Commissioning - Older people Pool,Older People Mental Health Hunts,Nursing Independent Sector
Cambridgeshire County Council,27-May-16,20770074-13392672,520.12,Soham Lodge,Care Establishment,2 - Commissioning - Older people Pool,Older People Mental Health E Cambs,Nursing Independent Sector
Cambridgeshire County Council,27-May-16,20770075-13392673,520.12,Soham Lodge,Care Establishment,2 - Commissioning - Older people Pool,Older People Mental Health E Cambs,Nursing Independent Sector
Cambridgeshire County Council,27-May-16,20770076-13398647,520.12,Abbey Healthcare (Huntingdon) Ltd,Care Establishment,2 - Commissioning - Older people Pool,Older People Mental Health Hunts,Nursing Independent Sector
Cambridgeshire County Council,27-May-16,20770077-13392674,520.12,Soham Lodge,Care Establishment,2 - Commissioning - Older people Pool,Older People Mental Health E Cambs,Nursing Independent Sector
Cambridgeshire County Council,27-May-16,20772593-13398693,520.12,Abbey Healthcare (Huntingdon) Ltd,Care Establishment,2 - Commissioning - Older people Pool,Older People Mental Health Hunts,Nursing Independent Sector
Cambridgeshire County Council,27-May-16,20772594-13398694,520.12,Abbey Healthcare (Huntingdon) Ltd,Care Establishment,2 - Commissioning - Older people Pool,Older People Mental Health Hunts,Nursing Independent Sector
Cambridgeshire County Council,27-May-16,20772595-13398695,520.12,Abbey Healthcare (Huntingdon) Ltd,Care Establishment,2 - Commissioning - Older people Pool,Older People Mental Health Hunts,Nursing Independent Sector
Cambridgeshire County Council,27-May-16,20772596-13398696,520.12,Abbey Healthcare (Huntingdon) Ltd,Care Establishment,2 - Commissioning - Older people Pool,Older People Mental Health Hunts,Nursing Independent Sector
Cambridgeshire County Council,27-May-16,20772597-13398697,520.12,Abbey Healthcare (Huntingdon) Ltd,Care Establishment,2 - Commissioning - Older people Pool,Older People Mental Health Hunts,Nursing Independent Sector
Cambridgeshire County Council,27-May-16,20769534-13395625,521.35,Hardwick Dene,Care Establishment,2 - Commissioning - Older people Pool,Hunts O P  Team,Residential Independent Sector
Cambridgeshire County Council,27-May-16,20769538-13395626,521.35,Hardwick Dene,Care Establishment,2 - Commissioning - Older people Pool,Hunts O P  Team,Residential Independent Sector
Cambridgeshire County Council,27-May-16,20769540-13395627,521.35,Hardwick Dene,Care Establishment,2 - Commissioning - Older people Pool,Hunts O P  Team,Residential Independent Sector
Cambridgeshire County Council,27-May-16,20769541-13395628,521.35,Hardwick Dene,Care Establishment,2 - Commissioning - Older people Pool,Hunts O P  Team,Residential Independent Sector
Cambridgeshire County Council,27-May-16,20769542-13395629,521.35,Hardwick Dene,Care Establishment,2 - Commissioning - Older people Pool,Hunts O P  Team,Residential Independent Sector
Cambridgeshire County Council,17-May-16,20597341-13340389,521.7,Bill Ibbotts Catering Equipment Services Ltd,Company,S&C,"Catering - Property, Equipment & Maintenance",Repair of canteen equipment
Cambridgeshire County Council,27-May-16,20773543-13400244,521.72,Nas Services Ltd,Charity,2 - Operations - Learning Disability,LDP City Locality - Care,Daycare
Cambridgeshire County Council,27-May-16,20773548-13400245,521.72,Nas Services Ltd,Charity,2 - Operations - Learning Disability,LDP City Locality - Care,Daycare
Cambridgeshire County Council,27-May-16,20773549-13400246,521.72,Nas Services Ltd,Charity,2 - Operations - Learning Disability,LDP City Locality - Care,Daycare
Cambridgeshire County Council,27-May-16,20773550-13400247,521.72,Nas Services Ltd,Charity,2 - Operations - Learning Disability,LDP City Locality - Care,Daycare
Cambridgeshire County Council,05-May-16,20600370-13279477,522,Redacted Personal Data,Individual,2 - Operations - Learning Disability,LDP E Cambs Locality - Care,Volunteers Travel Allowance
Cambridgeshire County Council,27-May-16,20767317-13390145,522.34,Better Healthcare Peterborough,Care Establishment,2 - Commissioning - Older people Pool,Older People - Fenland,Day and Domicillary Care Independent Sector
Cambridgeshire County Council,27-May-16,20767318-13390146,522.34,Better Healthcare Peterborough,Care Establishment,2 - Commissioning - Older people Pool,Older People - Fenland,Day and Domicillary Care Independent Sector
Cambridgeshire County Council,27-May-16,20767319-13390147,522.34,Better Healthcare Peterborough,Care Establishment,2 - Commissioning - Older people Pool,Older People - Fenland,Day and Domicillary Care Independent Sector
Cambridgeshire County Council,27-May-16,20767320-13390148,522.34,Better Healthcare Peterborough,Care Establishment,2 - Commissioning - Older people Pool,Older People - Fenland,Day and Domicillary Care Independent Sector
Cambridgeshire County Council,18-May-16,20671214-13349941,522.5,Collier Safeguarding Ltd,Trade Supplier,LRNG,ASYE,Other Hired Contract Services
Cambridgeshire County Council,27-May-16,20760510-13400161,522.5,Cambridgeshire Homecare,Care Establishment,2 - Commissioning - Older people Pool,Older People - Fenland,Day and Domicillary Care Independent Sector
Cambridgeshire County Council,27-May-16,20760517-13400162,522.5,Cambridgeshire Homecare,Care Establishment,2 - Commissioning - Older people Pool,Older People - Fenland,Day and Domicillary Care Independent Sector
Cambridgeshire County Council,27-May-16,20760529-13400164,522.5,Cambridgeshire Homecare,Care Establishment,2 - Commissioning - Older people Pool,Older People - Fenland,Day and Domicillary Care Independent Sector
Cambridgeshire County Council,27-May-16,20760541-13400166,522.5,Cambridgeshire Homecare,Care Establishment,2 - Commissioning - Older people Pool,Older People - Fenland,Day and Domicillary Care Independent Sector
Cambridgeshire County Council,27-May-16,20760771-13400134,522.5,Cambridgeshire Homecare,Care Establishment,2 - Commissioning - Older people Pool,Hunts O P  Team,Day and Domicillary Care Independent Sector
Cambridgeshire County Council,27-May-16,20762038-13400089,522.5,Cambridgeshire Homecare,Care Establishment,2 - Commissioning - Older people Pool,Hunts O P  Team,Day and Domicillary Care Independent Sector
Cambridgeshire County Council,27-May-16,20762039-13400090,522.5,Cambridgeshire Homecare,Care Establishment,2 - Commissioning - Older people Pool,Hunts O P  Team,Day and Domicillary Care Independent Sector
Cambridgeshire County Council,27-May-16,20762040-13400091,522.5,Cambridgeshire Homecare,Care Establishment,2 - Commissioning - Older people Pool,Hunts O P  Team,Day and Domicillary Care Independent Sector
Cambridgeshire County Council,27-May-16,20765352-13399994,522.5,Cambridgeshire Homecare,Care Establishment,2 - Commissioning - Older people Pool,Hunts O P  Team,Day and Domicillary Care Independent Sector
Cambridgeshire County Council,27-May-16,20765356-13399995,522.5,Cambridgeshire Homecare,Care Establishment,2 - Commissioning - Older people Pool,Hunts O P  Team,Day and Domicillary Care Independent Sector
Cambridgeshire County Council,27-May-16,20765363-13399996,522.5,Cambridgeshire Homecare,Care Establishment,2 - Commissioning - Older people Pool,Hunts O P  Team,Day and Domicillary Care Independent Sector
Cambridgeshire County Council,27-May-16,20765374-13399988,522.5,Cambridgeshire Homecare,Care Establishment,2 - Commissioning - Older people Pool,Hunts O P  Team,Day and Domicillary Care Independent Sector
Cambridgeshire County Council,27-May-16,20767215-13389386,522.5,Citc Care Ltd (Home Choice),Care Establishment,2 - Commissioning - Older people Pool,Hunts O P  Team,Day and Domicillary Care Independent Sector
Cambridgeshire County Council,27-May-16,20767216-13389387,522.5,Citc Care Ltd (Home Choice),Care Establishment,2 - Commissioning - Older people Pool,Hunts O P  Team,Day and Domicillary Care Independent Sector
Cambridgeshire County Council,27-May-16,20767217-13389388,522.5,Citc Care Ltd (Home Choice),Care Establishment,2 - Commissioning - Older people Pool,Hunts O P  Team,Day and Domicillary Care Independent Sector
Cambridgeshire County Council,27-May-16,20767218-13389389,522.5,Citc Care Ltd (Home Choice),Care Establishment,2 - Commissioning - Older people Pool,Hunts O P  Team,Day and Domicillary Care Independent Sector
Cambridgeshire County Council,27-May-16,20768903-13389260,522.5,Citc Care Ltd (Home Choice),Care Establishment,2 - Commissioning - Older people Pool,Hunts O P  Team,Day and Domicillary Care Independent Sector
Cambridgeshire County Council,27-May-16,20768904-13389261,522.5,Citc Care Ltd (Home Choice),Care Establishment,2 - Commissioning - Older people Pool,Hunts O P  Team,Day and Domicillary Care Independent Sector
Cambridgeshire County Council,27-May-16,20768906-13389263,522.5,Citc Care Ltd (Home Choice),Care Establishment,2 - Commissioning - Older people Pool,Hunts O P  Team,Day and Domicillary Care Independent Sector
Cambridgeshire County Council,27-May-16,20769479-13400065,522.5,Cambridgeshire Homecare,Care Establishment,2 - Commissioning - Older people Pool,Hunts O P  Team,Day and Domicillary Care Independent Sector
Cambridgeshire County Council,27-May-16,20769480-13400066,522.5,Cambridgeshire Homecare,Care Establishment,2 - Commissioning - Older people Pool,Hunts O P  Team,Day and Domicillary Care Independent Sector
Cambridgeshire County Council,27-May-16,20769481-13400067,522.5,Cambridgeshire Homecare,Care Establishment,2 - Commissioning - Older people Pool,Hunts O P  Team,Day and Domicillary Care Independent Sector
Cambridgeshire County Council,27-May-16,20769482-13400068,522.5,Cambridgeshire Homecare,Care Establishment,2 - Commissioning - Older people Pool,Hunts O P  Team,Day and Domicillary Care Independent Sector
Cambridgeshire County Council,27-May-16,20770120-13389218,522.5,Citc Care Ltd (Home Choice),Care Establishment,2 - Commissioning - Older people Pool,Hunts O P  Team,Day and Domicillary Care Independent Sector
Cambridgeshire County Council,13-May-16,20656134-13328059,522.6,Mns Care Plc - Mabbs Hall Care Home,Care Establishment,2 - Commissioning - Older people Pool,East Cambs - O P Team,Nursing Independent Sector
Cambridgeshire County Council,13-May-16,20656135-13328060,522.6,Mns Care Plc - Mabbs Hall Care Home,Care Establishment,2 - Commissioning - Older people Pool,East Cambs - O P Team,Nursing Independent Sector
Cambridgeshire County Council,13-May-16,20656139-13328061,522.6,Mns Care Plc - Mabbs Hall Care Home,Care Establishment,2 - Commissioning - Older people Pool,East Cambs - O P Team,Nursing Independent Sector
Cambridgeshire County Council,13-May-16,20656161-13328062,522.6,Mns Care Plc - Mabbs Hall Care Home,Care Establishment,2 - Commissioning - Older people Pool,East Cambs - O P Team,Nursing Independent Sector
Cambridgeshire County Council,27-May-16,20772238-13395581,523.19,Branching Out,Care Establishment,2 - Operations - Learning Disability,LDP E Cambs Special Needs,Day and Domicillary Care Independent Sector
Cambridgeshire County Council,27-May-16,20772251-13395585,523.19,Branching Out,Care Establishment,2 - Operations - Learning Disability,LDP E Cambs Special Needs,Day and Domicillary Care Independent Sector
Cambridgeshire County Council,27-May-16,20772254-13395587,523.19,Branching Out,Care Establishment,2 - Operations - Learning Disability,LDP E Cambs Special Needs,Day and Domicillary Care Independent Sector
Cambridgeshire County Council,27-May-16,20772257-13395589,523.19,Branching Out,Care Establishment,2 - Operations - Learning Disability,LDP E Cambs Special Needs,Day and Domicillary Care Independent Sector
Cambridgeshire County Council,16-May-16,20574580-13338019,523.2,Abbots Events Ltd,Trade Supplier,LRNG,Primary Core Offer,Casual hire of facilities
Cambridgeshire County Council,27-May-16,20771007-13397900,523.33,Fitzwilliam Healthcare Ltd,Care Establishment,2 - Commissioning - Older people Pool,Older People - City & South,Residential Independent Sector
Cambridgeshire County Council,13-May-16,20656231-13323637,523.56,Redacted Personal Data,Individual,2 - Operations - Learning Disability,LDP E Cambs Locality - Care,SDS - Care and support Services
Cambridgeshire County Council,13-May-16,20656232-13323638,523.56,Redacted Personal Data,Individual,2 - Operations - Learning Disability,LDP E Cambs Locality - Care,SDS - Care and support Services
Cambridgeshire County Council,13-May-16,20656235-13323641,523.56,Redacted Personal Data,Individual,2 - Operations - Learning Disability,LDP E Cambs Locality - Care,SDS - Care and support Services
Cambridgeshire County Council,13-May-16,20656243-13323649,523.56,Redacted Personal Data,Individual,2 - Operations - Learning Disability,LDP E Cambs Locality - Care,SDS - Care and support Services
Cambridgeshire County Council,23-May-16,20685393-13367042,523.6,Redacted Personal Data,Individual,CSC,CSC Direct Payments,Direct Payments - Social Services
Cambridgeshire County Council,17-May-16,20659717-13342889,523.8,Redacted Personal Data,Individual,Corporate Services,Liability,Insurance Fund Expenditure / Payments
Cambridgeshire County Council,13-May-16,20649811-13324939,524.16,Wentworth Croft Residential And Nursing,Care Establishment,2 - Commissioning - Older people Pool,Older People Mental Health Hunts,Nursing Independent Sector
Cambridgeshire County Council,13-May-16,20649813-13324940,524.16,Wentworth Croft Residential And Nursing,Care Establishment,2 - Commissioning - Older people Pool,Older People Mental Health Hunts,Nursing Independent Sector
Cambridgeshire County Council,13-May-16,20651760-13324917,524.16,Wentworth Croft Residential And Nursing,Care Establishment,2 - Commissioning - Older people Pool,Older People Mental Health Hunts,Nursing Independent Sector
Cambridgeshire County Council,13-May-16,20651762-13324918,524.16,Wentworth Croft Residential And Nursing,Care Establishment,2 - Commissioning - Older people Pool,Older People Mental Health Hunts,Nursing Independent Sector
Cambridgeshire County Council,13-May-16,20651983-13324919,524.17,Wentworth Croft Residential And Nursing,Care Establishment,2 - Commissioning - Older people Pool,Older People - Fenland,Nursing Independent Sector
Cambridgeshire County Council,13-May-16,20651984-13324920,524.17,Wentworth Croft Residential And Nursing,Care Establishment,2 - Commissioning - Older people Pool,Older People - Fenland,Nursing Independent Sector
Cambridgeshire County Council,13-May-16,20651985-13324921,524.17,Wentworth Croft Residential And Nursing,Care Establishment,2 - Commissioning - Older people Pool,Older People - Fenland,Nursing Independent Sector
Cambridgeshire County Council,13-May-16,20651986-13324922,524.17,Wentworth Croft Residential And Nursing,Care Establishment,2 - Commissioning - Older people Pool,Older People - Fenland,Nursing Independent Sector
Cambridgeshire County Council,13-May-16,20650805-13324931,524.61,Wentworth Croft Residential And Nursing,Care Establishment,2 - Commissioning - Older people Pool,Hunts O P  Team,Nursing Independent Sector
Cambridgeshire County Council,13-May-16,20650806-13324932,524.61,Wentworth Croft Residential And Nursing,Care Establishment,2 - Commissioning - Older people Pool,Hunts O P  Team,Nursing Independent Sector
Cambridgeshire County Council,13-May-16,20654132-13324912,524.61,Wentworth Croft Residential And Nursing,Care Establishment,2 - Commissioning - Older people Pool,Hunts O P  Team,Nursing Independent Sector
Cambridgeshire County Council,13-May-16,20654133-13324913,524.61,Wentworth Croft Residential And Nursing,Care Establishment,2 - Commissioning - Older people Pool,Hunts O P  Team,Nursing Independent Sector
Cambridgeshire County Council,05-May-16,20599729-13279369,525,Home Meadow Ltd,Care Establishment,2 - Commissioning - Older people Pool,Older People Mental Health City & South,Residential Independent Sector
Cambridgeshire County Council,12-May-16,20628807-13317049,525,Fenland Association For Community Transport Ltd (Fact),Local Clubs & Groups,2 - Operations - Learning Disability,LDP Fenland Locality - Care,SDS - PB Travel
Cambridgeshire County Council,20-May-16,20678822-13357676,525,Redacted Personal Data,Individual,3 - Operations - Countywide Services,Countywide PD Service - Care,SDS - Indicative amount (SWIFT)
Cambridgeshire County Council,20-May-16,20678827-13357681,525,Redacted Personal Data,Individual,3 - Operations - Countywide Services,Countywide PD Service - Care,SDS - Indicative amount (SWIFT)
Cambridgeshire County Council,20-May-16,20678829-13357683,525,Redacted Personal Data,Individual,3 - Operations - Countywide Services,Countywide PD Service - Care,SDS - Indicative amount (SWIFT)
Cambridgeshire County Council,20-May-16,20680586-13357684,525,Redacted Personal Data,Individual,3 - Operations - Countywide Services,Countywide PD Service - Care,SDS - Indicative amount (SWIFT)
Cambridgeshire County Council,20-May-16,20680587-13357685,525,Redacted Personal Data,Individual,3 - Operations - Countywide Services,Countywide PD Service - Care,SDS - Indicative amount (SWIFT)
Cambridgeshire County Council,20-May-16,20680591-13357689,525,Redacted Personal Data,Individual,3 - Operations - Countywide Services,Countywide PD Service - Care,SDS - Indicative amount (SWIFT)
Cambridgeshire County Council,20-May-16,20680592-13357690,525,Redacted Personal Data,Individual,3 - Operations - Countywide Services,Countywide PD Service - Care,SDS - Indicative amount (SWIFT)
Cambridgeshire County Council,20-May-16,20680597-13357695,525,Redacted Personal Data,Individual,3 - Operations - Countywide Services,Countywide PD Service - Care,SDS - Indicative amount (SWIFT)
Cambridgeshire County Council,20-May-16,20680599-13357696,525,Redacted Personal Data,Individual,3 - Operations - Countywide Services,Countywide PD Service - Care,SDS - Indicative amount (SWIFT)
Cambridgeshire County Council,20-May-16,20680600-13357697,525,Redacted Personal Data,Individual,3 - Operations - Countywide Services,Countywide PD Service - Care,SDS - Indicative amount (SWIFT)
Cambridgeshire County Council,20-May-16,20680606-13357703,525,Redacted Personal Data,Individual,3 - Operations - Countywide Services,Countywide PD Service - Care,SDS - Indicative amount (SWIFT)
Cambridgeshire County Council,20-May-16,20680607-13357704,525,Redacted Personal Data,Individual,3 - Operations - Countywide Services,Countywide PD Service - Care,SDS - Indicative amount (SWIFT)
Cambridgeshire County Council,20-May-16,20680609-13357706,525,Redacted Personal Data,Individual,3 - Operations - Countywide Services,Countywide PD Service - Care,SDS - Indicative amount (SWIFT)
Cambridgeshire County Council,27-May-16,20765399-13402511,525,Home Meadow Ltd,Care Establishment,2 - Commissioning - Older people Pool,Older People Mental Health City & South,Residential Independent Sector
Cambridgeshire County Council,27-May-16,20765404-13402512,525,Home Meadow Ltd,Care Establishment,2 - Commissioning - Older people Pool,Older People Mental Health City & South,Residential Independent Sector
Cambridgeshire County Council,27-May-16,20765405-13402513,525,Home Meadow Ltd,Care Establishment,2 - Commissioning - Older people Pool,Older People Mental Health City & South,Residential Independent Sector
Cambridgeshire County Council,27-May-16,20765411-13402514,525,Home Meadow Ltd,Care Establishment,2 - Commissioning - Older people Pool,Older People Mental Health City & South,Residential Independent Sector
Cambridgeshire County Council,27-May-16,20774520-13398741,525,The Elms Nursing Home,Care Establishment,2 - Commissioning - Older people Pool,Older People - Fenland,Residential Independent Sector
Cambridgeshire County Council,27-May-16,20774521-13398742,525,The Elms Nursing Home,Care Establishment,2 - Commissioning - Older people Pool,Older People - Fenland,Residential Independent Sector
Cambridgeshire County Council,27-May-16,20774524-13398743,525,The Elms Nursing Home,Care Establishment,2 - Commissioning - Older people Pool,Older People - Fenland,Residential Independent Sector
Cambridgeshire County Council,27-May-16,20774528-13398744,525,The Elms Nursing Home,Care Establishment,2 - Commissioning - Older people Pool,Older People - Fenland,Residential Independent Sector
Cambridgeshire County Council,27-May-16,20774529-13398745,525,The Elms Nursing Home,Care Establishment,2 - Commissioning - Older people Pool,Older People - Fenland,Residential Independent Sector
Cambridgeshire County Council,27-May-16,20753643-13405521,525.81,Symonds House Nursing Home,Care Establishment,2 - Commissioning - Older people Pool,Older People - City & South,Residential Independent Sector
Cambridgeshire County Council,27-May-16,20753668-13405522,525.81,Symonds House Nursing Home,Care Establishment,2 - Commissioning - Older people Pool,Older People - City & South,Residential Independent Sector
Cambridgeshire County Council,27-May-16,20755119-13405503,525.81,Symonds House Nursing Home,Care Establishment,2 - Commissioning - Older people Pool,Older People - City & South,Residential Independent Sector
Cambridgeshire County Council,27-May-16,20762847-13405490,525.81,Symonds House Nursing Home,Care Establishment,2 - Commissioning - Older people Pool,Older People - City & South,Residential Independent Sector
Cambridgeshire County Council,27-May-16,20773269-13403629,526.01,Abbott Healthcare Ltd,Care Establishment,3 - Operations - Countywide Services,Countywide PD Service - Care,Day and Domicillary Care Independent Sector
Cambridgeshire County Council,27-May-16,20773278-13403633,526.01,Abbott Healthcare Ltd,Care Establishment,3 - Operations - Countywide Services,Countywide PD Service - Care,Day and Domicillary Care Independent Sector
Cambridgeshire County Council,27-May-16,20773286-13403635,526.01,Abbott Healthcare Ltd,Care Establishment,3 - Operations - Countywide Services,Countywide PD Service - Care,Day and Domicillary Care Independent Sector
Cambridgeshire County Council,27-May-16,20773296-13403638,526.01,Abbott Healthcare Ltd,Care Establishment,3 - Operations - Countywide Services,Countywide PD Service - Care,Day and Domicillary Care Independent Sector
Cambridgeshire County Council,27-May-16,20778674-13393833,526.52,Redacted Personal Data,Individual,2 - Operations - Learning Disability,LDP Fenland Locality - Care,Day and Domicillary Care Independent Sector
Cambridgeshire County Council,27-May-16,20771893-13401133,526.66,Conquest Care Homes Peterborough,Care Establishment,2 - Operations - Learning Disability,LDP Fenland Locality - Care,Supported Living
Cambridgeshire County Council,27-May-16,20771894-13401134,526.66,Conquest Care Homes Peterborough,Care Establishment,2 - Operations - Learning Disability,LDP Fenland Locality - Care,Supported Living
Cambridgeshire County Council,27-May-16,20771895-13401135,526.66,Conquest Care Homes Peterborough,Care Establishment,2 - Operations - Learning Disability,LDP Fenland Locality - Care,Supported Living
